Publisher Label,Publisher URI,"Supplier ID","Supplier","Invoice No.","Amount £","Purpose","Transaction Number","Payment Date","Organisational Unit","Cost Centre(T)","Internal Category Number"
"Wolverhampton City Council","http://opendatacommunities.org/id/metropolitan-district-council/wolverhampton","708790","Wolverhampton Voluntary Sector Cncl","1720","69,875.00","TPP - Social Care Support Services","130216977","25/05/2018","Early Intervention","Transformation Challenge Award","R5501"
"Wolverhampton City Council","http://opendatacommunities.org/id/metropolitan-district-council/wolverhampton","708793","Wolverhampton Waste Services Limited","W31A/18","-19,269.88","TPP - Other contractors","130214850","23/05/2018","Waste and Recycling Service","Waste Disposal - General","R5099"
"Wolverhampton City Council","http://opendatacommunities.org/id/metropolitan-district-council/wolverhampton","708793","Wolverhampton Waste Services Limited","W31B/18","19,269.88","TPP - Other contractors","130215139","23/05/2018","Waste and Recycling Service","Waste Disposal - General","R5099"
"Wolverhampton City Council","http://opendatacommunities.org/id/metropolitan-district-council/wolverhampton","708793","Wolverhampton Waste Services Limited","W29/18","137,507.00","TPP - Other contractors","130214177","18/05/2018","Waste and Recycling Service","Waste Disposal - General","R5099"
"Wolverhampton City Council","http://opendatacommunities.org/id/metropolitan-district-council/wolverhampton","708793","Wolverhampton Waste Services Limited","W27/18","240,382.00","TPP - Other contractors","130214175","18/05/2018","Waste and Recycling Service","Waste Disposal - General","R5099"
"Wolverhampton City Council","http://opendatacommunities.org/id/metropolitan-district-council/wolverhampton","708793","Wolverhampton Waste Services Limited","W30A/18","-633,373.75","TPP - Other contractors","130214848","23/05/2018","Waste and Recycling Service","Waste Disposal - General","R5099"
"Wolverhampton City Council","http://opendatacommunities.org/id/metropolitan-district-council/wolverhampton","708793","Wolverhampton Waste Services Limited","W31/18","19,269.88","TPP - Other contractors","130214849","23/05/2018","Waste and Recycling Service","Waste Disposal - General","R5099"
"Wolverhampton City Council","http://opendatacommunities.org/id/metropolitan-district-council/wolverhampton","708793","Wolverhampton Waste Services Limited","W30/18","633,373.75","TPP - Other contractors","130214847","23/05/2018","Waste and Recycling Service","Waste Disposal - General","R5099"
"Wolverhampton City Council","http://opendatacommunities.org/id/metropolitan-district-council/wolverhampton","708793","Wolverhampton Waste Services Limited","W28/18","70,557.00","TPP - Other contractors","130214176","18/05/2018","Waste and Recycling Service","Waste Disposal - General","R5099"
"Wolverhampton City Council","http://opendatacommunities.org/id/metropolitan-district-council/wolverhampton","708793","Wolverhampton Waste Services Limited","W26/18","29,607.00","TPP - Other contractors","130214174","18/05/2018","Waste and Recycling Service","Waste Disposal - General","R5099"
"Wolverhampton City Council","http://opendatacommunities.org/id/metropolitan-district-council/wolverhampton","708793","Wolverhampton Waste Services Limited","W30B/18","633,373.75","TPP - Other contractors","130215429","23/05/2018","Waste and Recycling Service","Waste Disposal - General","R5099"
"Wolverhampton City Council","http://opendatacommunities.org/id/metropolitan-district-council/wolverhampton","708798","Wolverhampton Ymca "Temple Street"","P17462320180529","2,248.29","TPP - Accommodation","190463761","30/05/2018","Looked After Children","LAC Transitions Team","R5603"
"Wolverhampton City Council","http://opendatacommunities.org/id/metropolitan-district-council/wolverhampton","708827","Wyre Forest School (Worc. County Council)","P17462020180529","600.00","Grant Payments to Individuals","190463756","30/05/2018","Looked After Children","LAC Education Team (LACE)","R6402"
"Wolverhampton City Council","http://opendatacommunities.org/id/metropolitan-district-council/wolverhampton","708827","Wyre Forest School (Worc. County Council)","P17462020180529","600.00","Grant Payments to Individuals","190463756","30/05/2018","Looked After Children","LAC Education Team (LACE)","R6402"
"Wolverhampton City Council","http://opendatacommunities.org/id/metropolitan-district-council/wolverhampton","708827","Wyre Forest School (Worc. County Council)","P17462020180529","600.00","Grant Payments to Individuals","190463756","30/05/2018","Looked After Children","LAC Education Team (LACE)","R6402"
"Wolverhampton City Council","http://opendatacommunities.org/id/metropolitan-district-council/wolverhampton","708862","Xerox (UK) Limited","900172447","18,905.13","Equipment - Hire","130215140","30/05/2018","ICTS","Document Centre - General","R4001"
"Wolverhampton City Council","http://opendatacommunities.org/id/metropolitan-district-council/wolverhampton","708862","Xerox (UK) Limited","PSMI-9000010","-627.41","Equipment - Hire","130211686","30/05/2018","ICTS","Document Centre - General","R4001"
"Wolverhampton City Council","http://opendatacommunities.org/id/metropolitan-district-council/wolverhampton","708865","XMA Limited","CP59419","17,632.00","Plant, Equipment, Machinery & Computer Hardware","130214024","16/05/2018","-","ICT Desktop Refresh","C3000"
"Wolverhampton City Council","http://opendatacommunities.org/id/metropolitan-district-council/wolverhampton","708865","XMA Limited","BW04993","1,282.75","Computing - Purchase of Hardware","130188702","09/05/2018","ICTS","Strategic ICTS (ICT Service Budget)","R4530"
"Wolverhampton City Council","http://opendatacommunities.org/id/metropolitan-district-council/wolverhampton","708886","Ymca City Tots","6890","847.50","TPP - Child Care provided for client","130217531","30/05/2018","Adult Education","24+ Advanced Learning Loan","R5034"
"Wolverhampton City Council","http://opendatacommunities.org/id/metropolitan-district-council/wolverhampton","708886","Ymca City Tots","6888","390.00","TPP - Child Care provided for client","130217529","30/05/2018","Adult Education","Discretionary Fund","R5034"
"Wolverhampton City Council","http://opendatacommunities.org/id/metropolitan-district-council/wolverhampton","708886","Ymca City Tots","6889","780.00","TPP - Child Care provided for client","130217530","30/05/2018","Adult Education","Discretionary Fund","R5034"
"Wolverhampton City Council","http://opendatacommunities.org/id/metropolitan-district-council/wolverhampton","708904","Youth Justice Board England & Wales","P172090 06051820180427","536.00","TPP - Residential Care - Long Term","190452436","02/05/2018","Looked After Children","Remand / Secure Accommodation","R5400"
"Wolverhampton City Council","http://opendatacommunities.org/id/metropolitan-district-council/wolverhampton","708904","Youth Justice Board England & Wales","P172090 06051820180427","6,968.00","TPP - Residential Care - Long Term","190452436","02/05/2018","Looked After Children","Remand / Secure Accommodation","R5400"
"Wolverhampton City Council","http://opendatacommunities.org/id/metropolitan-district-council/wolverhampton","708904","Youth Justice Board England & Wales","P172090 06051820180427","17,949.00","TPP - Residential Care - Long Term","190452436","02/05/2018","Looked After Children","Remand / Secure Accommodation","R5400"
"Wolverhampton City Council","http://opendatacommunities.org/id/metropolitan-district-council/wolverhampton","708904","Youth Justice Board England & Wales","P172090 06051820180427","2,483.00","TPP - Residential Care - Long Term","190452436","02/05/2018","Looked After Children","Remand / Secure Accommodation","R5400"
"Wolverhampton City Council","http://opendatacommunities.org/id/metropolitan-district-council/wolverhampton","708904","Youth Justice Board England & Wales","P172090 06051820180427","17,949.00","TPP - Residential Care - Long Term","190452436","02/05/2018","Looked After Children","Remand / Secure Accommodation","R5400"
"Wolverhampton City Council","http://opendatacommunities.org/id/metropolitan-district-council/wolverhampton","708904","Youth Justice Board England & Wales","P172090 06051820180427","1,337.00","TPP - Residential Care - Long Term","190452436","02/05/2018","Looked After Children","Remand / Secure Accommodation","R5400"
"Wolverhampton City Council","http://opendatacommunities.org/id/metropolitan-district-council/wolverhampton","708904","Youth Justice Board England & Wales","P172890 13051820180504","2,292.00","TPP - Residential Care - Long Term","190454813","09/05/2018","Looked After Children","Remand / Secure Accommodation","R5400"
"Wolverhampton City Council","http://opendatacommunities.org/id/metropolitan-district-council/wolverhampton","708904","Youth Justice Board England & Wales","P172890 13051820180504","4,202.00","TPP - Residential Care - Long Term","190454813","09/05/2018","Looked After Children","Remand / Secure Accommodation","R5400"
"Wolverhampton City Council","http://opendatacommunities.org/id/metropolitan-district-council/wolverhampton","708904","Youth Justice Board England & Wales","P172890 13051820180504","2,674.00","TPP - Residential Care - Long Term","190454813","09/05/2018","Looked After Children","Remand / Secure Accommodation","R5400"
"Wolverhampton City Council","http://opendatacommunities.org/id/metropolitan-district-council/wolverhampton","708978","2Simple Software Limited","431940","562.50","Computing - Purchase of Software","130216560","30/05/2018","School Planning & Resources","Learning Technologies","R4531"
"Wolverhampton City Council","http://opendatacommunities.org/id/metropolitan-district-council/wolverhampton","709154","A And A Automatics Limited","9339","166.00","R&M - Departmental planned (external)","130217302","25/05/2018","Facilities Management","Culwell Street Depot","R2001"
"Wolverhampton City Council","http://opendatacommunities.org/id/metropolitan-district-council/wolverhampton","709264","A D C S Limited","5818","780.00","Training Expenses","130215297","30/05/2018","Public Service Reform","Workforce Development","R1650"
"Wolverhampton City Council","http://opendatacommunities.org/id/metropolitan-district-council/wolverhampton","709704","A.B.C.- Countdown Cars Limited","4716","23.00","Client Transport","130212857","02/05/2018","Child Protection","CIN/CP Social Work Unit - Area 6","R3042"
"Wolverhampton City Council","http://opendatacommunities.org/id/metropolitan-district-council/wolverhampton","709704","A.B.C.- Countdown Cars Limited","4709","373.50","TPP - Alternative Provision of Education","130212856","04/05/2018","Specialist Support","Alternative Provision","R5037"
"Wolverhampton City Council","http://opendatacommunities.org/id/metropolitan-district-council/wolverhampton","709704","A.B.C.- Countdown Cars Limited","4849","61.00","Client Transport","130216265","23/05/2018","Specialist Support","Upper Pendeford Farm Short Breaks Centre","R3042"
"Wolverhampton City Council","http://opendatacommunities.org/id/metropolitan-district-council/wolverhampton","709704","A.B.C.- Countdown Cars Limited","4847","14.00","Client Transport","130216264","23/05/2018","Learning Disability Provider","Duke Street Bungalows","R3042"
"Wolverhampton City Council","http://opendatacommunities.org/id/metropolitan-district-council/wolverhampton","710375","Access Hire Nationwide Limited","71622","30.80","Hire of Vehicles","190462866","25/05/2018","Fleet Services","Fleet Management","R3200"
"Wolverhampton City Council","http://opendatacommunities.org/id/metropolitan-district-council/wolverhampton","710375","Access Hire Nationwide Limited","72220","1,180.00","Hire of Vehicles","190455262","09/05/2018","Fleet Services","Fleet Management","R3200"
"Wolverhampton City Council","http://opendatacommunities.org/id/metropolitan-district-council/wolverhampton","710375","Access Hire Nationwide Limited","72224","672.00","Provisions (Resale)","130216267","25/05/2018","Highways Maintenance","Planned Highways Maintenance","R4102"
"Wolverhampton City Council","http://opendatacommunities.org/id/metropolitan-district-council/wolverhampton","710375","Access Hire Nationwide Limited","72219","1,180.00","Hire of Vehicles","190455261","09/05/2018","Fleet Services","Fleet Management","R3200"
"Wolverhampton City Council","http://opendatacommunities.org/id/metropolitan-district-council/wolverhampton","710375","Access Hire Nationwide Limited","72221","1,160.00","Hire of Vehicles","190455263","09/05/2018","Fleet Services","Fleet Management","R3200"
"Wolverhampton City Council","http://opendatacommunities.org/id/metropolitan-district-council/wolverhampton","710375","Access Hire Nationwide Limited","71536","704.00","Provisions (Resale)","130213596","04/05/2018","Highways Maintenance","Planned Highways Maintenance","R4102"
"Wolverhampton City Council","http://opendatacommunities.org/id/metropolitan-district-council/wolverhampton","710375","Access Hire Nationwide Limited","69736","85.30","Hire of Vehicles","190462865","25/05/2018","Fleet Services","Fleet Management","R3200"
"Wolverhampton City Council","http://opendatacommunities.org/id/metropolitan-district-council/wolverhampton","710375","Access Hire Nationwide Limited","71712","30.00","Hire of Vehicles","190455260","09/05/2018","Fleet Services","Fleet Management","R3200"
"Wolverhampton City Council","http://opendatacommunities.org/id/metropolitan-district-council/wolverhampton","710375","Access Hire Nationwide Limited","72222","1,160.00","Hire of Vehicles","190455264","09/05/2018","Fleet Services","Fleet Management","R3200"
"Wolverhampton City Council","http://opendatacommunities.org/id/metropolitan-district-council/wolverhampton","710375","Access Hire Nationwide Limited","71537","704.00","Provisions (Resale)","130213597","04/05/2018","Highways Maintenance","Planned Highways Maintenance","R4102"
"Wolverhampton City Council","http://opendatacommunities.org/id/metropolitan-district-council/wolverhampton","710375","Access Hire Nationwide Limited","72223","672.00","Provisions (Resale)","130216266","25/05/2018","Highways Maintenance","Planned Highways Maintenance","R4102"
"Wolverhampton City Council","http://opendatacommunities.org/id/metropolitan-district-council/wolverhampton","710479","EON","114970","686.00","Materials","130215738","30/05/2018","Street Lighting","Signs Illuminated","R4007"
"Wolverhampton City Council","http://opendatacommunities.org/id/metropolitan-district-council/wolverhampton","710479","EON","114969","9,282.00","Materials","130215737","30/05/2018","Street Lighting","Signs Illuminated","R4007"
"Wolverhampton City Council","http://opendatacommunities.org/id/metropolitan-district-council/wolverhampton","710507","Assoc.Board Royal Schools Of Music","B18/68163","1,045.00","Exam Expenses (Non-Employee)","130217156","25/05/2018","School Planning & Resources","Music Support Team","R4630"
"Wolverhampton City Council","http://opendatacommunities.org/id/metropolitan-district-council/wolverhampton","710510","Rockschool Music Limited","319","2,000.00","Services - Professional Fees","130214853","04/05/2018","School Planning & Resources","Music Support Team","R4400"
"Wolverhampton City Council","http://opendatacommunities.org/id/metropolitan-district-council/wolverhampton","710569","British Gas Business","280822724","1,852.44","Electricity","190460861","23/05/2018","Corporate Asset Management","Central Utilities to Recharge","R2100"
"Wolverhampton City Council","http://opendatacommunities.org/id/metropolitan-district-council/wolverhampton","710569","British Gas Business","280822724LP","89.99","Electricity","190460862","23/05/2018","Corporate Asset Management","Central Utilities to Recharge","R2100"
"Wolverhampton City Council","http://opendatacommunities.org/id/metropolitan-district-council/wolverhampton","710573","Western Power Distribution (West Mids) t/a Western Power Distribution","KP00142144","557.19","TPP - Maintenance on Other Roads","130215142","16/05/2018","Street Lighting","Street Lighting Maintenance","R5710"
"Wolverhampton City Council","http://opendatacommunities.org/id/metropolitan-district-council/wolverhampton","710573","Western Power Distribution (West Mids) t/a Western Power Distribution","KP00142174","639.37","TPP - Maintenance on Other Roads","130215144","18/05/2018","Street Lighting","Signs Illuminated","R5710"
"Wolverhampton City Council","http://opendatacommunities.org/id/metropolitan-district-council/wolverhampton","710573","Western Power Distribution (West Mids) t/a Western Power Distribution","KP00141511","540.96","TPP - Maintenance on Other Roads","130212139","02/05/2018","Street Lighting","Street Lighting Maintenance","R5710"
"Wolverhampton City Council","http://opendatacommunities.org/id/metropolitan-district-council/wolverhampton","710573","Western Power Distribution (West Mids) t/a Western Power Distribution","KI00139247","579.74","TPP - Maintenance on Other Roads","130213900","16/05/2018","Street Lighting","Street Lighting Maintenance","R5710"
"Wolverhampton City Council","http://opendatacommunities.org/id/metropolitan-district-council/wolverhampton","710573","Western Power Distribution (West Mids) t/a Western Power Distribution","KP00141859","557.19","TPP - Maintenance on Other Roads","130213775","09/05/2018","Street Lighting","Street Lighting Maintenance","R5710"
"Wolverhampton City Council","http://opendatacommunities.org/id/metropolitan-district-council/wolverhampton","710573","Western Power Distribution (West Mids) t/a Western Power Distribution","KP00141510","639.78","TPP - Maintenance on Other Roads","130212138","02/05/2018","Street Lighting","Street Lighting Maintenance","R5710"
"Wolverhampton City Council","http://opendatacommunities.org/id/metropolitan-district-council/wolverhampton","710573","Western Power Distribution (West Mids) t/a Western Power Distribution","KP00142232","509.19","TPP - Maintenance on Other Roads","130215298","23/05/2018","Maintenance Programme","Centralised R&M","R5710"
"Wolverhampton City Council","http://opendatacommunities.org/id/metropolitan-district-council/wolverhampton","710573","Western Power Distribution (West Mids) t/a Western Power Distribution","KP00142478","593.91","TPP - Maintenance on Other Roads","130215430","30/05/2018","Corporate Asset Management","Strategic Asset Management Team","R5710"
"Wolverhampton City Council","http://opendatacommunities.org/id/metropolitan-district-council/wolverhampton","710573","Western Power Distribution (West Mids) t/a Western Power Distribution","KP00142084","989.54","TPP - Maintenance on Other Roads","130215141","16/05/2018","Street Lighting","Street Lighting Maintenance","R5710"
"Wolverhampton City Council","http://opendatacommunities.org/id/metropolitan-district-council/wolverhampton","710573","Western Power Distribution (West Mids) t/a Western Power Distribution","KP00142171","824.52","TPP - Maintenance on Other Roads","130215143","18/05/2018","Street Lighting","Street Lighting Maintenance","R5710"
"Wolverhampton City Council","http://opendatacommunities.org/id/metropolitan-district-council/wolverhampton","710573","Western Power Distribution (West Mids) t/a Western Power Distribution","KP00141842","11,281.75","TPP - Maintenance on Other Roads","130213010","09/05/2018","Street Lighting","Street Lighting Maintenance","R5710"
"Wolverhampton City Council","http://opendatacommunities.org/id/metropolitan-district-council/wolverhampton","710573","Western Power Distribution (West Mids) t/a Western Power Distribution","KI00139150","1,361.67","TPP - Maintenance on Other Roads","130212859","02/05/2018","Street Lighting","Street Lighting Maintenance","R5710"
"Wolverhampton City Council","http://opendatacommunities.org/id/metropolitan-district-council/wolverhampton","710573","Western Power Distribution (West Mids) t/a Western Power Distribution","KP00142189","639.78","TPP - Maintenance on Other Roads","130215145","18/05/2018","Street Lighting","Street Lighting Maintenance","R5710"
"Wolverhampton City Council","http://opendatacommunities.org/id/metropolitan-district-council/wolverhampton","710573","Western Power Distribution (West Mids) t/a Western Power Distribution","KP00141562","420.55","TPP - Maintenance on Other Roads","130212860","02/05/2018","Street Lighting","Street Lighting Maintenance","R5710"
"Wolverhampton City Council","http://opendatacommunities.org/id/metropolitan-district-council/wolverhampton","710600","E H Smith Builders Merchant LTD","CAI973918","506.25","Materials","130215299","30/05/2018","Highways Maintenance","Patching","R4007"
"Wolverhampton City Council","http://opendatacommunities.org/id/metropolitan-district-council/wolverhampton","710600","E H Smith Builders Merchant LTD","LYI983311","168.00","Materials","130212861","02/05/2018","Highways Maintenance","Patching","R4007"
"Wolverhampton City Council","http://opendatacommunities.org/id/metropolitan-district-council/wolverhampton","710600","E H Smith Builders Merchant LTD","LYC309695","-32.00","Materials","130213417","30/05/2018","Highways Maintenance","Patching","R4007"
"Wolverhampton City Council","http://opendatacommunities.org/id/metropolitan-district-council/wolverhampton","710600","E H Smith Builders Merchant LTD","CAI973999","1,002.40","Materials","130215431","30/05/2018","Highways Maintenance","Patching","R4007"
"Wolverhampton City Council","http://opendatacommunities.org/id/metropolitan-district-council/wolverhampton","710610","Dr A Sharma","L&A002MAR2018","2,886.00","Services - Professional Fees","130213418","04/05/2018","Bereavement Services","Crematorium","R4400"
"Wolverhampton City Council","http://opendatacommunities.org/id/metropolitan-district-council/wolverhampton","710610","Dr A Sharma","MAY001LED","2,571.50","Services - Professional Fees","130215606","30/05/2018","Bereavement Services","Crematorium","R4400"
"Wolverhampton City Council","http://opendatacommunities.org/id/metropolitan-district-council/wolverhampton","710640","Turner & Townsend Project Management LTD","000578421","16,441.61","Construction and Conversion","130213901","16/05/2018","-","Future Spaces","C1100"
"Wolverhampton City Council","http://opendatacommunities.org/id/metropolitan-district-council/wolverhampton","710640","Turner & Townsend Project Management LTD","000578422","5,280.00","Construction and Conversion","130213902","16/05/2018","-","Future Spaces","C1100"
"Wolverhampton City Council","http://opendatacommunities.org/id/metropolitan-district-council/wolverhampton","710640","Turner & Townsend Project Management LTD","000823813","2,160.00","External Professional Fees","130215432","25/05/2018","-","GF - Interchange - Ph2 Train Station/MSCP/Metro Extension","C6002"
"Wolverhampton City Council","http://opendatacommunities.org/id/metropolitan-district-council/wolverhampton","710664","NonStop Recruitment LTD","138233","1,295.00","Agency Staff","130200280","23/05/2018","Child Protection","CIN/CP Social Work Unit - Area 1","R1100"
"Wolverhampton City Council","http://opendatacommunities.org/id/metropolitan-district-council/wolverhampton","710664","NonStop Recruitment LTD","144825","18.80","Agency Staff","130207585","16/05/2018","Looked After Children","Adoption and Residence Team & Allowances","R1100"
"Wolverhampton City Council","http://opendatacommunities.org/id/metropolitan-district-council/wolverhampton","710664","NonStop Recruitment LTD","144179","1,303.88","Agency Staff","130205145","09/05/2018","Looked After Children","Adoption and Residence Team & Allowances","R1100"
"Wolverhampton City Council","http://opendatacommunities.org/id/metropolitan-district-council/wolverhampton","710664","NonStop Recruitment LTD","146160","1,295.00","Agency Staff","130212683","02/05/2018","Child Protection","CIN/CP Social Work Unit - Area 1","R1100"
"Wolverhampton City Council","http://opendatacommunities.org/id/metropolitan-district-council/wolverhampton","710664","NonStop Recruitment LTD","146518","1,303.88","Agency Staff","130214032","02/05/2018","Looked After Children","Adoption and Residence Team & Allowances","R1100"
"Wolverhampton City Council","http://opendatacommunities.org/id/metropolitan-district-council/wolverhampton","710664","NonStop Recruitment LTD","144180","1,303.88","Agency Staff","130205146","09/05/2018","Looked After Children","Adoption and Residence Team & Allowances","R1100"
"Wolverhampton City Council","http://opendatacommunities.org/id/metropolitan-district-council/wolverhampton","710664","NonStop Recruitment LTD","144818","1,057.20","Agency Staff","130207578","02/05/2018","Looked After Children","Adoption and Residence Team & Allowances","R1100"
"Wolverhampton City Council","http://opendatacommunities.org/id/metropolitan-district-council/wolverhampton","710664","NonStop Recruitment LTD","146456","1,295.00","Agency Staff","130213776","02/05/2018","Child Protection","CIN/CP Social Work Unit - Area 1","R1100"
"Wolverhampton City Council","http://opendatacommunities.org/id/metropolitan-district-council/wolverhampton","710664","NonStop Recruitment LTD","146519","1,303.88","Agency Staff","130214033","02/05/2018","Looked After Children","Adoption and Residence Team & Allowances","R1100"
"Wolverhampton City Council","http://opendatacommunities.org/id/metropolitan-district-council/wolverhampton","710664","NonStop Recruitment LTD","146756","1,295.00","Agency Staff","130214667","23/05/2018","Child Protection","CIN/CP Social Work Unit - Area 1","R1100"
"Wolverhampton City Council","http://opendatacommunities.org/id/metropolitan-district-council/wolverhampton","710664","NonStop Recruitment LTD","146899","1,312.50","Agency Staff","130214854","25/05/2018","Child Protection","CIN/CP Social Work Unit - Area 1","R1100"
"Wolverhampton City Council","http://opendatacommunities.org/id/metropolitan-district-council/wolverhampton","710664","NonStop Recruitment LTD","144817","1,303.88","Agency Staff","130207577","16/05/2018","Looked After Children","Adoption and Residence Team & Allowances","R1100"
"Wolverhampton City Council","http://opendatacommunities.org/id/metropolitan-district-council/wolverhampton","710664","NonStop Recruitment LTD","145815","1,312.50","Agency Staff","130211167","09/05/2018","Child Protection","CIN/CP Social Work Unit - Area 1","R1100"
"Wolverhampton City Council","http://opendatacommunities.org/id/metropolitan-district-council/wolverhampton","710664","NonStop Recruitment LTD","144544","1,303.88","Agency Staff","130206571","02/05/2018","Child Protection","CIN/CP Social Work Unit - Area 1","R1100"
"Wolverhampton City Council","http://opendatacommunities.org/id/metropolitan-district-council/wolverhampton","710664","NonStop Recruitment LTD","144544","-1,303.88","Agency Staff","130206571","02/05/2018","Child Protection","CIN/CP Social Work Unit - Area 1","R1100"
"Wolverhampton City Council","http://opendatacommunities.org/id/metropolitan-district-council/wolverhampton","710664","NonStop Recruitment LTD","144544","1,312.50","Agency Staff","130206571","02/05/2018","Child Protection","CIN/CP Social Work Unit - Area 1","R1100"
"Wolverhampton City Council","http://opendatacommunities.org/id/metropolitan-district-council/wolverhampton","710664","NonStop Recruitment LTD","142753","1,303.90","Agency Staff","130200291","02/05/2018","Child Protection","CIN/CP Social Work Unit - Area 2","R1100"
"Wolverhampton City Council","http://opendatacommunities.org/id/metropolitan-district-council/wolverhampton","710664","NonStop Recruitment LTD","142753","-1,303.90","Agency Staff","130200291","02/05/2018","Child Protection","CIN/CP Social Work Unit - Area 2","R1100"
"Wolverhampton City Council","http://opendatacommunities.org/id/metropolitan-district-council/wolverhampton","710664","NonStop Recruitment LTD","142753","1,295.00","Agency Staff","130200291","02/05/2018","Child Protection","CIN/CP Social Work Unit - Area 2","R1100"
"Wolverhampton City Council","http://opendatacommunities.org/id/metropolitan-district-council/wolverhampton","710664","NonStop Recruitment LTD","146757","1,295.00","Agency Staff","130214668","23/05/2018","Child Protection","CIN/CP Social Work Unit - Area 1","R1100"
"Wolverhampton City Council","http://opendatacommunities.org/id/metropolitan-district-council/wolverhampton","710664","NonStop Recruitment LTD","144178","1,039.58","Agency Staff","130205144","09/05/2018","Looked After Children","Adoption and Residence Team & Allowances","R1100"
"Wolverhampton City Council","http://opendatacommunities.org/id/metropolitan-district-council/wolverhampton","710664","NonStop Recruitment LTD","144181","1,303.88","Agency Staff","130205147","09/05/2018","Looked After Children","Adoption and Residence Team & Allowances","R1100"
"Wolverhampton City Council","http://opendatacommunities.org/id/metropolitan-district-council/wolverhampton","710664","NonStop Recruitment LTD","143738","-1,303.88","Agency Staff","130203418","02/05/2018","Child Protection","CIN/CP Social Work Unit - Area 1","R1100"
"Wolverhampton City Council","http://opendatacommunities.org/id/metropolitan-district-council/wolverhampton","710664","NonStop Recruitment LTD","143738","1,312.50","Agency Staff","130203418","02/05/2018","Child Protection","CIN/CP Social Work Unit - Area 1","R1100"
"Wolverhampton City Council","http://opendatacommunities.org/id/metropolitan-district-council/wolverhampton","710664","NonStop Recruitment LTD","143738","1,303.88","Agency Staff","130203418","02/05/2018","Child Protection","CIN/CP Social Work Unit - Area 1","R1100"
"Wolverhampton City Council","http://opendatacommunities.org/id/metropolitan-district-council/wolverhampton","710664","NonStop Recruitment LTD","146457","1,295.00","Agency Staff","130213777","02/05/2018","Child Protection","CIN/CP Social Work Unit - Area 1","R1100"
"Wolverhampton City Council","http://opendatacommunities.org/id/metropolitan-district-council/wolverhampton","710664","NonStop Recruitment LTD","146520","1,303.88","Agency Staff","130214034","02/05/2018","Looked After Children","Adoption and Residence Team & Allowances","R1100"
"Wolverhampton City Council","http://opendatacommunities.org/id/metropolitan-district-council/wolverhampton","710664","NonStop Recruitment LTD","143184","1,312.50","Agency Staff","130200996","04/05/2018","Child Protection","CIN/CP Social Work Unit - Area 1","R1100"
"Wolverhampton City Council","http://opendatacommunities.org/id/metropolitan-district-council/wolverhampton","710725","SS Mary & Johns Catholic Primary School","P17289120180504","600.00","Grant Payments to Individuals","190454802","09/05/2018","Looked After Children","LAC Education Team (LACE)","R6402"
"Wolverhampton City Council","http://opendatacommunities.org/id/metropolitan-district-council/wolverhampton","710725","SS Mary & Johns Catholic Primary School","P17289120180504","600.00","Grant Payments to Individuals","190454802","09/05/2018","Looked After Children","LAC Education Team (LACE)","R6402"
"Wolverhampton City Council","http://opendatacommunities.org/id/metropolitan-district-council/wolverhampton","710747","DW Shotton Landscapes LTD","18/068","1,300.00","R&M - Departmental planned (external)","130214856","23/05/2018","Environmental Maintenance","Parks / Open Spaces - Repairs & Maintenance","R2001"
"Wolverhampton City Council","http://opendatacommunities.org/id/metropolitan-district-council/wolverhampton","710747","DW Shotton Landscapes LTD","18/067","5,497.10","R&M - Departmental planned (external)","130214855","02/05/2018","Environmental Maintenance","Parks / Open Spaces - Repairs & Maintenance","R2001"
"Wolverhampton City Council","http://opendatacommunities.org/id/metropolitan-district-council/wolverhampton","710748","TV Licensing","2391528968.","150.50","Services - General Licences","190455518","11/05/2018","Older People Provider Services","Bradley Lodge Resource Centre","R4402"
"Wolverhampton City Council","http://opendatacommunities.org/id/metropolitan-district-council/wolverhampton","710756","Phoenix Software Ltd","OP/I811490","216.51","Computing - Purchase of Hardware","130201000","25/05/2018","School Planning & Resources","Technical Support","R4530"
"Wolverhampton City Council","http://opendatacommunities.org/id/metropolitan-district-council/wolverhampton","710780","Wilson & Scott (Highways) LTD","26928","6,236.82","Construction and Conversion","130215300","25/05/2018","-","Safety Programme","C1100"
"Wolverhampton City Council","http://opendatacommunities.org/id/metropolitan-district-council/wolverhampton","710780","Wilson & Scott (Highways) LTD","26828","7,741.94","TPP - Maintenance on Principal Roads","130212865","09/05/2018","Highways Maintenance","Road Markings","R5700"
"Wolverhampton City Council","http://opendatacommunities.org/id/metropolitan-district-council/wolverhampton","710780","Wilson & Scott (Highways) LTD","26917","473.39","Construction and Conversion","130214858","25/05/2018","-","Safety Programme","C1100"
"Wolverhampton City Council","http://opendatacommunities.org/id/metropolitan-district-council/wolverhampton","710780","Wilson & Scott (Highways) LTD","26916","4,285.20","TPP - Maintenance on Principal Roads","130214857","25/05/2018","Highways Maintenance","Road Markings","R5700"
"Wolverhampton City Council","http://opendatacommunities.org/id/metropolitan-district-council/wolverhampton","710780","Wilson & Scott (Highways) LTD","26827","1,521.27","TPP - Maintenance on Principal Roads","130212864","09/05/2018","Highways Maintenance","Road Markings","R5700"
"Wolverhampton City Council","http://opendatacommunities.org/id/metropolitan-district-council/wolverhampton","710780","Wilson & Scott (Highways) LTD","26826","260.78","Construction and Conversion","130212863","09/05/2018","-","Safety Programme","C1100"
"Wolverhampton City Council","http://opendatacommunities.org/id/metropolitan-district-council/wolverhampton","710780","Wilson & Scott (Highways) LTD","26983","1,987.00","Construction and Conversion","130215608","25/05/2018","-","Safety Programme","C1100"
"Wolverhampton City Council","http://opendatacommunities.org/id/metropolitan-district-council/wolverhampton","710786","St Judes C of E Primary Academy","P17289120180504","600.00","Grant Payments to Individuals","190454802","09/05/2018","Looked After Children","LAC Education Team (LACE)","R6402"
"Wolverhampton City Council","http://opendatacommunities.org/id/metropolitan-district-council/wolverhampton","710786","St Judes C of E Primary Academy","St Judes CE Academy Early Years Payment Spring Term Final 1718","28,291.83","Grant Payments","190458587","18/05/2018","Schools","Academy Early years","R4700"
"Wolverhampton City Council","http://opendatacommunities.org/id/metropolitan-district-council/wolverhampton","710795","The Dudley Group NHS Foundation Trust","2000005403","234.00","TPP - Public Health Contracts","130215302","04/05/2018","Contracts","Sexual Health","R5060"
"Wolverhampton City Council","http://opendatacommunities.org/id/metropolitan-district-council/wolverhampton","710795","The Dudley Group NHS Foundation Trust","2000005443","3,432.00","TPP - Public Health Contracts","130215304","04/05/2018","Contracts","Sexual Health","R5060"
"Wolverhampton City Council","http://opendatacommunities.org/id/metropolitan-district-council/wolverhampton","710795","The Dudley Group NHS Foundation Trust","2000005402","4,826.00","TPP - Public Health Contracts","130215301","04/05/2018","Contracts","Sexual Health","R5060"
"Wolverhampton City Council","http://opendatacommunities.org/id/metropolitan-district-council/wolverhampton","710795","The Dudley Group NHS Foundation Trust","2000005507","468.00","TPP - Public Health Contracts","130216567","23/05/2018","Contracts","Sexual Health","R5060"
"Wolverhampton City Council","http://opendatacommunities.org/id/metropolitan-district-council/wolverhampton","710795","The Dudley Group NHS Foundation Trust","2000005506","5,159.00","TPP - Public Health Contracts","130216982","23/05/2018","Contracts","Sexual Health","R5060"
"Wolverhampton City Council","http://opendatacommunities.org/id/metropolitan-district-council/wolverhampton","710795","The Dudley Group NHS Foundation Trust","2000005444","780.00","TPP - Public Health Contracts","130215305","04/05/2018","Contracts","Sexual Health","R5060"
"Wolverhampton City Council","http://opendatacommunities.org/id/metropolitan-district-council/wolverhampton","710795","The Dudley Group NHS Foundation Trust","2000005421","5,708.00","TPP - Public Health Contracts","130215303","04/05/2018","Contracts","Sexual Health","R5060"
"Wolverhampton City Council","http://opendatacommunities.org/id/metropolitan-district-council/wolverhampton","710804","Worcester Health & Care","T027064 GUM M11 2018","133.00","TPP - Public Health Contracts","190463604","30/05/2018","Contracts","Sexual Health","R5060"
"Wolverhampton City Council","http://opendatacommunities.org/id/metropolitan-district-council/wolverhampton","710804","Worcester Health & Care","T027468 GUM March 18","266.00","TPP - Public Health Contracts","190463608","30/05/2018","Contracts","Sexual Health","R5060"
"Wolverhampton City Council","http://opendatacommunities.org/id/metropolitan-district-council/wolverhampton","710828","Andrew Page","061455293","62.28","Equipment - Purchase","190456487","11/05/2018","Fleet Services","Fleet Management","R4000"
"Wolverhampton City Council","http://opendatacommunities.org/id/metropolitan-district-council/wolverhampton","710828","Andrew Page","061455293","22.53","Equipment - Purchase","190456487","11/05/2018","Fleet Services","Fleet Management","R4000"
"Wolverhampton City Council","http://opendatacommunities.org/id/metropolitan-district-council/wolverhampton","710828","Andrew Page","061458082","60.49","Equipment - Purchase","190461307","23/05/2018","Fleet Services","Fleet Management","R4000"
"Wolverhampton City Council","http://opendatacommunities.org/id/metropolitan-district-council/wolverhampton","710828","Andrew Page","061458660","38.60","Equipment - Purchase","190462841","25/05/2018","Fleet Services","Fleet Management","R4000"
"Wolverhampton City Council","http://opendatacommunities.org/id/metropolitan-district-council/wolverhampton","710828","Andrew Page","061460052","187.98","Equipment - Purchase","190462842","25/05/2018","Fleet Services","Fleet Management","R4000"
"Wolverhampton City Council","http://opendatacommunities.org/id/metropolitan-district-council/wolverhampton","710828","Andrew Page","061455149","61.36","Equipment - Purchase","190458169","16/05/2018","Fleet Services","Fleet Management","R4000"
"Wolverhampton City Council","http://opendatacommunities.org/id/metropolitan-district-council/wolverhampton","710828","Andrew Page","061455459","80.00","Equipment - Purchase","190458171","16/05/2018","Fleet Services","Fleet Management","R4000"
"Wolverhampton City Council","http://opendatacommunities.org/id/metropolitan-district-council/wolverhampton","710828","Andrew Page","061455459","18.00","Equipment - Purchase","190458171","16/05/2018","Fleet Services","Fleet Management","R4000"
"Wolverhampton City Council","http://opendatacommunities.org/id/metropolitan-district-council/wolverhampton","710828","Andrew Page","061453381","8.78","Equipment - Purchase","190458163","16/05/2018","Fleet Services","Fleet Management","R4000"
"Wolverhampton City Council","http://opendatacommunities.org/id/metropolitan-district-council/wolverhampton","710828","Andrew Page","061454604","29.09","Equipment - Purchase","190458165","16/05/2018","Fleet Services","Fleet Management","R4000"
"Wolverhampton City Council","http://opendatacommunities.org/id/metropolitan-district-council/wolverhampton","710828","Andrew Page","061455459","17.50","Equipment - Purchase","190458171","16/05/2018","Fleet Services","Fleet Management","R4000"
"Wolverhampton City Council","http://opendatacommunities.org/id/metropolitan-district-council/wolverhampton","710828","Andrew Page","061456263","19.70","Equipment - Purchase","190458174","16/05/2018","Fleet Services","Fleet Management","R4000"
"Wolverhampton City Council","http://opendatacommunities.org/id/metropolitan-district-council/wolverhampton","710828","Andrew Page","061456547","45.00","Equipment - Purchase","190458178","16/05/2018","Fleet Services","Fleet Management","R4000"
"Wolverhampton City Council","http://opendatacommunities.org/id/metropolitan-district-council/wolverhampton","710828","Andrew Page","H098061.3","-81.97","Equipment - Purchase","190458216","16/05/2018","Fleet Services","Fleet Management","R4000"
"Wolverhampton City Council","http://opendatacommunities.org/id/metropolitan-district-council/wolverhampton","710828","Andrew Page","061454667","89.10","Equipment - Purchase","190458167","16/05/2018","Fleet Services","Fleet Management","R4000"
"Wolverhampton City Council","http://opendatacommunities.org/id/metropolitan-district-council/wolverhampton","710828","Andrew Page","061455200","9.36","Equipment - Purchase","190458170","16/05/2018","Fleet Services","Fleet Management","R4000"
"Wolverhampton City Council","http://opendatacommunities.org/id/metropolitan-district-council/wolverhampton","710828","Andrew Page","061454512","5.32","Equipment - Purchase","190458164","16/05/2018","Fleet Services","Fleet Management","R4000"
"Wolverhampton City Council","http://opendatacommunities.org/id/metropolitan-district-council/wolverhampton","710828","Andrew Page","061456278","152.00","Equipment - Purchase","190458175","16/05/2018","Fleet Services","Fleet Management","R4000"
"Wolverhampton City Council","http://opendatacommunities.org/id/metropolitan-district-council/wolverhampton","710828","Andrew Page","061456278","67.00","Equipment - Purchase","190458175","16/05/2018","Fleet Services","Fleet Management","R4000"
"Wolverhampton City Council","http://opendatacommunities.org/id/metropolitan-district-council/wolverhampton","710828","Andrew Page","061458103","21.89","Equipment - Purchase","190461308","23/05/2018","Fleet Services","Fleet Management","R4000"
"Wolverhampton City Council","http://opendatacommunities.org/id/metropolitan-district-council/wolverhampton","710828","Andrew Page","061458103","17.39","Equipment - Purchase","190461308","23/05/2018","Fleet Services","Fleet Management","R4000"
"Wolverhampton City Council","http://opendatacommunities.org/id/metropolitan-district-council/wolverhampton","710828","Andrew Page","061458568","8.54","Equipment - Purchase","190462840","25/05/2018","Fleet Services","Fleet Management","R4000"
"Wolverhampton City Council","http://opendatacommunities.org/id/metropolitan-district-council/wolverhampton","710828","Andrew Page","061458335","4.93","Equipment - Purchase","190462839","25/05/2018","Fleet Services","Fleet Management","R4000"
"Wolverhampton City Council","http://opendatacommunities.org/id/metropolitan-district-council/wolverhampton","710828","Andrew Page","061460932","269.98","Equipment - Purchase","190462844","25/05/2018","Fleet Services","Fleet Management","R4000"
"Wolverhampton City Council","http://opendatacommunities.org/id/metropolitan-district-council/wolverhampton","710828","Andrew Page","H098061.2","-17.50","Equipment - Purchase","190458215","16/05/2018","Fleet Services","Fleet Management","R4000"
"Wolverhampton City Council","http://opendatacommunities.org/id/metropolitan-district-council/wolverhampton","710828","Andrew Page","H098061.4","-55.80","Equipment - Purchase","190458217","16/05/2018","Fleet Services","Fleet Management","R4000"
"Wolverhampton City Council","http://opendatacommunities.org/id/metropolitan-district-council/wolverhampton","710828","Andrew Page","061454664","45.00","Equipment - Purchase","190458166","16/05/2018","Fleet Services","Fleet Management","R4000"
"Wolverhampton City Council","http://opendatacommunities.org/id/metropolitan-district-council/wolverhampton","710828","Andrew Page","061454664","75.32","Equipment - Purchase","190458166","16/05/2018","Fleet Services","Fleet Management","R4000"
"Wolverhampton City Council","http://opendatacommunities.org/id/metropolitan-district-council/wolverhampton","710828","Andrew Page","061454832","43.00","Equipment - Purchase","190458168","16/05/2018","Fleet Services","Fleet Management","R4000"
"Wolverhampton City Council","http://opendatacommunities.org/id/metropolitan-district-council/wolverhampton","710828","Andrew Page","061456498","55.80","Equipment - Purchase","190458177","16/05/2018","Fleet Services","Fleet Management","R4000"
"Wolverhampton City Council","http://opendatacommunities.org/id/metropolitan-district-council/wolverhampton","710828","Andrew Page","061456082","81.97","Equipment - Purchase","190458173","16/05/2018","Fleet Services","Fleet Management","R4000"
"Wolverhampton City Council","http://opendatacommunities.org/id/metropolitan-district-council/wolverhampton","710828","Andrew Page","061460913","4.93","Equipment - Purchase","190462843","25/05/2018","Fleet Services","Fleet Management","R4000"
"Wolverhampton City Council","http://opendatacommunities.org/id/metropolitan-district-council/wolverhampton","710828","Andrew Page","H098061.1","-45.00","Equipment - Purchase","190458214","16/05/2018","Fleet Services","Fleet Management","R4000"
"Wolverhampton City Council","http://opendatacommunities.org/id/metropolitan-district-council/wolverhampton","710828","Andrew Page","016454625","150.00","Equipment - Purchase","190458162","16/05/2018","Fleet Services","Fleet Management","R4000"
"Wolverhampton City Council","http://opendatacommunities.org/id/metropolitan-district-council/wolverhampton","710828","Andrew Page","016453357","42.41","Equipment - Purchase","190458161","16/05/2018","Fleet Services","Fleet Management","R4000"
"Wolverhampton City Council","http://opendatacommunities.org/id/metropolitan-district-council/wolverhampton","710828","Andrew Page","061456389","55.74","Equipment - Purchase","190458176","16/05/2018","Fleet Services","Fleet Management","R4000"
"Wolverhampton City Council","http://opendatacommunities.org/id/metropolitan-district-council/wolverhampton","710828","Andrew Page","061455814","15.62","Equipment - Purchase","190458172","16/05/2018","Fleet Services","Fleet Management","R4000"
"Wolverhampton City Council","http://opendatacommunities.org/id/metropolitan-district-council/wolverhampton","710828","Andrew Page","061455814","78.67","Equipment - Purchase","190458172","16/05/2018","Fleet Services","Fleet Management","R4000"
"Wolverhampton City Council","http://opendatacommunities.org/id/metropolitan-district-council/wolverhampton","710828","Andrew Page","H098061","-29.09","Equipment - Purchase","190458213","16/05/2018","Fleet Services","Fleet Management","R4000"
"Wolverhampton City Council","http://opendatacommunities.org/id/metropolitan-district-council/wolverhampton","710878","247 Cars","1051","1,170.00","Client Transport","130215146","04/05/2018","Special Educational Needs","Special - Transport","R3042"
"Wolverhampton City Council","http://opendatacommunities.org/id/metropolitan-district-council/wolverhampton","710879","Kingswood Trust","362","840.00","Training Expenses","130216568","23/05/2018","Youth Offending","Youth Offending Team","R1650"
"Wolverhampton City Council","http://opendatacommunities.org/id/metropolitan-district-council/wolverhampton","710896","Orangeleaf Systems Ltd","797","500.00","Services - Professional Fees","130216569","30/05/2018","Visitor Economy","Archives","R4400"
"Wolverhampton City Council","http://opendatacommunities.org/id/metropolitan-district-council/wolverhampton","710915","Barts Health NHS Trust","332290 GUM M10 17/18","237.00","TPP - Public Health Contracts","190463603","30/05/2018","Contracts","Sexual Health","R5060"
"Wolverhampton City Council","http://opendatacommunities.org/id/metropolitan-district-council/wolverhampton","710928","Yoo Recruit LTD","CWC10197271","455.84","Agency Staff","190464041","30/05/2018","Human Resources","HR Advice","R1100"
"Wolverhampton City Council","http://opendatacommunities.org/id/metropolitan-district-council/wolverhampton","710928","Yoo Recruit LTD","CWC10197260","171.75","Agency Staff","190464030","30/05/2018","Parking Services","Shopmobility","R1100"
"Wolverhampton City Council","http://opendatacommunities.org/id/metropolitan-district-council/wolverhampton","710928","Yoo Recruit LTD","CWC10197261","229.00","Agency Staff","190464031","30/05/2018","Parking Services","Shopmobility","R1100"
"Wolverhampton City Council","http://opendatacommunities.org/id/metropolitan-district-council/wolverhampton","710928","Yoo Recruit LTD","CWC10197348","436.13","Agency Staff","190464118","30/05/2018","School Planning & Resources","Technical Support","R1100"
"Wolverhampton City Council","http://opendatacommunities.org/id/metropolitan-district-council/wolverhampton","710928","Yoo Recruit LTD","CWC10197368","451.56","Agency Staff","190464138","30/05/2018","Safeguarding","Safeguarding & Quality Administration","R1100"
"Wolverhampton City Council","http://opendatacommunities.org/id/metropolitan-district-council/wolverhampton","710928","Yoo Recruit LTD","CWC10197356","82.16","Agency Staff","190464126","30/05/2018","Public Service Reform","Information Governance","R1100"
"Wolverhampton City Council","http://opendatacommunities.org/id/metropolitan-district-council/wolverhampton","710928","Yoo Recruit LTD","CWC10197374","-2,950.57","Agency Staff","190464144","30/05/2018","Director of Governance","Director of Governance","R1100"
"Wolverhampton City Council","http://opendatacommunities.org/id/metropolitan-district-council/wolverhampton","710928","Yoo Recruit LTD","CWC10197396","85.86","Agency Staff","190464166","30/05/2018","Leisure Services","WV Active Business Support","R1100"
"Wolverhampton City Council","http://opendatacommunities.org/id/metropolitan-district-council/wolverhampton","710928","Yoo Recruit LTD","CWC10197455","1,211.01","Agency Staff","190464225","30/05/2018","Child Protection","MASH","R1100"
"Wolverhampton City Council","http://opendatacommunities.org/id/metropolitan-district-council/wolverhampton","710928","Yoo Recruit LTD","CWC10197456","1,217.30","Agency Staff","190464226","30/05/2018","Child Protection","MASH","R1100"
"Wolverhampton City Council","http://opendatacommunities.org/id/metropolitan-district-council/wolverhampton","710928","Yoo Recruit LTD","CWC10197453","1,587.30","Agency Staff","190464223","30/05/2018","Child Protection","CIN/CP Social Work Unit - Area 7","R1100"
"Wolverhampton City Council","http://opendatacommunities.org/id/metropolitan-district-council/wolverhampton","710928","Yoo Recruit LTD","CWC1019714","32.40","Agency Staff","190463784","30/05/2018","Looked After Children","Adoption and Residence Team & Allowances","R1100"
"Wolverhampton City Council","http://opendatacommunities.org/id/metropolitan-district-council/wolverhampton","710928","Yoo Recruit LTD","CWC1019735","79.65","Agency Staff","190463805","30/05/2018","Learning Disability Provider","Duke Street Bungalows","R1100"
"Wolverhampton City Council","http://opendatacommunities.org/id/metropolitan-district-council/wolverhampton","710928","Yoo Recruit LTD","CWC1019773","257.57","Agency Staff","190463843","30/05/2018","Strategic Organisation Development","Adult Lending Library","R1100"
"Wolverhampton City Council","http://opendatacommunities.org/id/metropolitan-district-council/wolverhampton","710928","Yoo Recruit LTD","CWC10197111","3.60","Agency Staff","190463881","30/05/2018","Adults Assessment & Care Management West","Hospital Team","R1100"
"Wolverhampton City Council","http://opendatacommunities.org/id/metropolitan-district-council/wolverhampton","710928","Yoo Recruit LTD","CWC10197122","1,214.71","Agency Staff","190463892","30/05/2018","Adults Assessment & Care Management West","Hospital Team","R1100"
"Wolverhampton City Council","http://opendatacommunities.org/id/metropolitan-district-council/wolverhampton","710928","Yoo Recruit LTD","CWC10197142","73.21","Agency Staff","190463912","30/05/2018","Leisure Services","Bert Williams Leisure Centre","R1100"
"Wolverhampton City Council","http://opendatacommunities.org/id/metropolitan-district-council/wolverhampton","710928","Yoo Recruit LTD","CWC10197170","273.31","Agency Staff","190463940","30/05/2018","Leisure Services","Central Baths","R1100"
"Wolverhampton City Council","http://opendatacommunities.org/id/metropolitan-district-council/wolverhampton","710928","Yoo Recruit LTD","CWC10197167","187.62","Agency Staff","190463937","30/05/2018","Leisure Services","Central Baths","R1100"
"Wolverhampton City Council","http://opendatacommunities.org/id/metropolitan-district-council/wolverhampton","710928","Yoo Recruit LTD","CWC10197184","114.00","Agency Staff","190463954","30/05/2018","Catering","Primary Schools Catering","R1100"
"Wolverhampton City Council","http://opendatacommunities.org/id/metropolitan-district-council/wolverhampton","710928","Yoo Recruit LTD","CWC10197192","114.00","Agency Staff","190463962","30/05/2018","Catering","Other Catering - General Overheads","R1100"
"Wolverhampton City Council","http://opendatacommunities.org/id/metropolitan-district-council/wolverhampton","710928","Yoo Recruit LTD","CWC10197226","91.44","Agency Staff","190463996","30/05/2018","Cleaning","Cleaning of Buildings - General","R1100"
"Wolverhampton City Council","http://opendatacommunities.org/id/metropolitan-district-council/wolverhampton","710928","Yoo Recruit LTD","CWC10197246","171.00","Agency Staff","190464016","30/05/2018","Cleaning","Schools Cleaning","R1100"
"Wolverhampton City Council","http://opendatacommunities.org/id/metropolitan-district-council/wolverhampton","710928","Yoo Recruit LTD","CWC10197245","267.90","Agency Staff","190464015","30/05/2018","Cleaning","External Cleaning","R1100"
"Wolverhampton City Council","http://opendatacommunities.org/id/metropolitan-district-council/wolverhampton","710928","Yoo Recruit LTD","CWC10193203","199.65","Agency Staff","190460570","23/05/2018","Customer Services","City Direct","R1100"
"Wolverhampton City Council","http://opendatacommunities.org/id/metropolitan-district-council/wolverhampton","710928","Yoo Recruit LTD","CWC10193240","2,430.64","Agency Staff","190460607","23/05/2018","ICTS","Application Management","R1100"
"Wolverhampton City Council","http://opendatacommunities.org/id/metropolitan-district-council/wolverhampton","710928","Yoo Recruit LTD","CWC10193248","165.30","Agency Staff","190460615","23/05/2018","Transportation","Passenger Transport - General","R1100"
"Wolverhampton City Council","http://opendatacommunities.org/id/metropolitan-district-council/wolverhampton","710928","Yoo Recruit LTD","CWC10193278","375.36","Agency Staff","190460645","23/05/2018","Adult Education","Caretakers","R1100"
"Wolverhampton City Council","http://opendatacommunities.org/id/metropolitan-district-council/wolverhampton","710928","Yoo Recruit LTD","CWC10193335","356.18","Agency Staff","190460702","23/05/2018","Governance Services","Business Support - Governance","R1100"
"Wolverhampton City Council","http://opendatacommunities.org/id/metropolitan-district-council/wolverhampton","710928","Yoo Recruit LTD","CWC10193358","855.72","Agency Staff","190460725","23/05/2018","Human Resources","HR Investigations","R1100"
"Wolverhampton City Council","http://opendatacommunities.org/id/metropolitan-district-council/wolverhampton","710928","Yoo Recruit LTD","CWC10193359","1,025.17","Agency Staff","190460726","23/05/2018","Human Resources","HR Investigations","R1100"
"Wolverhampton City Council","http://opendatacommunities.org/id/metropolitan-district-council/wolverhampton","710928","Yoo Recruit LTD","CWC10193400","41.85","Agency Staff","190460767","23/05/2018","Early Intervention","EIP Locality 7 � Low Hill","R1100"
"Wolverhampton City Council","http://opendatacommunities.org/id/metropolitan-district-council/wolverhampton","710928","Yoo Recruit LTD","CWC10193422","3.00","Agency Staff","190460789","23/05/2018","Adults Assessment & Care Management SLC","Supporting Life Choices","R1100"
"Wolverhampton City Council","http://opendatacommunities.org/id/metropolitan-district-council/wolverhampton","710928","Yoo Recruit LTD","CWC10193398","25.64","Agency Staff","190460765","23/05/2018","Early Intervention","EIP Locality 5 � Whitmore Reans","R1100"
"Wolverhampton City Council","http://opendatacommunities.org/id/metropolitan-district-council/wolverhampton","710928","Yoo Recruit LTD","CWC10193433","630.05","Agency Staff","190460800","23/05/2018","Adults Assessment & Care Management SLC","Supporting Life Choices","R1100"
"Wolverhampton City Council","http://opendatacommunities.org/id/metropolitan-district-council/wolverhampton","710928","Yoo Recruit LTD","CWC10193286","184.58","Agency Staff","190460653","23/05/2018","Adult Education","Foundation Studies Delivery Area","R1100"
"Wolverhampton City Council","http://opendatacommunities.org/id/metropolitan-district-council/wolverhampton","710928","Yoo Recruit LTD","CWC1019374","2.80","Agency Staff","190460441","23/05/2018","Emergency Duty Team","Emergency Duty Team","R1100"
"Wolverhampton City Council","http://opendatacommunities.org/id/metropolitan-district-council/wolverhampton","710928","Yoo Recruit LTD","CWC10193349","159.72","Agency Staff","190460716","23/05/2018","Leisure Services","WV Active Business Support","R1100"
"Wolverhampton City Council","http://opendatacommunities.org/id/metropolitan-district-council/wolverhampton","710928","Yoo Recruit LTD","CWC10193149","58.15","Agency Staff","190460516","23/05/2018","Leisure Services","Central Baths","R1100"
"Wolverhampton City Council","http://opendatacommunities.org/id/metropolitan-district-council/wolverhampton","710928","Yoo Recruit LTD","CWC10193158","182.54","Agency Staff","190460525","23/05/2018","Leisure Services","Central Baths","R1100"
"Wolverhampton City Council","http://opendatacommunities.org/id/metropolitan-district-council/wolverhampton","710928","Yoo Recruit LTD","CWC10193233","148.20","Agency Staff","190460600","23/05/2018","Cleaning","External Cleaning","R1100"
"Wolverhampton City Council","http://opendatacommunities.org/id/metropolitan-district-council/wolverhampton","710928","Yoo Recruit LTD","CWC10193408","975.57","Agency Staff","190460775","23/05/2018","Adults Assessment & Care Management North","Adult Services � North","R1100"
"Wolverhampton City Council","http://opendatacommunities.org/id/metropolitan-district-council/wolverhampton","710928","Yoo Recruit LTD","CWC1019355","2.70","Agency Staff","190460422","23/05/2018","Youth Offending","Youth Offending Team","R1100"
"Wolverhampton City Council","http://opendatacommunities.org/id/metropolitan-district-council/wolverhampton","710928","Yoo Recruit LTD","CWC10193141","190.80","Agency Staff","190460508","23/05/2018","Leisure Services","Bert Williams Leisure Centre","R1100"
"Wolverhampton City Council","http://opendatacommunities.org/id/metropolitan-district-council/wolverhampton","710928","Yoo Recruit LTD","Consolidated40RD","-168,216.08","Agency Staff","190460367","23/05/2018","Central Corporate Budgets","Yoo Recruit Payments","R1100"
"Wolverhampton City Council","http://opendatacommunities.org/id/metropolitan-district-council/wolverhampton","710928","Yoo Recruit LTD","CWC10193109","9.45","Agency Staff","190460476","23/05/2018","Independent Living Service","Independent Living Service","R1100"
"Wolverhampton City Council","http://opendatacommunities.org/id/metropolitan-district-council/wolverhampton","710928","Yoo Recruit LTD","CWC10193124","53.91","Agency Staff","190460491","23/05/2018","Leisure Services","Aldersley Leisure Village","R1100"
"Wolverhampton City Council","http://opendatacommunities.org/id/metropolitan-district-council/wolverhampton","710928","Yoo Recruit LTD","CWC1019346","981.90","Agency Staff","190460413","23/05/2018","Looked After Children","LAC Transitions Team","R1100"
"Wolverhampton City Council","http://opendatacommunities.org/id/metropolitan-district-council/wolverhampton","710928","Yoo Recruit LTD","CWC10193131","58.15","Agency Staff","190460498","23/05/2018","Leisure Services","Bert Williams Leisure Centre","R1100"
"Wolverhampton City Council","http://opendatacommunities.org/id/metropolitan-district-council/wolverhampton","710928","Yoo Recruit LTD","CWC10193130","55.58","Agency Staff","190460497","23/05/2018","Leisure Services","Bert Williams Leisure Centre","R1100"
"Wolverhampton City Council","http://opendatacommunities.org/id/metropolitan-district-council/wolverhampton","710928","Yoo Recruit LTD","CWC101937","10.80","Agency Staff","190460374","23/05/2018","Looked After Children","Fostering Team & Allowances","R1100"
"Wolverhampton City Council","http://opendatacommunities.org/id/metropolitan-district-council/wolverhampton","710928","Yoo Recruit LTD","CWC10189338","451.90","Agency Staff","190459032","18/05/2018","School Planning & Resources","Music Support Team","R1100"
"Wolverhampton City Council","http://opendatacommunities.org/id/metropolitan-district-council/wolverhampton","710928","Yoo Recruit LTD","CWC101896","462.06","Agency Staff","190458700","18/05/2018","Looked After Children","Adoption and Residence Team & Allowances","R1100"
"Wolverhampton City Council","http://opendatacommunities.org/id/metropolitan-district-council/wolverhampton","710928","Yoo Recruit LTD","CWC1018941","-31.95","Agency Staff","190458735","18/05/2018","Child Protection","Childrens with Disabilities Team","R1100"
"Wolverhampton City Council","http://opendatacommunities.org/id/metropolitan-district-council/wolverhampton","710928","Yoo Recruit LTD","CWC1018945","-21.60","Agency Staff","190458739","18/05/2018","Child Protection","Childrens with Disabilities Team","R1100"
"Wolverhampton City Council","http://opendatacommunities.org/id/metropolitan-district-council/wolverhampton","710928","Yoo Recruit LTD","Consolidated39RD","-144,799.38","Agency Staff","190458694","18/05/2018","Central Corporate Budgets","Yoo Recruit Payments","R1100"
"Wolverhampton City Council","http://opendatacommunities.org/id/metropolitan-district-council/wolverhampton","710928","Yoo Recruit LTD","CWC1018974","31.95","Agency Staff","190458768","18/05/2018","Child Protection","Childrens with Disabilities Team","R1100"
"Wolverhampton City Council","http://opendatacommunities.org/id/metropolitan-district-council/wolverhampton","710928","Yoo Recruit LTD","CWC10189149","75.60","Agency Staff","190458843","18/05/2018","Leisure Services","WV Active Catering","R1100"
"Wolverhampton City Council","http://opendatacommunities.org/id/metropolitan-district-council/wolverhampton","710928","Yoo Recruit LTD","CWC10189155","57.65","Agency Staff","190458849","18/05/2018","Leisure Services","Aldersley Leisure Village","R1100"
"Wolverhampton City Council","http://opendatacommunities.org/id/metropolitan-district-council/wolverhampton","710928","Yoo Recruit LTD","CWC10189161","38.16","Agency Staff","190458855","18/05/2018","Leisure Services","Bert Williams Leisure Centre","R1100"
"Wolverhampton City Council","http://opendatacommunities.org/id/metropolitan-district-council/wolverhampton","710928","Yoo Recruit LTD","CWC10189162","56.30","Agency Staff","190458856","18/05/2018","Leisure Services","Bert Williams Leisure Centre","R1100"
"Wolverhampton City Council","http://opendatacommunities.org/id/metropolitan-district-council/wolverhampton","710928","Yoo Recruit LTD","CWC10189114","582.00","Agency Staff","190458808","18/05/2018","Mental Health Assesment & Care Management","Mental Health Assessment & Care Management","R1100"
"Wolverhampton City Council","http://opendatacommunities.org/id/metropolitan-district-council/wolverhampton","710928","Yoo Recruit LTD","CWC10189184","91.20","Agency Staff","190458878","18/05/2018","Catering","Education Catering - General Overheads","R1100"
"Wolverhampton City Council","http://opendatacommunities.org/id/metropolitan-district-council/wolverhampton","710928","Yoo Recruit LTD","CWC10189131","209.65","Agency Staff","190458825","18/05/2018","Strategic Organisation Development","Adult Lending Library","R1100"
"Wolverhampton City Council","http://opendatacommunities.org/id/metropolitan-district-council/wolverhampton","710928","Yoo Recruit LTD","CWC10189128","233.60","Agency Staff","190458822","18/05/2018","Strategic Organisation Development","Global Budgets","R1100"
"Wolverhampton City Council","http://opendatacommunities.org/id/metropolitan-district-council/wolverhampton","710928","Yoo Recruit LTD","CWC10189201","91.44","Agency Staff","190458895","18/05/2018","Catering","Other Catering - General Overheads","R1100"
"Wolverhampton City Council","http://opendatacommunities.org/id/metropolitan-district-council/wolverhampton","710928","Yoo Recruit LTD","CWC10189199","91.44","Agency Staff","190458893","18/05/2018","Catering","Other Catering - General Overheads","R1100"
"Wolverhampton City Council","http://opendatacommunities.org/id/metropolitan-district-council/wolverhampton","710928","Yoo Recruit LTD","CWC10189194","91.20","Agency Staff","190458888","18/05/2018","Catering","Primary Schools Catering","R1100"
"Wolverhampton City Council","http://opendatacommunities.org/id/metropolitan-district-council/wolverhampton","710928","Yoo Recruit LTD","CWC10189146","52.34","Agency Staff","190458840","18/05/2018","Leisure Services","WV Active Catering","R1100"
"Wolverhampton City Council","http://opendatacommunities.org/id/metropolitan-district-council/wolverhampton","710928","Yoo Recruit LTD","CWC10189173","190.80","Agency Staff","190458867","18/05/2018","Leisure Services","Bert Williams Leisure Centre","R1100"
"Wolverhampton City Council","http://opendatacommunities.org/id/metropolitan-district-council/wolverhampton","710928","Yoo Recruit LTD","CWC10189230","540.18","Agency Staff","190458924","18/05/2018","Customer Services","City Direct","R1100"
"Wolverhampton City Council","http://opendatacommunities.org/id/metropolitan-district-council/wolverhampton","710928","Yoo Recruit LTD","CWC10189227","492.47","Agency Staff","190458921","18/05/2018","Customer Services","City Direct","R1100"
"Wolverhampton City Council","http://opendatacommunities.org/id/metropolitan-district-council/wolverhampton","710928","Yoo Recruit LTD","CWC10189234","28.83","Agency Staff","190458928","18/05/2018","Cleaning","Cleaning of Buildings - General","R1100"
"Wolverhampton City Council","http://opendatacommunities.org/id/metropolitan-district-council/wolverhampton","710928","Yoo Recruit LTD","CWC10189285","1,768.15","Agency Staff","190458979","18/05/2018","Strategic Finance","Strategic Finance","R1100"
"Wolverhampton City Council","http://opendatacommunities.org/id/metropolitan-district-council/wolverhampton","710928","Yoo Recruit LTD","CWC10189247","171.45","Agency Staff","190458941","18/05/2018","Cleaning","Cleaning of Buildings - General","R1100"
"Wolverhampton City Council","http://opendatacommunities.org/id/metropolitan-district-council/wolverhampton","710928","Yoo Recruit LTD","CWC10189265","1,686.00","Agency Staff","190458959","18/05/2018","Commercial Services","Corporate Procurement Unit","R1100"
"Wolverhampton City Council","http://opendatacommunities.org/id/metropolitan-district-council/wolverhampton","710928","Yoo Recruit LTD","CWC10189269","419.61","Agency Staff","190458963","18/05/2018","Managing Director","Managing Director","R1100"
"Wolverhampton City Council","http://opendatacommunities.org/id/metropolitan-district-council/wolverhampton","710928","Yoo Recruit LTD","CWC10189255","22.80","Agency Staff","190458949","18/05/2018","Cleaning","Schools Cleaning","R1100"
"Wolverhampton City Council","http://opendatacommunities.org/id/metropolitan-district-council/wolverhampton","710928","Yoo Recruit LTD","CWC10189256","171.00","Agency Staff","190458950","18/05/2018","Cleaning","Other Cleaning","R1100"
"Wolverhampton City Council","http://opendatacommunities.org/id/metropolitan-district-council/wolverhampton","710928","Yoo Recruit LTD","CWC10189211","202.31","Agency Staff","190458905","18/05/2018","Catering","Meals on Wheels","R1100"
"Wolverhampton City Council","http://opendatacommunities.org/id/metropolitan-district-council/wolverhampton","710928","Yoo Recruit LTD","CWC10189203","93.12","Agency Staff","190458897","18/05/2018","Catering","Other Catering - General Overheads","R1100"
"Wolverhampton City Council","http://opendatacommunities.org/id/metropolitan-district-council/wolverhampton","710928","Yoo Recruit LTD","CWC10189299","2,078.08","Agency Staff","190458993","18/05/2018","Public Protection","EHTS Staffing","R1100"
"Wolverhampton City Council","http://opendatacommunities.org/id/metropolitan-district-council/wolverhampton","710928","Yoo Recruit LTD","CWC10189399","485.44","Agency Staff","190459093","18/05/2018","Leisure Services","WV Active Business Support","R1100"
"Wolverhampton City Council","http://opendatacommunities.org/id/metropolitan-district-council/wolverhampton","710928","Yoo Recruit LTD","CWC10189281","274.80","Agency Staff","190458975","18/05/2018","Parking Services","Shopmobility","R1100"
"Wolverhampton City Council","http://opendatacommunities.org/id/metropolitan-district-council/wolverhampton","710928","Yoo Recruit LTD","CWC10189321","74.78","Agency Staff","190459015","18/05/2018","Adult Education","Language Studies Delivery Area","R1100"
"Wolverhampton City Council","http://opendatacommunities.org/id/metropolitan-district-council/wolverhampton","710928","Yoo Recruit LTD","CWC10189304","434.01","Agency Staff","190458998","18/05/2018","Adult Education","Caretakers","R1100"
"Wolverhampton City Council","http://opendatacommunities.org/id/metropolitan-district-council/wolverhampton","710928","Yoo Recruit LTD","CWC10189302","48.88","Agency Staff","190458996","18/05/2018","Adult Education","Admin & Support","R1100"
"Wolverhampton City Council","http://opendatacommunities.org/id/metropolitan-district-council/wolverhampton","710928","Yoo Recruit LTD","CWC10189261","559.20","Agency Staff","190458955","18/05/2018","ICTS","Customer Services","R1100"
"Wolverhampton City Council","http://opendatacommunities.org/id/metropolitan-district-council/wolverhampton","710928","Yoo Recruit LTD","CWC10189318","324.27","Agency Staff","190459012","18/05/2018","Adult Education","Foundation Studies Delivery Area","R1100"
"Wolverhampton City Council","http://opendatacommunities.org/id/metropolitan-district-council/wolverhampton","710928","Yoo Recruit LTD","CWC10189328","246.33","Agency Staff","190459022","18/05/2018","Adult Education","Learner Services","R1100"
"Wolverhampton City Council","http://opendatacommunities.org/id/metropolitan-district-council/wolverhampton","710928","Yoo Recruit LTD","CWC10189316","241.90","Agency Staff","190459010","18/05/2018","Adult Education","Foundation Studies Delivery Area","R1100"
"Wolverhampton City Council","http://opendatacommunities.org/id/metropolitan-district-council/wolverhampton","710928","Yoo Recruit LTD","CWC10189433","-1,549.19","Agency Staff","190459127","18/05/2018","Child Protection","MASH","R1100"
"Wolverhampton City Council","http://opendatacommunities.org/id/metropolitan-district-council/wolverhampton","710928","Yoo Recruit LTD","CWC10189437","-1,549.19","Agency Staff","190459131","18/05/2018","Child Protection","MASH","R1100"
"Wolverhampton City Council","http://opendatacommunities.org/id/metropolitan-district-council/wolverhampton","710928","Yoo Recruit LTD","CWC10189336","351.56","Agency Staff","190459030","18/05/2018","School Planning & Resources","Music Support Team","R1100"
"Wolverhampton City Council","http://opendatacommunities.org/id/metropolitan-district-council/wolverhampton","710928","Yoo Recruit LTD","CWC10189324","365.63","Agency Staff","190459018","18/05/2018","Adult Education","Language Studies Delivery Area","R1100"
"Wolverhampton City Council","http://opendatacommunities.org/id/metropolitan-district-council/wolverhampton","710928","Yoo Recruit LTD","CWC10189350","205.20","Agency Staff","190459044","18/05/2018","Special Educational Needs","Special - Transport","R1100"
"Wolverhampton City Council","http://opendatacommunities.org/id/metropolitan-district-council/wolverhampton","710928","Yoo Recruit LTD","CWC10189425","1,549.19","Agency Staff","190459119","18/05/2018","Child Protection","CIN/CP Social Work Unit - Area 3","R1100"
"Wolverhampton City Council","http://opendatacommunities.org/id/metropolitan-district-council/wolverhampton","710928","Yoo Recruit LTD","CWC10189341","48.45","Agency Staff","190459035","18/05/2018","Special Educational Needs","Special - Transport","R1100"
"Wolverhampton City Council","http://opendatacommunities.org/id/metropolitan-district-council/wolverhampton","710928","Yoo Recruit LTD","CWC10189339","478.70","Agency Staff","190459033","18/05/2018","School Planning & Resources","Music Support Team","R1100"
"Wolverhampton City Council","http://opendatacommunities.org/id/metropolitan-district-council/wolverhampton","710928","Yoo Recruit LTD","CWC10189357","422.94","Agency Staff","190459051","18/05/2018","Corporate Asset Management","Energy Management","R1100"
"Wolverhampton City Council","http://opendatacommunities.org/id/metropolitan-district-council/wolverhampton","710928","Yoo Recruit LTD","CWC10189405","499.13","Agency Staff","190459099","18/05/2018","The Hub","Payroll/HR","R1100"
"Wolverhampton City Council","http://opendatacommunities.org/id/metropolitan-district-council/wolverhampton","710928","Yoo Recruit LTD","CWC10189387","27.20","Agency Staff","190459081","18/05/2018","Leisure Services","WV Active Business Support","R1100"
"Wolverhampton City Council","http://opendatacommunities.org/id/metropolitan-district-council/wolverhampton","710928","Yoo Recruit LTD","CWC10189414","12.60","Agency Staff","190459108","18/05/2018","Child Protection","CIN/CP Social Work Unit - Area 1","R1100"
"Wolverhampton City Council","http://opendatacommunities.org/id/metropolitan-district-council/wolverhampton","710928","Yoo Recruit LTD","CWC10189368","101.52","Agency Staff","190459062","18/05/2018","Visitor Economy","Civic Halls Non-Direct Event Management Account","R1100"
"Wolverhampton City Council","http://opendatacommunities.org/id/metropolitan-district-council/wolverhampton","710928","Yoo Recruit LTD","CWC10189362","477.00","Agency Staff","190459056","18/05/2018","Safeguarding","Safeguarding & Quality Administration","R1100"
"Wolverhampton City Council","http://opendatacommunities.org/id/metropolitan-district-council/wolverhampton","710928","Yoo Recruit LTD","CWC10189364","50.76","Agency Staff","190459058","18/05/2018","Visitor Economy","Civic Halls Non-Direct Event Management Account","R1100"
"Wolverhampton City Council","http://opendatacommunities.org/id/metropolitan-district-council/wolverhampton","710928","Yoo Recruit LTD","CWC10189448","1,534.39","Agency Staff","190459142","18/05/2018","Child Protection","MASH","R1100"
"Wolverhampton City Council","http://opendatacommunities.org/id/metropolitan-district-council/wolverhampton","710928","Yoo Recruit LTD","CWC10189476","32.69","Agency Staff","190459170","18/05/2018","Early Intervention","EIP Locality 5 � Whitmore Reans","R1100"
"Wolverhampton City Council","http://opendatacommunities.org/id/metropolitan-district-council/wolverhampton","710928","Yoo Recruit LTD","CWC10189472","38.03","Agency Staff","190459166","18/05/2018","Early Intervention","EIP Locality 3 - Graiseley","R1100"
"Wolverhampton City Council","http://opendatacommunities.org/id/metropolitan-district-council/wolverhampton","710928","Yoo Recruit LTD","CWC10189452","1,534.39","Agency Staff","190459146","18/05/2018","Child Protection","MASH","R1100"
"Wolverhampton City Council","http://opendatacommunities.org/id/metropolitan-district-council/wolverhampton","710928","Yoo Recruit LTD","CWC10189460","43.89","Agency Staff","190459154","18/05/2018","Early Intervention","EIP Locality 1 - Eastfields","R1100"
"Wolverhampton City Council","http://opendatacommunities.org/id/metropolitan-district-council/wolverhampton","710928","Yoo Recruit LTD","CWC10189466","36.58","Agency Staff","190459160","18/05/2018","Early Intervention","EIP Locality 2 � Bilston/Rocket Pool","R1100"
"Wolverhampton City Council","http://opendatacommunities.org/id/metropolitan-district-council/wolverhampton","710928","Yoo Recruit LTD","CWC10189458","39.96","Agency Staff","190459152","18/05/2018","Early Intervention","EIP Locality 1 - Eastfields","R1100"
"Wolverhampton City Council","http://opendatacommunities.org/id/metropolitan-district-council/wolverhampton","710928","Yoo Recruit LTD","CWC10189556","215.16","Agency Staff","190459250","18/05/2018","Visitor Economy","VEC - Casual & Agency Staff","R1100"
"Wolverhampton City Council","http://opendatacommunities.org/id/metropolitan-district-council/wolverhampton","710928","Yoo Recruit LTD","CWC10189559","374.73","Agency Staff","190459253","18/05/2018","Visitor Economy","VEC - Casual & Agency Staff","R1100"
"Wolverhampton City Council","http://opendatacommunities.org/id/metropolitan-district-council/wolverhampton","710928","Yoo Recruit LTD","CWC10189481","36.58","Agency Staff","190459175","18/05/2018","Early Intervention","EIP Locality 5 � Whitmore Reans","R1100"
"Wolverhampton City Council","http://opendatacommunities.org/id/metropolitan-district-council/wolverhampton","710928","Yoo Recruit LTD","CWC10189558","279.12","Agency Staff","190459252","18/05/2018","Visitor Economy","VEC - Casual & Agency Staff","R1100"
"Wolverhampton City Council","http://opendatacommunities.org/id/metropolitan-district-council/wolverhampton","710928","Yoo Recruit LTD","CWC10189519","41.85","Agency Staff","190459213","18/05/2018","Early Intervention","EIP Locality 7 � Low Hill","R1100"
"Wolverhampton City Council","http://opendatacommunities.org/id/metropolitan-district-council/wolverhampton","710928","Yoo Recruit LTD","CWC10189514","80.47","Agency Staff","190459208","18/05/2018","Early Intervention","EIP Locality 5 � Whitmore Reans","R1100"
"Wolverhampton City Council","http://opendatacommunities.org/id/metropolitan-district-council/wolverhampton","710928","Yoo Recruit LTD","CWC10189506","80.47","Agency Staff","190459200","18/05/2018","Early Intervention","EIP Locality 5 � Whitmore Reans","R1100"
"Wolverhampton City Council","http://opendatacommunities.org/id/metropolitan-district-council/wolverhampton","710928","Yoo Recruit LTD","CWC10189510","80.47","Agency Staff","190459204","18/05/2018","Early Intervention","EIP Locality 5 � Whitmore Reans","R1100"
"Wolverhampton City Council","http://opendatacommunities.org/id/metropolitan-district-council/wolverhampton","710928","Yoo Recruit LTD","CWC10189485","36.58","Agency Staff","190459179","18/05/2018","Early Intervention","EIP Locality 5 � Whitmore Reans","R1100"
"Wolverhampton City Council","http://opendatacommunities.org/id/metropolitan-district-council/wolverhampton","710928","Yoo Recruit LTD","CWC10189544","62.04","Agency Staff","190459238","18/05/2018","Visitor Economy","VEC - Casual & Agency Staff","R1100"
"Wolverhampton City Council","http://opendatacommunities.org/id/metropolitan-district-council/wolverhampton","710928","Yoo Recruit LTD","CWC10189543","459.20","Agency Staff","190459237","18/05/2018","Safeguarding","Safeguarding Partnership Board","R1100"
"Wolverhampton City Council","http://opendatacommunities.org/id/metropolitan-district-council/wolverhampton","710928","Yoo Recruit LTD","CWC10189488","36.58","Agency Staff","190459182","18/05/2018","Early Intervention","EIP Locality 5 � Whitmore Reans","R1100"
"Wolverhampton City Council","http://opendatacommunities.org/id/metropolitan-district-council/wolverhampton","710928","Yoo Recruit LTD","CWC10189492","36.58","Agency Staff","190459186","18/05/2018","Early Intervention","EIP Locality 5 � Whitmore Reans","R1100"
"Wolverhampton City Council","http://opendatacommunities.org/id/metropolitan-district-council/wolverhampton","710928","Yoo Recruit LTD","CWC10189500","40.23","Agency Staff","190459194","18/05/2018","Early Intervention","EIP Locality 5 � Whitmore Reans","R1100"
"Wolverhampton City Council","http://opendatacommunities.org/id/metropolitan-district-council/wolverhampton","710928","Yoo Recruit LTD","CWC10189496","36.58","Agency Staff","190459190","18/05/2018","Early Intervention","EIP Locality 5 � Whitmore Reans","R1100"
"Wolverhampton City Council","http://opendatacommunities.org/id/metropolitan-district-council/wolverhampton","710928","Yoo Recruit LTD","CWC10189548","75.60","Agency Staff","190459242","18/05/2018","Visitor Economy","VEC - Casual & Agency Staff","R1100"
"Wolverhampton City Council","http://opendatacommunities.org/id/metropolitan-district-council/wolverhampton","710928","Yoo Recruit LTD","CWC10185126","48.12","Agency Staff","190455907","11/05/2018","Strategic Organisation Development","Adult Lending Library","R1100"
"Wolverhampton City Council","http://opendatacommunities.org/id/metropolitan-district-council/wolverhampton","710928","Yoo Recruit LTD","CWC10185432","300.61","Agency Staff","190456213","11/05/2018","Leisure Services","WV Active Business Support","R1100"
"Wolverhampton City Council","http://opendatacommunities.org/id/metropolitan-district-council/wolverhampton","710928","Yoo Recruit LTD","CWC10185195","114.30","Agency Staff","190455976","11/05/2018","Catering","Other Catering - General Overheads","R1100"
"Wolverhampton City Council","http://opendatacommunities.org/id/metropolitan-district-council/wolverhampton","710928","Yoo Recruit LTD","CWC10185185","114.00","Agency Staff","190455966","11/05/2018","Catering","Primary Schools Catering","R1100"
"Wolverhampton City Council","http://opendatacommunities.org/id/metropolitan-district-council/wolverhampton","710928","Yoo Recruit LTD","CWC10185228","136.80","Agency Staff","190456009","11/05/2018","Cleaning","Cleaning of Buildings - General","R1100"
"Wolverhampton City Council","http://opendatacommunities.org/id/metropolitan-district-council/wolverhampton","710928","Yoo Recruit LTD","CWC10185216","656.88","Agency Staff","190455997","11/05/2018","Customer Services","City Direct","R1100"
"Wolverhampton City Council","http://opendatacommunities.org/id/metropolitan-district-council/wolverhampton","710928","Yoo Recruit LTD","CWC10185520","1,402.30","Agency Staff","190456301","11/05/2018","Adults Assessment & Care Management SLC","Supporting Life Choices","R1100"
"Wolverhampton City Council","http://opendatacommunities.org/id/metropolitan-district-council/wolverhampton","710928","Yoo Recruit LTD","CWC10185237","115.30","Agency Staff","190456018","11/05/2018","Cleaning","External Cleaning","R1100"
"Wolverhampton City Council","http://opendatacommunities.org/id/metropolitan-district-council/wolverhampton","710928","Yoo Recruit LTD","CWC10185529","68.40","Agency Staff","190456310","11/05/2018","Visitor Economy","VEC - Casual & Agency Staff","R1100"
"Wolverhampton City Council","http://opendatacommunities.org/id/metropolitan-district-council/wolverhampton","710928","Yoo Recruit LTD","CWC10185544","357.43","Agency Staff","190456325","11/05/2018","Visitor Economy","VEC - Casual & Agency Staff","R1100"
"Wolverhampton City Council","http://opendatacommunities.org/id/metropolitan-district-council/wolverhampton","710928","Yoo Recruit LTD","CWC101853","1,214.71","Agency Staff","190455784","11/05/2018","Service Director Children & Young People","Director Children & Young People","R1100"
"Wolverhampton City Council","http://opendatacommunities.org/id/metropolitan-district-council/wolverhampton","710928","Yoo Recruit LTD","CWC10185327","-1,211.01","Agency Staff","190456108","11/05/2018","Child Protection","CIN - Warstones MAST - Area 4","R1100"
"Wolverhampton City Council","http://opendatacommunities.org/id/metropolitan-district-council/wolverhampton","710928","Yoo Recruit LTD","CWC10185322","-1,211.01","Agency Staff","190456103","11/05/2018","Child Protection","CIN - Warstones MAST - Area 4","R1100"
"Wolverhampton City Council","http://opendatacommunities.org/id/metropolitan-district-council/wolverhampton","710928","Yoo Recruit LTD","CWC10185326","-1,211.01","Agency Staff","190456107","11/05/2018","Child Protection","CIN - Warstones MAST - Area 4","R1100"
"Wolverhampton City Council","http://opendatacommunities.org/id/metropolitan-district-council/wolverhampton","710928","Yoo Recruit LTD","CWC1018567","984.00","Agency Staff","190455848","11/05/2018","Child Protection","Childrens with Disabilities Team","R1100"
"Wolverhampton City Council","http://opendatacommunities.org/id/metropolitan-district-council/wolverhampton","710928","Yoo Recruit LTD","CWC10185304","479.89","Agency Staff","190456085","11/05/2018","School Planning & Resources","Pupil & Student Support","R1100"
"Wolverhampton City Council","http://opendatacommunities.org/id/metropolitan-district-council/wolverhampton","710928","Yoo Recruit LTD","CWC10185313","228.00","Agency Staff","190456094","11/05/2018","Special Educational Needs","Special - Transport","R1100"
"Wolverhampton City Council","http://opendatacommunities.org/id/metropolitan-district-council/wolverhampton","710928","Yoo Recruit LTD","CWC10185260","47.00","Agency Staff","190456041","11/05/2018","Public Service Reform","Register Office","R1100"
"Wolverhampton City Council","http://opendatacommunities.org/id/metropolitan-district-council/wolverhampton","710928","Yoo Recruit LTD","CWC1018570","984.00","Agency Staff","190455851","11/05/2018","Child Protection","Childrens with Disabilities Team","R1100"
"Wolverhampton City Council","http://opendatacommunities.org/id/metropolitan-district-council/wolverhampton","710928","Yoo Recruit LTD","CWC10185356","44.10","Agency Staff","190456137","11/05/2018","Child Protection","CIN - Warstones MAST - Area 4","R1100"
"Wolverhampton City Council","http://opendatacommunities.org/id/metropolitan-district-council/wolverhampton","710928","Yoo Recruit LTD","CWC1018518","698.72","Agency Staff","190455799","11/05/2018","Looked After Children","LAC Education Team (LACE)","R1100"
"Wolverhampton City Council","http://opendatacommunities.org/id/metropolitan-district-council/wolverhampton","710928","Yoo Recruit LTD","CWC10185297","65.24","Agency Staff","190456078","11/05/2018","School Planning & Resources","Music Support Team","R1100"
"Wolverhampton City Council","http://opendatacommunities.org/id/metropolitan-district-council/wolverhampton","710928","Yoo Recruit LTD","CWC10185359","492.45","Agency Staff","190456140","11/05/2018","Child Protection","CIN - Warstones MAST - Area 4","R1100"
"Wolverhampton City Council","http://opendatacommunities.org/id/metropolitan-district-council/wolverhampton","710928","Yoo Recruit LTD","CWC10185358","476.04","Agency Staff","190456139","11/05/2018","Child Protection","CIN - Warstones MAST - Area 4","R1100"
"Wolverhampton City Council","http://opendatacommunities.org/id/metropolitan-district-council/wolverhampton","710928","Yoo Recruit LTD","CWC10185100","4.05","Agency Staff","190455881","11/05/2018","Mental Health Assesment & Care Management","Mental Health Assessment & Care Management","R1100"
"Wolverhampton City Council","http://opendatacommunities.org/id/metropolitan-district-council/wolverhampton","710928","Yoo Recruit LTD","CWC1018592","630.50","Agency Staff","190455873","11/05/2018","Emergency Duty Team","Emergency Duty Team","R1100"
"Wolverhampton City Council","http://opendatacommunities.org/id/metropolitan-district-council/wolverhampton","710928","Yoo Recruit LTD","CWC10185317","666.06","Agency Staff","190456098","11/05/2018","Skills","Eduction Business Partnership","R1100"
"Wolverhampton City Council","http://opendatacommunities.org/id/metropolitan-district-council/wolverhampton","710928","Yoo Recruit LTD","CWC1018555","14.85","Agency Staff","190455836","11/05/2018","Child Protection","Childrens with Disabilities Team","R1100"
"Wolverhampton City Council","http://opendatacommunities.org/id/metropolitan-district-council/wolverhampton","710928","Yoo Recruit LTD","CWC1018596","0.63","Agency Staff","190455877","11/05/2018","Mental Health Assesment & Care Management","Mental Health Assessment & Care Management","R1100"
"Wolverhampton City Council","http://opendatacommunities.org/id/metropolitan-district-council/wolverhampton","710928","Yoo Recruit LTD","CWC1018599","2.70","Agency Staff","190455880","11/05/2018","Mental Health Assesment & Care Management","Mental Health Assessment & Care Management","R1100"
"Wolverhampton City Council","http://opendatacommunities.org/id/metropolitan-district-council/wolverhampton","710928","Yoo Recruit LTD","CWC1018533","736.43","Agency Staff","190455814","11/05/2018","Looked After Children","LAC Transitions Team","R1100"
"Wolverhampton City Council","http://opendatacommunities.org/id/metropolitan-district-council/wolverhampton","710928","Yoo Recruit LTD","CWC10185303","478.70","Agency Staff","190456084","11/05/2018","School Planning & Resources","Music Support Team","R1100"
"Wolverhampton City Council","http://opendatacommunities.org/id/metropolitan-district-council/wolverhampton","710928","Yoo Recruit LTD","CWC1018547","1,131.83","Agency Staff","190455828","11/05/2018","Youth Offending","Youth Offending Team","R1100"
"Wolverhampton City Council","http://opendatacommunities.org/id/metropolitan-district-council/wolverhampton","710928","Yoo Recruit LTD","CWC10185108","8.10","Agency Staff","190455889","11/05/2018","Mental Health Assesment & Care Management","Mental Health Assessment & Care Management","R1100"
"Wolverhampton City Council","http://opendatacommunities.org/id/metropolitan-district-council/wolverhampton","710928","Yoo Recruit LTD","CWC10185109","8.55","Agency Staff","190455890","11/05/2018","Mental Health Assesment & Care Management","Mental Health Assessment & Care Management","R1100"
"Wolverhampton City Council","http://opendatacommunities.org/id/metropolitan-district-council/wolverhampton","710928","Yoo Recruit LTD","CWC10185144","51.89","Agency Staff","190455925","11/05/2018","Leisure Services","Aldersley Leisure Village","R1100"
"Wolverhampton City Council","http://opendatacommunities.org/id/metropolitan-district-council/wolverhampton","710928","Yoo Recruit LTD","CWC10197284","1,802.09","Agency Staff","190464054","30/05/2018","Public Protection","EHTS Staffing","R1100"
"Wolverhampton City Council","http://opendatacommunities.org/id/metropolitan-district-council/wolverhampton","710928","Yoo Recruit LTD","CWC10197306","108.86","Agency Staff","190464076","30/05/2018","Adult Education","Educational Studies Delivery Area","R1100"
"Wolverhampton City Council","http://opendatacommunities.org/id/metropolitan-district-council/wolverhampton","710928","Yoo Recruit LTD","CWC10197358","94.58","Agency Staff","190464128","30/05/2018","Public Service Reform","Information Governance","R1100"
"Wolverhampton City Council","http://opendatacommunities.org/id/metropolitan-district-council/wolverhampton","710928","Yoo Recruit LTD","CWC10197339","21.09","Agency Staff","190464109","30/05/2018","Special Educational Needs","Special - Transport","R1100"
"Wolverhampton City Council","http://opendatacommunities.org/id/metropolitan-district-council/wolverhampton","710928","Yoo Recruit LTD","CWC10197438","17.55","Agency Staff","190464208","30/05/2018","Child Protection","CIN/CP Social Work Unit - Area 3","R1100"
"Wolverhampton City Council","http://opendatacommunities.org/id/metropolitan-district-council/wolverhampton","710928","Yoo Recruit LTD","CWC10197397","107.88","Agency Staff","190464167","30/05/2018","Leisure Services","WV Active Business Support","R1100"
"Wolverhampton City Council","http://opendatacommunities.org/id/metropolitan-district-council/wolverhampton","710928","Yoo Recruit LTD","CWC10197434","-1,549.19","Agency Staff","190464204","30/05/2018","Child Protection","CIN/CP Social Work Unit - Area 3","R1100"
"Wolverhampton City Council","http://opendatacommunities.org/id/metropolitan-district-council/wolverhampton","710928","Yoo Recruit LTD","CWC10197398","108.80","Agency Staff","190464168","30/05/2018","Leisure Services","WV Active Business Support","R1100"
"Wolverhampton City Council","http://opendatacommunities.org/id/metropolitan-district-council/wolverhampton","710928","Yoo Recruit LTD","CWC10197469","1,106.67","Agency Staff","190464239","30/05/2018","Adults Assessment & Care Management East","Adult Services � East","R1100"
"Wolverhampton City Council","http://opendatacommunities.org/id/metropolitan-district-council/wolverhampton","710928","Yoo Recruit LTD","CWC10197464","393.60","Agency Staff","190464234","30/05/2018","Looked After Children","Children�s Adoption Service","R1100"
"Wolverhampton City Council","http://opendatacommunities.org/id/metropolitan-district-council/wolverhampton","710928","Yoo Recruit LTD","CWC10197465","275.60","Agency Staff","190464235","30/05/2018","Headstart","Headstart Phase 3","R1100"
"Wolverhampton City Council","http://opendatacommunities.org/id/metropolitan-district-council/wolverhampton","710928","Yoo Recruit LTD","CWC10197458","39.13","Agency Staff","190464228","30/05/2018","Early Intervention","EIP Locality 7 � Low Hill","R1100"
"Wolverhampton City Council","http://opendatacommunities.org/id/metropolitan-district-council/wolverhampton","710928","Yoo Recruit LTD","CWC10197417","1,214.71","Agency Staff","190464187","30/05/2018","Child Protection","CIN/CP Social Work Unit - Area 1","R1100"
"Wolverhampton City Council","http://opendatacommunities.org/id/metropolitan-district-council/wolverhampton","710928","Yoo Recruit LTD","CWC10197505","207.54","Agency Staff","190464275","30/05/2018","Visitor Economy","VEC - Casual & Agency Staff","R1100"
"Wolverhampton City Council","http://opendatacommunities.org/id/metropolitan-district-council/wolverhampton","710928","Yoo Recruit LTD","CWC1019712","1,549.19","Agency Staff","190463782","30/05/2018","Looked After Children","Fostering Team & Allowances","R1100"
"Wolverhampton City Council","http://opendatacommunities.org/id/metropolitan-district-council/wolverhampton","710928","Yoo Recruit LTD","CWC1019732","1,193.01","Agency Staff","190463802","30/05/2018","Youth Offending","Youth Offending Team","R1100"
"Wolverhampton City Council","http://opendatacommunities.org/id/metropolitan-district-council/wolverhampton","710928","Yoo Recruit LTD","CWC1019740","274.79","Agency Staff","190463810","30/05/2018","Learning Disability Provider","Duke Street Bungalows","R1100"
"Wolverhampton City Council","http://opendatacommunities.org/id/metropolitan-district-council/wolverhampton","710928","Yoo Recruit LTD","CWC1019729","37.35","Agency Staff","190463799","30/05/2018","Youth Offending","Youth Offending Team","R1100"
"Wolverhampton City Council","http://opendatacommunities.org/id/metropolitan-district-council/wolverhampton","710928","Yoo Recruit LTD","CWC1019716","1,304.64","Agency Staff","190463786","30/05/2018","Looked After Children","Adoption and Residence Team & Allowances","R1100"
"Wolverhampton City Council","http://opendatacommunities.org/id/metropolitan-district-council/wolverhampton","710928","Yoo Recruit LTD","CWC1019753","5.40","Agency Staff","190463823","30/05/2018","Mental Health Assesment & Care Management","Mental Health Assessment & Care Management","R1100"
"Wolverhampton City Council","http://opendatacommunities.org/id/metropolitan-district-council/wolverhampton","710928","Yoo Recruit LTD","CWC1019768","175.20","Agency Staff","190463838","30/05/2018","Strategic Organisation Development","Global Budgets","R1100"
"Wolverhampton City Council","http://opendatacommunities.org/id/metropolitan-district-council/wolverhampton","710928","Yoo Recruit LTD","CWC1019759","1,223.59","Agency Staff","190463829","30/05/2018","Mental Health Assesment & Care Management","Mental Health Assessment & Care Management","R1100"
"Wolverhampton City Council","http://opendatacommunities.org/id/metropolitan-district-council/wolverhampton","710928","Yoo Recruit LTD","CWC1019770","48.12","Agency Staff","190463840","30/05/2018","Strategic Organisation Development","Adult Lending Library","R1100"
"Wolverhampton City Council","http://opendatacommunities.org/id/metropolitan-district-council/wolverhampton","710928","Yoo Recruit LTD","CWC10197156","388.89","Agency Staff","190463926","30/05/2018","Leisure Services","Bert Williams Leisure Centre","R1100"
"Wolverhampton City Council","http://opendatacommunities.org/id/metropolitan-district-council/wolverhampton","710928","Yoo Recruit LTD","CWC10197163","95.95","Agency Staff","190463933","30/05/2018","Leisure Services","Central Baths","R1100"
"Wolverhampton City Council","http://opendatacommunities.org/id/metropolitan-district-council/wolverhampton","710928","Yoo Recruit LTD","CWC10197213","476.63","Agency Staff","190463983","30/05/2018","Customer Services","City Direct","R1100"
"Wolverhampton City Council","http://opendatacommunities.org/id/metropolitan-district-council/wolverhampton","710928","Yoo Recruit LTD","CWC10197262","400.75","Agency Staff","190464032","30/05/2018","Parking Services","Shopmobility","R1100"
"Wolverhampton City Council","http://opendatacommunities.org/id/metropolitan-district-council/wolverhampton","710928","Yoo Recruit LTD","CWC10189310","90.00","Agency Staff","190459004","18/05/2018","Adult Education","Educational Studies Delivery Area","R1100"
"Wolverhampton City Council","http://opendatacommunities.org/id/metropolitan-district-council/wolverhampton","710928","Yoo Recruit LTD","CWC10181240","28.80","Agency Staff","190453296","02/05/2018","Public Protection","EHTS Staffing","R1100"
"Wolverhampton City Council","http://opendatacommunities.org/id/metropolitan-district-council/wolverhampton","710928","Yoo Recruit LTD","CWC10181340","41.85","Agency Staff","190453396","02/05/2018","Early Intervention","EIP Locality 7 � Low Hill","R1100"
"Wolverhampton City Council","http://opendatacommunities.org/id/metropolitan-district-council/wolverhampton","710928","Yoo Recruit LTD","CWC10181282","156.65","Agency Staff","190453338","02/05/2018","Special Educational Needs","Special - Transport","R1100"
"Wolverhampton City Council","http://opendatacommunities.org/id/metropolitan-district-council/wolverhampton","710928","Yoo Recruit LTD","CWC10181281","93.20","Agency Staff","190453337","02/05/2018","Special Educational Needs","Special - Transport","R1100"
"Wolverhampton City Council","http://opendatacommunities.org/id/metropolitan-district-council/wolverhampton","710928","Yoo Recruit LTD","CWC10181311","110.20","Agency Staff","190453367","02/05/2018","Leisure Services","WV Active Business Support","R1100"
"Wolverhampton City Council","http://opendatacommunities.org/id/metropolitan-district-council/wolverhampton","710928","Yoo Recruit LTD","CWC10181294","394.01","Agency Staff","190453350","02/05/2018","Central Corporate Budgets","Non Distributed Costs - Pensions Fund","R1100"
"Wolverhampton City Council","http://opendatacommunities.org/id/metropolitan-district-council/wolverhampton","710928","Yoo Recruit LTD","CWC10181300","598.60","Agency Staff","190453356","02/05/2018","Governance Services","Business Support - Governance","R1100"
"Wolverhampton City Council","http://opendatacommunities.org/id/metropolitan-district-council/wolverhampton","710928","Yoo Recruit LTD","CWC10181377","81.41","Agency Staff","190453433","02/05/2018","Visitor Economy","VEC - Casual & Agency Staff","R1100"
"Wolverhampton City Council","http://opendatacommunities.org/id/metropolitan-district-council/wolverhampton","710928","Yoo Recruit LTD","CWC10181369","3,091.30","Agency Staff","190453425","02/05/2018","Digital Transformation Programme","Digital Transformation Programme (Recharge to Capital)","R1100"
"Wolverhampton City Council","http://opendatacommunities.org/id/metropolitan-district-council/wolverhampton","710928","Yoo Recruit LTD","CWC10181357","2.25","Agency Staff","190453413","02/05/2018","Adults Assessment & Care Management SLC","Supporting Life Choices","R1100"
"Wolverhampton City Council","http://opendatacommunities.org/id/metropolitan-district-council/wolverhampton","710928","Yoo Recruit LTD","CWC10181382","136.80","Agency Staff","190453438","02/05/2018","Visitor Economy","VEC - Casual & Agency Staff","R1100"
"Wolverhampton City Council","http://opendatacommunities.org/id/metropolitan-district-council/wolverhampton","710928","Yoo Recruit LTD","CWC10181355","1.13","Agency Staff","190453411","02/05/2018","Adults Assessment & Care Management SLC","Supporting Life Choices","R1100"
"Wolverhampton City Council","http://opendatacommunities.org/id/metropolitan-district-council/wolverhampton","710928","Yoo Recruit LTD","CWC10181381","135.36","Agency Staff","190453437","02/05/2018","Visitor Economy","VEC - Casual & Agency Staff","R1100"
"Wolverhampton City Council","http://opendatacommunities.org/id/metropolitan-district-council/wolverhampton","710928","Yoo Recruit LTD","CWC101814","7.65","Agency Staff","190453060","02/05/2018","Looked After Children","Adoption and Residence Team & Allowances","R1100"
"Wolverhampton City Council","http://opendatacommunities.org/id/metropolitan-district-council/wolverhampton","710928","Yoo Recruit LTD","CWC101819","492.88","Agency Staff","190453065","02/05/2018","Looked After Children","Head of Service - LAC","R1100"
"Wolverhampton City Council","http://opendatacommunities.org/id/metropolitan-district-council/wolverhampton","710928","Yoo Recruit LTD","CWC10181384","148.20","Agency Staff","190453440","02/05/2018","Visitor Economy","VEC - Casual & Agency Staff","R1100"
"Wolverhampton City Council","http://opendatacommunities.org/id/metropolitan-district-council/wolverhampton","710928","Yoo Recruit LTD","CWC1018127","641.18","Agency Staff","190453083","02/05/2018","Learning Disability Provider","Ernest Bold Court","R1100"
"Wolverhampton City Council","http://opendatacommunities.org/id/metropolitan-district-council/wolverhampton","710928","Yoo Recruit LTD","CWC1018141","14.58","Agency Staff","190453097","02/05/2018","Mental Health Assesment & Care Management","Mental Health Assessment & Care Management","R1100"
"Wolverhampton City Council","http://opendatacommunities.org/id/metropolitan-district-council/wolverhampton","710928","Yoo Recruit LTD","CWC1018180","34.89","Agency Staff","190453136","02/05/2018","Leisure Services","Bert Williams Leisure Centre","R1100"
"Wolverhampton City Council","http://opendatacommunities.org/id/metropolitan-district-council/wolverhampton","710928","Yoo Recruit LTD","CWC1018187","95.40","Agency Staff","190453143","02/05/2018","Leisure Services","Bert Williams Leisure Centre","R1100"
"Wolverhampton City Council","http://opendatacommunities.org/id/metropolitan-district-council/wolverhampton","710928","Yoo Recruit LTD","CWC10181104","102.48","Agency Staff","190453160","02/05/2018","Leisure Services","Central Baths","R1100"
"Wolverhampton City Council","http://opendatacommunities.org/id/metropolitan-district-council/wolverhampton","710928","Yoo Recruit LTD","CWC10181105","127.20","Agency Staff","190453161","02/05/2018","Leisure Services","Central Baths","R1100"
"Wolverhampton City Council","http://opendatacommunities.org/id/metropolitan-district-council/wolverhampton","710928","Yoo Recruit LTD","CWC1018159","3.60","Agency Staff","190453115","02/05/2018","Independent Living Service","Independent Living Service","R1100"
"Wolverhampton City Council","http://opendatacommunities.org/id/metropolitan-district-council/wolverhampton","710928","Yoo Recruit LTD","CWC1018158","2.70","Agency Staff","190453114","02/05/2018","Independent Living Service","Independent Living Service","R1100"
"Wolverhampton City Council","http://opendatacommunities.org/id/metropolitan-district-council/wolverhampton","710928","Yoo Recruit LTD","CWC10181119","4.50","Agency Staff","190453175","02/05/2018","Safeguarding","MCA General","R1100"
"Wolverhampton City Council","http://opendatacommunities.org/id/metropolitan-district-council/wolverhampton","710928","Yoo Recruit LTD","CWC10181130","97.68","Agency Staff","190453186","02/05/2018","Catering","Primary Schools Catering","R1100"
"Wolverhampton City Council","http://opendatacommunities.org/id/metropolitan-district-council/wolverhampton","710928","Yoo Recruit LTD","CWC10181128","91.20","Agency Staff","190453184","02/05/2018","Catering","Primary Schools Catering","R1100"
"Wolverhampton City Council","http://opendatacommunities.org/id/metropolitan-district-council/wolverhampton","710928","Yoo Recruit LTD","CWC10181129","94.05","Agency Staff","190453185","02/05/2018","Catering","Primary Schools Catering","R1100"
"Wolverhampton City Council","http://opendatacommunities.org/id/metropolitan-district-council/wolverhampton","710928","Yoo Recruit LTD","CWC10181146","114.30","Agency Staff","190453202","02/05/2018","Catering","Other Catering - General Overheads","R1100"
"Wolverhampton City Council","http://opendatacommunities.org/id/metropolitan-district-council/wolverhampton","710928","Yoo Recruit LTD","CWC10181168","540.18","Agency Staff","190453224","02/05/2018","Customer Services","City Direct","R1100"
"Wolverhampton City Council","http://opendatacommunities.org/id/metropolitan-district-council/wolverhampton","710928","Yoo Recruit LTD","CWC10181184","141.63","Agency Staff","190453240","02/05/2018","Cleaning","Cleaning of Buildings - General","R1100"
"Wolverhampton City Council","http://opendatacommunities.org/id/metropolitan-district-council/wolverhampton","710928","Yoo Recruit LTD","CWC10181183","137.16","Agency Staff","190453239","02/05/2018","Cleaning","Cleaning of Buildings - General","R1100"
"Wolverhampton City Council","http://opendatacommunities.org/id/metropolitan-district-council/wolverhampton","710928","Yoo Recruit LTD","CWC10181221","669.06","Agency Staff","190453277","02/05/2018","Legal Services","Legal Services","R1100"
"Wolverhampton City Council","http://opendatacommunities.org/id/metropolitan-district-council/wolverhampton","710928","Yoo Recruit LTD","CWC10181222","921.93","Agency Staff","190453278","02/05/2018","Legal Services","Legal Services","R1100"
"Wolverhampton City Council","http://opendatacommunities.org/id/metropolitan-district-council/wolverhampton","710928","Yoo Recruit LTD","CWC10181209","103.05","Agency Staff","190453265","02/05/2018","Parking Services","Shopmobility","R1100"
"Wolverhampton City Council","http://opendatacommunities.org/id/metropolitan-district-council/wolverhampton","710928","Yoo Recruit LTD","CWC10181205","484.88","Agency Staff","190453261","02/05/2018","Corporate Business Support","Corporate Programmes","R1100"
"Wolverhampton City Council","http://opendatacommunities.org/id/metropolitan-district-council/wolverhampton","710928","Yoo Recruit LTD","CWC10197288","-1,549.19","Agency Staff","190464058","30/05/2018","Adult Education","Admin & Support","R1100"
"Wolverhampton City Council","http://opendatacommunities.org/id/metropolitan-district-council/wolverhampton","710928","Yoo Recruit LTD","CWC10197296","-1,297.97","Agency Staff","190464066","30/05/2018","Adult Education","Admin & Support","R1100"
"Wolverhampton City Council","http://opendatacommunities.org/id/metropolitan-district-council/wolverhampton","710928","Yoo Recruit LTD","CWC10197337","497.09","Agency Staff","190464107","30/05/2018","School Planning & Resources","Music Support Team","R1100"
"Wolverhampton City Council","http://opendatacommunities.org/id/metropolitan-district-council/wolverhampton","710928","Yoo Recruit LTD","CWC10197318","120.95","Agency Staff","190464088","30/05/2018","Adult Education","Language Studies Delivery Area","R1100"
"Wolverhampton City Council","http://opendatacommunities.org/id/metropolitan-district-council/wolverhampton","710928","Yoo Recruit LTD","CWC10197410","105.09","Agency Staff","190464180","30/05/2018","The Hub","Payroll/HR","R1100"
"Wolverhampton City Council","http://opendatacommunities.org/id/metropolitan-district-council/wolverhampton","710928","Yoo Recruit LTD","CWC10197471","1.35","Agency Staff","190464241","30/05/2018","Adults Assessment & Care Management SLC","Supporting Life Choices","R1100"
"Wolverhampton City Council","http://opendatacommunities.org/id/metropolitan-district-council/wolverhampton","710928","Yoo Recruit LTD","CWC1019734","739.20","Agency Staff","190463804","30/05/2018","Child Protection","Childrens with Disabilities Team","R1100"
"Wolverhampton City Council","http://opendatacommunities.org/id/metropolitan-district-council/wolverhampton","710928","Yoo Recruit LTD","CWC1019745","151.34","Agency Staff","190463815","30/05/2018","Learning Disability Provider","Ernest Bold Court","R1100"
"Wolverhampton City Council","http://opendatacommunities.org/id/metropolitan-district-council/wolverhampton","710928","Yoo Recruit LTD","CWC1019725","2.25","Agency Staff","190463795","30/05/2018","Youth Offending","Youth Offending Team","R1100"
"Wolverhampton City Council","http://opendatacommunities.org/id/metropolitan-district-council/wolverhampton","710928","Yoo Recruit LTD","CWC1019767","163.52","Agency Staff","190463837","30/05/2018","Strategic Organisation Development","Global Budgets","R1100"
"Wolverhampton City Council","http://opendatacommunities.org/id/metropolitan-district-council/wolverhampton","710928","Yoo Recruit LTD","CWC1019787","7.20","Agency Staff","190463857","30/05/2018","Independent Living Service","Independent Living Service","R1100"
"Wolverhampton City Council","http://opendatacommunities.org/id/metropolitan-district-council/wolverhampton","710928","Yoo Recruit LTD","CWC10197110","-3.60","Agency Staff","190463880","30/05/2018","Adults Assessment & Care Management West","Hospital Team","R1100"
"Wolverhampton City Council","http://opendatacommunities.org/id/metropolitan-district-council/wolverhampton","710928","Yoo Recruit LTD","CWC10197105","-7.20","Agency Staff","190463875","30/05/2018","Adults Assessment & Care Management West","Hospital Team","R1100"
"Wolverhampton City Council","http://opendatacommunities.org/id/metropolitan-district-council/wolverhampton","710928","Yoo Recruit LTD","CWC1019794","1,184.00","Agency Staff","190463864","30/05/2018","Independent Living Service","Independent Living Service","R1100"
"Wolverhampton City Council","http://opendatacommunities.org/id/metropolitan-district-council/wolverhampton","710928","Yoo Recruit LTD","CWC10197150","139.56","Agency Staff","190463920","30/05/2018","Leisure Services","Bert Williams Leisure Centre","R1100"
"Wolverhampton City Council","http://opendatacommunities.org/id/metropolitan-district-council/wolverhampton","710928","Yoo Recruit LTD","CWC10197177","502.20","Agency Staff","190463947","30/05/2018","Safeguarding","MCA General","R1100"
"Wolverhampton City Council","http://opendatacommunities.org/id/metropolitan-district-council/wolverhampton","710928","Yoo Recruit LTD","CWC10197201","116.50","Agency Staff","190463971","30/05/2018","Catering","Other Catering - General Overheads","R1100"
"Wolverhampton City Council","http://opendatacommunities.org/id/metropolitan-district-council/wolverhampton","710928","Yoo Recruit LTD","CWC10197194","114.30","Agency Staff","190463964","30/05/2018","Catering","Other Catering - General Overheads","R1100"
"Wolverhampton City Council","http://opendatacommunities.org/id/metropolitan-district-council/wolverhampton","710928","Yoo Recruit LTD","CWC10197191","113.40","Agency Staff","190463961","30/05/2018","Catering","Other Catering - General Overheads","R1100"
"Wolverhampton City Council","http://opendatacommunities.org/id/metropolitan-district-council/wolverhampton","710928","Yoo Recruit LTD","CWC10197227","114.30","Agency Staff","190463997","30/05/2018","Cleaning","Cleaning of Buildings - General","R1100"
"Wolverhampton City Council","http://opendatacommunities.org/id/metropolitan-district-council/wolverhampton","710928","Yoo Recruit LTD","CWC10197232","136.80","Agency Staff","190464002","30/05/2018","Cleaning","Cleaning of Buildings - General","R1100"
"Wolverhampton City Council","http://opendatacommunities.org/id/metropolitan-district-council/wolverhampton","710928","Yoo Recruit LTD","CWC10197229","135.72","Agency Staff","190463999","30/05/2018","Cleaning","Cleaning of Buildings - General","R1100"
"Wolverhampton City Council","http://opendatacommunities.org/id/metropolitan-district-council/wolverhampton","710928","Yoo Recruit LTD","CWC10185124","286.16","Agency Staff","190455905","11/05/2018","Strategic Organisation Development","Global Budgets","R1100"
"Wolverhampton City Council","http://opendatacommunities.org/id/metropolitan-district-council/wolverhampton","710928","Yoo Recruit LTD","CWC10185428","184.44","Agency Staff","190456209","11/05/2018","Leisure Services","WV Active Business Support","R1100"
"Wolverhampton City Council","http://opendatacommunities.org/id/metropolitan-district-council/wolverhampton","710928","Yoo Recruit LTD","CWC10185427","163.20","Agency Staff","190456208","11/05/2018","Leisure Services","WV Active Business Support","R1100"
"Wolverhampton City Council","http://opendatacommunities.org/id/metropolitan-district-council/wolverhampton","710928","Yoo Recruit LTD","CWC10185160","438.84","Agency Staff","190455941","11/05/2018","Leisure Services","Bert Williams Leisure Centre","R1100"
"Wolverhampton City Council","http://opendatacommunities.org/id/metropolitan-district-council/wolverhampton","710928","Yoo Recruit LTD","CWC10185430","242.73","Agency Staff","190456211","11/05/2018","Leisure Services","WV Active Business Support","R1100"
"Wolverhampton City Council","http://opendatacommunities.org/id/metropolitan-district-council/wolverhampton","710928","Yoo Recruit LTD","CWC10185433","485.44","Agency Staff","190456214","11/05/2018","Leisure Services","WV Active Business Support","R1100"
"Wolverhampton City Council","http://opendatacommunities.org/id/metropolitan-district-council/wolverhampton","710928","Yoo Recruit LTD","CWC10185181","114.00","Agency Staff","190455962","11/05/2018","Catering","Primary Schools Catering","R1100"
"Wolverhampton City Council","http://opendatacommunities.org/id/metropolitan-district-council/wolverhampton","710928","Yoo Recruit LTD","CWC10185204","254.40","Agency Staff","190455985","11/05/2018","Customer Services","City Direct","R1100"
"Wolverhampton City Council","http://opendatacommunities.org/id/metropolitan-district-council/wolverhampton","710928","Yoo Recruit LTD","CWC10185196","116.40","Agency Staff","190455977","11/05/2018","Catering","Other Catering - General Overheads","R1100"
"Wolverhampton City Council","http://opendatacommunities.org/id/metropolitan-district-council/wolverhampton","710928","Yoo Recruit LTD","CWC10185459","-229.11","Agency Staff","190456240","11/05/2018","Child Protection","CIN/CP Social Work Unit - Area 2","R1100"
"Wolverhampton City Council","http://opendatacommunities.org/id/metropolitan-district-council/wolverhampton","710928","Yoo Recruit LTD","CWC10185482","-30.60","Agency Staff","190456263","11/05/2018","Child Protection","CIN/CP Social Work Unit - Area 4","R1100"
"Wolverhampton City Council","http://opendatacommunities.org/id/metropolitan-district-council/wolverhampton","710928","Yoo Recruit LTD","CWC10185498","34.04","Agency Staff","190456279","11/05/2018","Early Intervention","EIP Locality 5 � Whitmore Reans","R1100"
"Wolverhampton City Council","http://opendatacommunities.org/id/metropolitan-district-council/wolverhampton","710928","Yoo Recruit LTD","CWC10185497","36.33","Agency Staff","190456278","11/05/2018","Early Intervention","EIP Locality 4 - Bingley","R1100"
"Wolverhampton City Council","http://opendatacommunities.org/id/metropolitan-district-council/wolverhampton","710928","Yoo Recruit LTD","CWC10185500","41.85","Agency Staff","190456281","11/05/2018","Early Intervention","EIP Locality 7 � Low Hill","R1100"
"Wolverhampton City Council","http://opendatacommunities.org/id/metropolitan-district-council/wolverhampton","710928","Yoo Recruit LTD","CWC10185522","180.27","Agency Staff","190456303","11/05/2018","Leisure Services","WV Active Catering - Central","R1100"
"Wolverhampton City Council","http://opendatacommunities.org/id/metropolitan-district-council/wolverhampton","710928","Yoo Recruit LTD","CWC10185534","93.04","Agency Staff","190456315","11/05/2018","Visitor Economy","VEC - Casual & Agency Staff","R1100"
"Wolverhampton City Council","http://opendatacommunities.org/id/metropolitan-district-council/wolverhampton","710928","Yoo Recruit LTD","CWC10185254","263.35","Agency Staff","190456035","11/05/2018","Parking Services","Shopmobility","R1100"
"Wolverhampton City Council","http://opendatacommunities.org/id/metropolitan-district-council/wolverhampton","710928","Yoo Recruit LTD","CWC1018564","831.60","Agency Staff","190455845","11/05/2018","Child Protection","Childrens with Disabilities Team","R1100"
"Wolverhampton City Council","http://opendatacommunities.org/id/metropolitan-district-council/wolverhampton","710928","Yoo Recruit LTD","CWC10185308","104.85","Agency Staff","190456089","11/05/2018","Special Educational Needs","Special - Transport","R1100"
"Wolverhampton City Council","http://opendatacommunities.org/id/metropolitan-district-council/wolverhampton","710928","Yoo Recruit LTD","CWC1018542","1,259.10","Agency Staff","190455823","11/05/2018","Looked After Children","LAC Transitions Team","R1100"
"Wolverhampton City Council","http://opendatacommunities.org/id/metropolitan-district-council/wolverhampton","710928","Yoo Recruit LTD","CWC10185268","541.62","Agency Staff","190456049","11/05/2018","Legal Services","Legal Services","R1100"
"Wolverhampton City Council","http://opendatacommunities.org/id/metropolitan-district-council/wolverhampton","710928","Yoo Recruit LTD","CWC10185333","-965.54","Agency Staff","190456114","11/05/2018","Child Protection","CIN - Warstones MAST - Area 4","R1100"
"Wolverhampton City Council","http://opendatacommunities.org/id/metropolitan-district-council/wolverhampton","710928","Yoo Recruit LTD","CWC10185332","-981.90","Agency Staff","190456113","11/05/2018","Child Protection","CIN - Warstones MAST - Area 4","R1100"
"Wolverhampton City Council","http://opendatacommunities.org/id/metropolitan-district-council/wolverhampton","710928","Yoo Recruit LTD","CWC10185342","-19.80","Agency Staff","190456123","11/05/2018","Child Protection","CIN - Warstones MAST - Area 4","R1100"
"Wolverhampton City Council","http://opendatacommunities.org/id/metropolitan-district-council/wolverhampton","710928","Yoo Recruit LTD","CWC101859","1,307.58","Agency Staff","190455790","11/05/2018","Looked After Children","Adoption and Residence Team & Allowances","R1100"
"Wolverhampton City Council","http://opendatacommunities.org/id/metropolitan-district-council/wolverhampton","710928","Yoo Recruit LTD","CWC1018582","127.44","Agency Staff","190455863","11/05/2018","Learning Disability Provider","Duke Street Bungalows","R1100"
"Wolverhampton City Council","http://opendatacommunities.org/id/metropolitan-district-council/wolverhampton","710928","Yoo Recruit LTD","CWC10185350","21.60","Agency Staff","190456131","11/05/2018","Child Protection","CIN - Warstones MAST - Area 4","R1100"
"Wolverhampton City Council","http://opendatacommunities.org/id/metropolitan-district-council/wolverhampton","710928","Yoo Recruit LTD","CWC10185292","991.79","Agency Staff","190456073","11/05/2018","Adult Education","Language Studies Delivery Area","R1100"
"Wolverhampton City Council","http://opendatacommunities.org/id/metropolitan-district-council/wolverhampton","710928","Yoo Recruit LTD","CWC10185294","6.50","Agency Staff","190456075","11/05/2018","School Planning & Resources","Music Support Team","R1100"
"Wolverhampton City Council","http://opendatacommunities.org/id/metropolitan-district-council/wolverhampton","710928","Yoo Recruit LTD","CWC10185104","5.85","Agency Staff","190455885","11/05/2018","Mental Health Assesment & Care Management","Mental Health Assessment & Care Management","R1100"
"Wolverhampton City Council","http://opendatacommunities.org/id/metropolitan-district-council/wolverhampton","710928","Yoo Recruit LTD","CWC1018556","19.35","Agency Staff","190455837","11/05/2018","Child Protection","Childrens with Disabilities Team","R1100"
"Wolverhampton City Council","http://opendatacommunities.org/id/metropolitan-district-council/wolverhampton","710928","Yoo Recruit LTD","CWC1018530","7.20","Agency Staff","190455811","11/05/2018","Looked After Children","LAC Transitions Team","R1100"
"Wolverhampton City Council","http://opendatacommunities.org/id/metropolitan-district-council/wolverhampton","710928","Yoo Recruit LTD","CWC1018548","1,147.13","Agency Staff","190455829","11/05/2018","Youth Offending","Youth Offending Team","R1100"
"Wolverhampton City Council","http://opendatacommunities.org/id/metropolitan-district-council/wolverhampton","710928","Yoo Recruit LTD","CWC1018546","1,259.10","Agency Staff","190455827","11/05/2018","Looked After Children","LAC Transitions Team","R1100"
"Wolverhampton City Council","http://opendatacommunities.org/id/metropolitan-district-council/wolverhampton","710928","Yoo Recruit LTD","CWC10185369","1,050.56","Agency Staff","190456150","11/05/2018","Child Protection","CIN - Warstones MAST - Area 4","R1100"
"Wolverhampton City Council","http://opendatacommunities.org/id/metropolitan-district-council/wolverhampton","710928","Yoo Recruit LTD","CWC10185397","-490.95","Agency Staff","190456178","11/05/2018","Looked After Children","Peripatetic Social Work Unit - LAC","R1100"
"Wolverhampton City Council","http://opendatacommunities.org/id/metropolitan-district-council/wolverhampton","710928","Yoo Recruit LTD","CWC10185120","93.44","Agency Staff","190455901","11/05/2018","Strategic Organisation Development","Global Budgets","R1100"
"Wolverhampton City Council","http://opendatacommunities.org/id/metropolitan-district-council/wolverhampton","710928","Yoo Recruit LTD","CWC10185122","116.80","Agency Staff","190455903","11/05/2018","Strategic Organisation Development","Global Budgets","R1100"
"Wolverhampton City Council","http://opendatacommunities.org/id/metropolitan-district-council/wolverhampton","710928","Yoo Recruit LTD","CWC10185316","449.25","Agency Staff","190456097","11/05/2018","School Planning & Resources","Technical Support","R1100"
"Wolverhampton City Council","http://opendatacommunities.org/id/metropolitan-district-council/wolverhampton","710928","Yoo Recruit LTD","CWC10185388","470.64","Agency Staff","190456169","11/05/2018","Safeguarding","Safeguarding & Quality Administration","R1100"
"Wolverhampton City Council","http://opendatacommunities.org/id/metropolitan-district-council/wolverhampton","710928","Yoo Recruit LTD","CWC10185132","1,184.00","Agency Staff","190455913","11/05/2018","Independent Living Service","Independent Living Service","R1100"
"Wolverhampton City Council","http://opendatacommunities.org/id/metropolitan-district-council/wolverhampton","710928","Yoo Recruit LTD","CWC10185423","108.80","Agency Staff","190456204","11/05/2018","Leisure Services","WV Active Business Support","R1100"
"Wolverhampton City Council","http://opendatacommunities.org/id/metropolitan-district-council/wolverhampton","710928","Yoo Recruit LTD","CWC10185154","101.28","Agency Staff","190455935","11/05/2018","Leisure Services","Bert Williams Leisure Centre","R1100"
"Wolverhampton City Council","http://opendatacommunities.org/id/metropolitan-district-council/wolverhampton","710928","Yoo Recruit LTD","CWC10185443","-981.90","Agency Staff","190456224","11/05/2018","Child Protection","CIN/CP Social Work Unit - Area 1","R1100"
"Wolverhampton City Council","http://opendatacommunities.org/id/metropolitan-district-council/wolverhampton","710928","Yoo Recruit LTD","CWC10185452","-1,211.01","Agency Staff","190456233","11/05/2018","Child Protection","CIN/CP Social Work Unit - Area 2","R1100"
"Wolverhampton City Council","http://opendatacommunities.org/id/metropolitan-district-council/wolverhampton","710928","Yoo Recruit LTD","CWC10185493","42.55","Agency Staff","190456274","11/05/2018","Early Intervention","EIP Locality 2 � Bilston/Rocket Pool","R1100"
"Wolverhampton City Council","http://opendatacommunities.org/id/metropolitan-district-council/wolverhampton","710928","Yoo Recruit LTD","CWC10185233","171.45","Agency Staff","190456014","11/05/2018","Cleaning","Cleaning of Buildings - General","R1100"
"Wolverhampton City Council","http://opendatacommunities.org/id/metropolitan-district-council/wolverhampton","710928","Yoo Recruit LTD","CWC10185521","1,188.16","Agency Staff","190456302","11/05/2018","Headstart","Headstart - Learning Technologies Team","R1100"
"Wolverhampton City Council","http://opendatacommunities.org/id/metropolitan-district-council/wolverhampton","710928","Yoo Recruit LTD","Consolidated38RD","-152,157.72","Agency Staff","190455781","11/05/2018","Central Corporate Budgets","Yoo Recruit Payments","R1100"
"Wolverhampton City Council","http://opendatacommunities.org/id/metropolitan-district-council/wolverhampton","710928","Yoo Recruit LTD","CWC10185542","279.12","Agency Staff","190456323","11/05/2018","Visitor Economy","VEC - Casual & Agency Staff","R1100"
"Wolverhampton City Council","http://opendatacommunities.org/id/metropolitan-district-council/wolverhampton","710928","Yoo Recruit LTD","CWC10185334","-654.60","Agency Staff","190456115","11/05/2018","Child Protection","CIN - Warstones MAST - Area 4","R1100"
"Wolverhampton City Council","http://opendatacommunities.org/id/metropolitan-district-council/wolverhampton","710928","Yoo Recruit LTD","CWC1018572","984.00","Agency Staff","190455853","11/05/2018","Child Protection","Childrens with Disabilities Team","R1100"
"Wolverhampton City Council","http://opendatacommunities.org/id/metropolitan-district-council/wolverhampton","710928","Yoo Recruit LTD","CWC1018576","984.00","Agency Staff","190455857","11/05/2018","Child Protection","Childrens with Disabilities Team","R1100"
"Wolverhampton City Council","http://opendatacommunities.org/id/metropolitan-district-council/wolverhampton","710928","Yoo Recruit LTD","CWC1018522","-1,256.10","Agency Staff","190455803","11/05/2018","Looked After Children","LAC Transitions Team","R1100"
"Wolverhampton City Council","http://opendatacommunities.org/id/metropolitan-district-council/wolverhampton","710928","Yoo Recruit LTD","CWC1018524","-1,235.17","Agency Staff","190455805","11/05/2018","Looked After Children","LAC Transitions Team","R1100"
"Wolverhampton City Council","http://opendatacommunities.org/id/metropolitan-district-council/wolverhampton","710928","Yoo Recruit LTD","CWC1018526","-1,025.82","Agency Staff","190455807","11/05/2018","Looked After Children","LAC Transitions Team","R1100"
"Wolverhampton City Council","http://opendatacommunities.org/id/metropolitan-district-council/wolverhampton","710928","Yoo Recruit LTD","CWC1018525","-1,130.49","Agency Staff","190455806","11/05/2018","Looked After Children","LAC Transitions Team","R1100"
"Wolverhampton City Council","http://opendatacommunities.org/id/metropolitan-district-council/wolverhampton","710928","Yoo Recruit LTD","CWC10185288","365.63","Agency Staff","190456069","11/05/2018","Adult Education","Language Studies Delivery Area","R1100"
"Wolverhampton City Council","http://opendatacommunities.org/id/metropolitan-district-council/wolverhampton","710928","Yoo Recruit LTD","CWC10185299","169.45","Agency Staff","190456080","11/05/2018","School Planning & Resources","Music Support Team","R1100"
"Wolverhampton City Council","http://opendatacommunities.org/id/metropolitan-district-council/wolverhampton","710928","Yoo Recruit LTD","CWC1018537","981.90","Agency Staff","190455818","11/05/2018","Looked After Children","LAC Transitions Team","R1100"
"Wolverhampton City Council","http://opendatacommunities.org/id/metropolitan-district-council/wolverhampton","710928","Yoo Recruit LTD","CWC10197314","381.46","Agency Staff","190464084","30/05/2018","Adult Education","Foundation Studies Delivery Area","R1100"
"Wolverhampton City Council","http://opendatacommunities.org/id/metropolitan-district-council/wolverhampton","710928","Yoo Recruit LTD","CWC10197313","324.27","Agency Staff","190464083","30/05/2018","Adult Education","Foundation Studies Delivery Area","R1100"
"Wolverhampton City Council","http://opendatacommunities.org/id/metropolitan-district-council/wolverhampton","710928","Yoo Recruit LTD","CWC10197367","1,518.15","Agency Staff","190464137","30/05/2018","Corporate Asset Management","Strategic Asset Management Team","R1100"
"Wolverhampton City Council","http://opendatacommunities.org/id/metropolitan-district-council/wolverhampton","710928","Yoo Recruit LTD","CWC10197478","4.50","Agency Staff","190464248","30/05/2018","Adults Assessment & Care Management SLC","Supporting Life Choices","R1100"
"Wolverhampton City Council","http://opendatacommunities.org/id/metropolitan-district-council/wolverhampton","710928","Yoo Recruit LTD","CWC10197414","9.60","Agency Staff","190464184","30/05/2018","Child Protection","CIN/CP Social Work Unit - Area 1","R1100"
"Wolverhampton City Council","http://opendatacommunities.org/id/metropolitan-district-council/wolverhampton","710928","Yoo Recruit LTD","CWC101972","2.70","Agency Staff","190463772","30/05/2018","Looked After Children","Fostering Team & Allowances","R1100"
"Wolverhampton City Council","http://opendatacommunities.org/id/metropolitan-district-council/wolverhampton","710928","Yoo Recruit LTD","CWC1019775","2.70","Agency Staff","190463845","30/05/2018","Independent Living Service","Independent Living Service","R1100"
"Wolverhampton City Council","http://opendatacommunities.org/id/metropolitan-district-council/wolverhampton","710928","Yoo Recruit LTD","CWC10197139","56.30","Agency Staff","190463909","30/05/2018","Leisure Services","Bert Williams Leisure Centre","R1100"
"Wolverhampton City Council","http://opendatacommunities.org/id/metropolitan-district-council/wolverhampton","710928","Yoo Recruit LTD","CWC10197224","57.00","Agency Staff","190463994","30/05/2018","Cleaning","Cleaning of Buildings - General","R1100"
"Wolverhampton City Council","http://opendatacommunities.org/id/metropolitan-district-council/wolverhampton","710928","Yoo Recruit LTD","CWC10181245","29.70","Agency Staff","190453301","02/05/2018","Public Protection","EHTS Staffing","R1100"
"Wolverhampton City Council","http://opendatacommunities.org/id/metropolitan-district-council/wolverhampton","710928","Yoo Recruit LTD","CWC10181238","28.80","Agency Staff","190453294","02/05/2018","Public Protection","EHTS Staffing","R1100"
"Wolverhampton City Council","http://opendatacommunities.org/id/metropolitan-district-council/wolverhampton","710928","Yoo Recruit LTD","CWC10181246","32.40","Agency Staff","190453302","02/05/2018","Public Protection","EHTS Staffing","R1100"
"Wolverhampton City Council","http://opendatacommunities.org/id/metropolitan-district-council/wolverhampton","710928","Yoo Recruit LTD","CWC10181236","20.25","Agency Staff","190453292","02/05/2018","Public Protection","EHTS Staffing","R1100"
"Wolverhampton City Council","http://opendatacommunities.org/id/metropolitan-district-council/wolverhampton","710928","Yoo Recruit LTD","CWC10181276","448.14","Agency Staff","190453332","02/05/2018","School Planning & Resources","Music Support Team","R1100"
"Wolverhampton City Council","http://opendatacommunities.org/id/metropolitan-district-council/wolverhampton","710928","Yoo Recruit LTD","CWC10181287","449.25","Agency Staff","190453343","02/05/2018","School Planning & Resources","Technical Support","R1100"
"Wolverhampton City Council","http://opendatacommunities.org/id/metropolitan-district-council/wolverhampton","710928","Yoo Recruit LTD","CWC10181338","1,217.30","Agency Staff","190453394","02/05/2018","Child Protection","MASH","R1100"
"Wolverhampton City Council","http://opendatacommunities.org/id/metropolitan-district-council/wolverhampton","710928","Yoo Recruit LTD","CWC10181295","305.28","Agency Staff","190453351","02/05/2018","Safeguarding","Safeguarding & Quality Administration","R1100"
"Wolverhampton City Council","http://opendatacommunities.org/id/metropolitan-district-council/wolverhampton","710928","Yoo Recruit LTD","CWC10181297","736.43","Agency Staff","190453353","02/05/2018","Looked After Children","Peripatetic Social Work Unit - LAC","R1100"
"Wolverhampton City Council","http://opendatacommunities.org/id/metropolitan-district-council/wolverhampton","710928","Yoo Recruit LTD","CWC10181346","49.05","Agency Staff","190453402","02/05/2018","Adults Assessment & Care Management North","Adult Services � North","R1100"
"Wolverhampton City Council","http://opendatacommunities.org/id/metropolitan-district-council/wolverhampton","710928","Yoo Recruit LTD","CWC10181261","170.48","Agency Staff","190453317","02/05/2018","Adult Education","Direct Delivery Team ( L.& D.)","R1100"
"Wolverhampton City Council","http://opendatacommunities.org/id/metropolitan-district-council/wolverhampton","710928","Yoo Recruit LTD","CWC10181321","465.85","Agency Staff","190453377","02/05/2018","The Hub","Payroll/HR","R1100"
"Wolverhampton City Council","http://opendatacommunities.org/id/metropolitan-district-council/wolverhampton","710928","Yoo Recruit LTD","Consolidated37RD","-147,372.46","Agency Staff","190453056","02/05/2018","Central Corporate Budgets","Yoo Recruit Payments","R1100"
"Wolverhampton City Council","http://opendatacommunities.org/id/metropolitan-district-council/wolverhampton","710928","Yoo Recruit LTD","CWC10181367","180.27","Agency Staff","190453423","02/05/2018","Leisure Services","WV Active Catering - Central","R1100"
"Wolverhampton City Council","http://opendatacommunities.org/id/metropolitan-district-council/wolverhampton","710928","Yoo Recruit LTD","CWC10181372","52.34","Agency Staff","190453428","02/05/2018","Visitor Economy","VEC - Casual & Agency Staff","R1100"
"Wolverhampton City Council","http://opendatacommunities.org/id/metropolitan-district-council/wolverhampton","710928","Yoo Recruit LTD","CWC10181371","50.76","Agency Staff","190453427","02/05/2018","Visitor Economy","VEC - Casual & Agency Staff","R1100"
"Wolverhampton City Council","http://opendatacommunities.org/id/metropolitan-district-council/wolverhampton","710928","Yoo Recruit LTD","CWC101811","1,346.09","Agency Staff","190453057","02/05/2018","Looked After Children","Fostering Team & Allowances","R1100"
"Wolverhampton City Council","http://opendatacommunities.org/id/metropolitan-district-council/wolverhampton","710928","Yoo Recruit LTD","CWC10181325","1,211.01","Agency Staff","190453381","02/05/2018","Child Protection","CIN/CP Social Work Unit - Area 1","R1100"
"Wolverhampton City Council","http://opendatacommunities.org/id/metropolitan-district-council/wolverhampton","710928","Yoo Recruit LTD","CWC10181333","1,231.13","Agency Staff","190453389","02/05/2018","Child Protection","CIN/CP Social Work Unit - Area 7","R1100"
"Wolverhampton City Council","http://opendatacommunities.org/id/metropolitan-district-council/wolverhampton","710928","Yoo Recruit LTD","CWC10181334","1,211.01","Agency Staff","190453390","02/05/2018","Child Protection","CIN/CP Social Work Unit - Area 8","R1100"
"Wolverhampton City Council","http://opendatacommunities.org/id/metropolitan-district-council/wolverhampton","710928","Yoo Recruit LTD","CWC10181330","1,549.19","Agency Staff","190453386","02/05/2018","Child Protection","CIN/CP Social Work Unit - Area 2","R1100"
"Wolverhampton City Council","http://opendatacommunities.org/id/metropolitan-district-council/wolverhampton","710928","Yoo Recruit LTD","CWC1018114","206.44","Agency Staff","190453070","02/05/2018","Specialist Support","Upper Pendeford Farm Short Breaks Centre","R1100"
"Wolverhampton City Council","http://opendatacommunities.org/id/metropolitan-district-council/wolverhampton","710928","Yoo Recruit LTD","CWC1018120","1,164.02","Agency Staff","190453076","02/05/2018","Adults Assessment & Care Management North","Learning Disabilities Assessment and Care Management","R1100"
"Wolverhampton City Council","http://opendatacommunities.org/id/metropolitan-district-council/wolverhampton","710928","Yoo Recruit LTD","CWC1018124","310.64","Agency Staff","190453080","02/05/2018","Learning Disability Provider","Duke Street Bungalows","R1100"
"Wolverhampton City Council","http://opendatacommunities.org/id/metropolitan-district-council/wolverhampton","710928","Yoo Recruit LTD","CWC1018129","190.00","Agency Staff","190453085","02/05/2018","Emergency Duty Team","Emergency Duty Team","R1100"
"Wolverhampton City Council","http://opendatacommunities.org/id/metropolitan-district-council/wolverhampton","710928","Yoo Recruit LTD","CWC1018125","123.60","Agency Staff","190453081","02/05/2018","Learning Disability Provider","Ernest Bold Court","R1100"
"Wolverhampton City Council","http://opendatacommunities.org/id/metropolitan-district-council/wolverhampton","710928","Yoo Recruit LTD","CWC1018142","75.40","Agency Staff","190453098","02/05/2018","Mental Health Assesment & Care Management","Mental Health Assessment & Care Management","R1100"
"Wolverhampton City Council","http://opendatacommunities.org/id/metropolitan-district-council/wolverhampton","710928","Yoo Recruit LTD","CWC1018137","2,243.21","Agency Staff","190453093","02/05/2018","Emergency Duty Team","Emergency Duty Team","R1100"
"Wolverhampton City Council","http://opendatacommunities.org/id/metropolitan-district-council/wolverhampton","710928","Yoo Recruit LTD","CWC1018136","2,031.90","Agency Staff","190453092","02/05/2018","Emergency Duty Team","Emergency Duty Team","R1100"
"Wolverhampton City Council","http://opendatacommunities.org/id/metropolitan-district-council/wolverhampton","710928","Yoo Recruit LTD","CWC1018181","56.30","Agency Staff","190453137","02/05/2018","Leisure Services","Bert Williams Leisure Centre","R1100"
"Wolverhampton City Council","http://opendatacommunities.org/id/metropolitan-district-council/wolverhampton","710928","Yoo Recruit LTD","CWC1018169","1,211.01","Agency Staff","190453125","02/05/2018","Adults Assessment & Care Management West","Hospital Team","R1100"
"Wolverhampton City Council","http://opendatacommunities.org/id/metropolitan-district-council/wolverhampton","710928","Yoo Recruit LTD","CWC1018166","1,184.00","Agency Staff","190453122","02/05/2018","Independent Living Service","Independent Living Service","R1100"
"Wolverhampton City Council","http://opendatacommunities.org/id/metropolitan-district-council/wolverhampton","710928","Yoo Recruit LTD","CWC1018176","46.52","Agency Staff","190453132","02/05/2018","Leisure Services","Aldersley Leisure Village","R1100"
"Wolverhampton City Council","http://opendatacommunities.org/id/metropolitan-district-council/wolverhampton","710928","Yoo Recruit LTD","CWC1018173","23.26","Agency Staff","190453129","02/05/2018","Leisure Services","Aldersley Leisure Village","R1100"
"Wolverhampton City Council","http://opendatacommunities.org/id/metropolitan-district-council/wolverhampton","710928","Yoo Recruit LTD","CWC1018195","244.65","Agency Staff","190453151","02/05/2018","Leisure Services","Bert Williams Leisure Centre","R1100"
"Wolverhampton City Council","http://opendatacommunities.org/id/metropolitan-district-council/wolverhampton","710928","Yoo Recruit LTD","CWC1018184","58.82","Agency Staff","190453140","02/05/2018","Leisure Services","Bert Williams Leisure Centre","R1100"
"Wolverhampton City Council","http://opendatacommunities.org/id/metropolitan-district-council/wolverhampton","710928","Yoo Recruit LTD","CWC1018185","63.60","Agency Staff","190453141","02/05/2018","Leisure Services","Bert Williams Leisure Centre","R1100"
"Wolverhampton City Council","http://opendatacommunities.org/id/metropolitan-district-council/wolverhampton","710928","Yoo Recruit LTD","CWC1018150","163.52","Agency Staff","190453106","02/05/2018","Strategic Organisation Development","Global Budgets","R1100"
"Wolverhampton City Council","http://opendatacommunities.org/id/metropolitan-district-council/wolverhampton","710928","Yoo Recruit LTD","CWC10181111","191.90","Agency Staff","190453167","02/05/2018","Leisure Services","Central Baths","R1100"
"Wolverhampton City Council","http://opendatacommunities.org/id/metropolitan-district-council/wolverhampton","710928","Yoo Recruit LTD","CWC1018153","72.18","Agency Staff","190453109","02/05/2018","Strategic Organisation Development","Adult Lending Library","R1100"
"Wolverhampton City Council","http://opendatacommunities.org/id/metropolitan-district-council/wolverhampton","710928","Yoo Recruit LTD","CWC10181126","68.40","Agency Staff","190453182","02/05/2018","Catering","Primary Schools Catering","R1100"
"Wolverhampton City Council","http://opendatacommunities.org/id/metropolitan-district-council/wolverhampton","710928","Yoo Recruit LTD","CWC10181137","68.58","Agency Staff","190453193","02/05/2018","Catering","Other Catering - General Overheads","R1100"
"Wolverhampton City Council","http://opendatacommunities.org/id/metropolitan-district-council/wolverhampton","710928","Yoo Recruit LTD","CWC10181133","114.00","Agency Staff","190453189","02/05/2018","Catering","Primary Schools Catering","R1100"
"Wolverhampton City Council","http://opendatacommunities.org/id/metropolitan-district-council/wolverhampton","710928","Yoo Recruit LTD","CWC10181144","114.00","Agency Staff","190453200","02/05/2018","Catering","Other Catering - General Overheads","R1100"
"Wolverhampton City Council","http://opendatacommunities.org/id/metropolitan-district-council/wolverhampton","710928","Yoo Recruit LTD","CWC10181150","116.50","Agency Staff","190453206","02/05/2018","Catering","Other Catering - General Overheads","R1100"
"Wolverhampton City Council","http://opendatacommunities.org/id/metropolitan-district-council/wolverhampton","710928","Yoo Recruit LTD","CWC10181151","202.31","Agency Staff","190453207","02/05/2018","Catering","Meals on Wheels","R1100"
"Wolverhampton City Council","http://opendatacommunities.org/id/metropolitan-district-council/wolverhampton","710928","Yoo Recruit LTD","CWC10181156","254.40","Agency Staff","190453212","02/05/2018","Customer Services","City Direct","R1100"
"Wolverhampton City Council","http://opendatacommunities.org/id/metropolitan-district-council/wolverhampton","710928","Yoo Recruit LTD","CWC10181155","239.95","Agency Staff","190453211","02/05/2018","Customer Services","City Direct","R1100"
"Wolverhampton City Council","http://opendatacommunities.org/id/metropolitan-district-council/wolverhampton","710928","Yoo Recruit LTD","CWC10181171","758.13","Agency Staff","190453227","02/05/2018","Customer Services","City Direct","R1100"
"Wolverhampton City Council","http://opendatacommunities.org/id/metropolitan-district-council/wolverhampton","710928","Yoo Recruit LTD","CWC10181158","292.33","Agency Staff","190453214","02/05/2018","Customer Services","City Direct","R1100"
"Wolverhampton City Council","http://opendatacommunities.org/id/metropolitan-district-council/wolverhampton","710928","Yoo Recruit LTD","CWC10181160","324.11","Agency Staff","190453216","02/05/2018","Customer Services","City Direct","R1100"
"Wolverhampton City Council","http://opendatacommunities.org/id/metropolitan-district-council/wolverhampton","710928","Yoo Recruit LTD","CWC10181162","470.27","Agency Staff","190453218","02/05/2018","Customer Services","City Direct","R1100"
"Wolverhampton City Council","http://opendatacommunities.org/id/metropolitan-district-council/wolverhampton","710928","Yoo Recruit LTD","CWC10181190","171.45","Agency Staff","190453246","02/05/2018","Cleaning","Cleaning of Buildings - General","R1100"
"Wolverhampton City Council","http://opendatacommunities.org/id/metropolitan-district-council/wolverhampton","710928","Yoo Recruit LTD","CWC10181177","57.65","Agency Staff","190453233","02/05/2018","Cleaning","Cleaning of Buildings - General","R1100"
"Wolverhampton City Council","http://opendatacommunities.org/id/metropolitan-district-council/wolverhampton","710928","Yoo Recruit LTD","CWC10181176","57.00","Agency Staff","190453232","02/05/2018","Cleaning","Cleaning of Buildings - General","R1100"
"Wolverhampton City Council","http://opendatacommunities.org/id/metropolitan-district-council/wolverhampton","710928","Yoo Recruit LTD","CWC10181187","171.45","Agency Staff","190453243","02/05/2018","Cleaning","Cleaning of Buildings - General","R1100"
"Wolverhampton City Council","http://opendatacommunities.org/id/metropolitan-district-council/wolverhampton","710928","Yoo Recruit LTD","CWC10181217","209.72","Agency Staff","190453273","02/05/2018","Public Service Reform","Electoral Registration","R1100"
"Wolverhampton City Council","http://opendatacommunities.org/id/metropolitan-district-council/wolverhampton","710928","Yoo Recruit LTD","CWC10181223","2,085.00","Agency Staff","190453279","02/05/2018","Legal Services","Legal Services","R1100"
"Wolverhampton City Council","http://opendatacommunities.org/id/metropolitan-district-council/wolverhampton","710928","Yoo Recruit LTD","CWC10181204","1,896.75","Agency Staff","190453260","02/05/2018","Commercial Services","Corporate Procurement Unit","R1100"
"Wolverhampton City Council","http://opendatacommunities.org/id/metropolitan-district-council/wolverhampton","710928","Yoo Recruit LTD","CWC10181215","1,512.30","Agency Staff","190453271","02/05/2018","Strategic Finance","Strategic Finance","R1100"
"Wolverhampton City Council","http://opendatacommunities.org/id/metropolitan-district-council/wolverhampton","710928","Yoo Recruit LTD","CWC10181231","17.10","Agency Staff","190453287","02/05/2018","Public Protection","EHTS Staffing","R1100"
"Wolverhampton City Council","http://opendatacommunities.org/id/metropolitan-district-council/wolverhampton","710928","Yoo Recruit LTD","CWC10185149","58.15","Agency Staff","190455930","11/05/2018","Leisure Services","Bert Williams Leisure Centre","R1100"
"Wolverhampton City Council","http://opendatacommunities.org/id/metropolitan-district-council/wolverhampton","710928","Yoo Recruit LTD","CWC10185150","63.97","Agency Staff","190455931","11/05/2018","Leisure Services","Bert Williams Leisure Centre","R1100"
"Wolverhampton City Council","http://opendatacommunities.org/id/metropolitan-district-council/wolverhampton","710928","Yoo Recruit LTD","CWC10185404","837.17","Agency Staff","190456185","11/05/2018","Looked After Children","Peripatetic Social Work Unit - LAC","R1100"
"Wolverhampton City Council","http://opendatacommunities.org/id/metropolitan-district-council/wolverhampton","710928","Yoo Recruit LTD","CWC10185163","38.16","Agency Staff","190455944","11/05/2018","Leisure Services","Central Baths","R1100"
"Wolverhampton City Council","http://opendatacommunities.org/id/metropolitan-district-council/wolverhampton","710928","Yoo Recruit LTD","CWC10185420","82.20","Agency Staff","190456201","11/05/2018","Leisure Services","WV Active Business Support","R1100"
"Wolverhampton City Council","http://opendatacommunities.org/id/metropolitan-district-council/wolverhampton","710928","Yoo Recruit LTD","CWC10185165","60.85","Agency Staff","190455946","11/05/2018","Leisure Services","Central Baths","R1100"
"Wolverhampton City Council","http://opendatacommunities.org/id/metropolitan-district-council/wolverhampton","710928","Yoo Recruit LTD","CWC10185168","218.62","Agency Staff","190455949","11/05/2018","Leisure Services","Central Baths","R1100"
"Wolverhampton City Council","http://opendatacommunities.org/id/metropolitan-district-council/wolverhampton","710928","Yoo Recruit LTD","CWC10185173","321.18","Agency Staff","190455954","11/05/2018","Leisure Services","Central Baths","R1100"
"Wolverhampton City Council","http://opendatacommunities.org/id/metropolitan-district-council/wolverhampton","710928","Yoo Recruit LTD","CWC10185435","152.51","Agency Staff","190456216","11/05/2018","Human Resources","HR Investigations","R1100"
"Wolverhampton City Council","http://opendatacommunities.org/id/metropolitan-district-council/wolverhampton","710928","Yoo Recruit LTD","CWC10185177","22.80","Agency Staff","190455958","11/05/2018","Catering","Education Catering - General Overheads","R1100"
"Wolverhampton City Council","http://opendatacommunities.org/id/metropolitan-district-council/wolverhampton","710928","Yoo Recruit LTD","CWC10185461","968.49","Agency Staff","190456242","11/05/2018","Child Protection","CIN/CP Social Work Unit - Area 2","R1100"
"Wolverhampton City Council","http://opendatacommunities.org/id/metropolitan-district-council/wolverhampton","710928","Yoo Recruit LTD","CWC10185447","1,214.71","Agency Staff","190456228","11/05/2018","Child Protection","CIN/CP Social Work Unit - Area 1","R1100"
"Wolverhampton City Council","http://opendatacommunities.org/id/metropolitan-district-council/wolverhampton","710928","Yoo Recruit LTD","CWC10185469","1,214.71","Agency Staff","190456250","11/05/2018","Child Protection","CIN/CP Social Work Unit - Area 2","R1100"
"Wolverhampton City Council","http://opendatacommunities.org/id/metropolitan-district-council/wolverhampton","710928","Yoo Recruit LTD","CWC10185224","34.29","Agency Staff","190456005","11/05/2018","Cleaning","Cleaning of Buildings - General","R1100"
"Wolverhampton City Council","http://opendatacommunities.org/id/metropolitan-district-council/wolverhampton","710928","Yoo Recruit LTD","CWC10185506","1,223.59","Agency Staff","190456287","11/05/2018","Adults Assessment & Care Management North","Adult Services � North","R1100"
"Wolverhampton City Council","http://opendatacommunities.org/id/metropolitan-district-council/wolverhampton","710928","Yoo Recruit LTD","CWC10185507","612.72","Agency Staff","190456288","11/05/2018","Adults Assessment & Care Management West","Adult Services � West","R1100"
"Wolverhampton City Council","http://opendatacommunities.org/id/metropolitan-district-council/wolverhampton","710928","Yoo Recruit LTD","CWC10185235","199.50","Agency Staff","190456016","11/05/2018","Cleaning","Cleaning of Buildings - General","R1100"
"Wolverhampton City Council","http://opendatacommunities.org/id/metropolitan-district-council/wolverhampton","710928","Yoo Recruit LTD","CWC10185526","2,470.52","Agency Staff","190456307","11/05/2018","Public Service Reform","Councillor Portal","R1100"
"Wolverhampton City Council","http://opendatacommunities.org/id/metropolitan-district-council/wolverhampton","710928","Yoo Recruit LTD","CWC10185531","73.32","Agency Staff","190456312","11/05/2018","Visitor Economy","VEC - Casual & Agency Staff","R1100"
"Wolverhampton City Council","http://opendatacommunities.org/id/metropolitan-district-council/wolverhampton","710928","Yoo Recruit LTD","CWC10185241","119.70","Agency Staff","190456022","11/05/2018","Cleaning","Schools Cleaning","R1100"
"Wolverhampton City Council","http://opendatacommunities.org/id/metropolitan-district-council/wolverhampton","710928","Yoo Recruit LTD","CWC10185543","351.67","Agency Staff","190456324","11/05/2018","Visitor Economy","VEC - Casual & Agency Staff","R1100"
"Wolverhampton City Council","http://opendatacommunities.org/id/metropolitan-district-council/wolverhampton","710928","Yoo Recruit LTD","CWC10185530","70.50","Agency Staff","190456311","11/05/2018","Visitor Economy","VEC - Casual & Agency Staff","R1100"
"Wolverhampton City Council","http://opendatacommunities.org/id/metropolitan-district-council/wolverhampton","710928","Yoo Recruit LTD","CWC10185352","30.15","Agency Staff","190456133","11/05/2018","Child Protection","CIN - Warstones MAST - Area 4","R1100"
"Wolverhampton City Council","http://opendatacommunities.org/id/metropolitan-district-council/wolverhampton","710928","Yoo Recruit LTD","CWC10185354","33.30","Agency Staff","190456135","11/05/2018","Child Protection","CIN - Warstones MAST - Area 4","R1100"
"Wolverhampton City Council","http://opendatacommunities.org/id/metropolitan-district-council/wolverhampton","710928","Yoo Recruit LTD","CWC1018553","13.05","Agency Staff","190455834","11/05/2018","Child Protection","Childrens with Disabilities Team","R1100"
"Wolverhampton City Council","http://opendatacommunities.org/id/metropolitan-district-council/wolverhampton","710928","Yoo Recruit LTD","CWC10185101","4.95","Agency Staff","190455882","11/05/2018","Mental Health Assesment & Care Management","Mental Health Assessment & Care Management","R1100"
"Wolverhampton City Council","http://opendatacommunities.org/id/metropolitan-district-council/wolverhampton","710928","Yoo Recruit LTD","CWC1018561","31.95","Agency Staff","190455842","11/05/2018","Child Protection","Childrens with Disabilities Team","R1100"
"Wolverhampton City Council","http://opendatacommunities.org/id/metropolitan-district-council/wolverhampton","710928","Yoo Recruit LTD","CWC1018531","25.20","Agency Staff","190455812","11/05/2018","Looked After Children","LAC Transitions Team","R1100"
"Wolverhampton City Council","http://opendatacommunities.org/id/metropolitan-district-council/wolverhampton","710928","Yoo Recruit LTD","CWC10185375","1,214.71","Agency Staff","190456156","11/05/2018","Child Protection","CIN - Warstones MAST - Area 4","R1100"
"Wolverhampton City Council","http://opendatacommunities.org/id/metropolitan-district-council/wolverhampton","710928","Yoo Recruit LTD","CWC10185114","1,528.26","Agency Staff","190455895","11/05/2018","Mental Health Assesment & Care Management","Mental Health Assessment & Care Management","R1100"
"Wolverhampton City Council","http://opendatacommunities.org/id/metropolitan-district-council/wolverhampton","710928","Yoo Recruit LTD","CWC10185142","30.80","Agency Staff","190455923","11/05/2018","Leisure Services","Aldersley Leisure Village","R1100"
"Wolverhampton City Council","http://opendatacommunities.org/id/metropolitan-district-council/wolverhampton","710928","Yoo Recruit LTD","CWC10185117","200.67","Agency Staff","190455898","11/05/2018","Strategic Organisation Development","Blakenhall Community & Healthy Living Centre","R1100"
"Wolverhampton City Council","http://opendatacommunities.org/id/metropolitan-district-council/wolverhampton","710928","Yoo Recruit LTD","CWC10185379","1,214.71","Agency Staff","190456160","11/05/2018","Child Protection","CIN - Warstones MAST - Area 4","R1100"
"Wolverhampton City Council","http://opendatacommunities.org/id/metropolitan-district-council/wolverhampton","710928","Yoo Recruit LTD","CWC10197315","675.36","Agency Staff","190464085","30/05/2018","Adult Education","Foundation Studies Delivery Area","R1100"
"Wolverhampton City Council","http://opendatacommunities.org/id/metropolitan-district-council/wolverhampton","710928","Yoo Recruit LTD","CWC10197355","63.05","Agency Staff","190464125","30/05/2018","Public Service Reform","Information Governance","R1100"
"Wolverhampton City Council","http://opendatacommunities.org/id/metropolitan-district-council/wolverhampton","710928","Yoo Recruit LTD","CWC10197377","-381.01","Agency Staff","190464147","30/05/2018","Director of Governance","Director of Governance","R1100"
"Wolverhampton City Council","http://opendatacommunities.org/id/metropolitan-district-council/wolverhampton","710928","Yoo Recruit LTD","CWC10197376","-1,218.03","Agency Staff","190464146","30/05/2018","Director of Governance","Director of Governance","R1100"
"Wolverhampton City Council","http://opendatacommunities.org/id/metropolitan-district-council/wolverhampton","710928","Yoo Recruit LTD","CWC10197389","575.24","Agency Staff","190464159","30/05/2018","Public Service Reform","Management Trainee Programme","R1100"
"Wolverhampton City Council","http://opendatacommunities.org/id/metropolitan-district-council/wolverhampton","710928","Yoo Recruit LTD","CWC10197411","492.47","Agency Staff","190464181","30/05/2018","The Hub","Payroll/HR","R1100"
"Wolverhampton City Council","http://opendatacommunities.org/id/metropolitan-district-council/wolverhampton","710928","Yoo Recruit LTD","CWC1019719","492.88","Agency Staff","190463789","30/05/2018","Looked After Children","Head of Service - LAC","R1100"
"Wolverhampton City Council","http://opendatacommunities.org/id/metropolitan-district-council/wolverhampton","710928","Yoo Recruit LTD","CWC1019751","5.40","Agency Staff","190463821","30/05/2018","Mental Health Assesment & Care Management","Mental Health Assessment & Care Management","R1100"
"Wolverhampton City Council","http://opendatacommunities.org/id/metropolitan-district-council/wolverhampton","710928","Yoo Recruit LTD","CWC1019778","3.60","Agency Staff","190463848","30/05/2018","Independent Living Service","Independent Living Service","R1100"
"Wolverhampton City Council","http://opendatacommunities.org/id/metropolitan-district-council/wolverhampton","710928","Yoo Recruit LTD","CWC10197144","86.52","Agency Staff","190463914","30/05/2018","Leisure Services","Bert Williams Leisure Centre","R1100"
"Wolverhampton City Council","http://opendatacommunities.org/id/metropolitan-district-council/wolverhampton","710928","Yoo Recruit LTD","CWC10197212","470.64","Agency Staff","190463982","30/05/2018","Customer Services","City Direct","R1100"
"Wolverhampton City Council","http://opendatacommunities.org/id/metropolitan-district-council/wolverhampton","710928","Yoo Recruit LTD","CWC10197285","1,863.43","Agency Staff","190464055","30/05/2018","Public Protection","EHTS Staffing","R1100"
"Wolverhampton City Council","http://opendatacommunities.org/id/metropolitan-district-council/wolverhampton","710928","Yoo Recruit LTD","CWC10197292","-1,549.19","Agency Staff","190464062","30/05/2018","Adult Education","Admin & Support","R1100"
"Wolverhampton City Council","http://opendatacommunities.org/id/metropolitan-district-council/wolverhampton","710928","Yoo Recruit LTD","CWC10197298","-2.70","Agency Staff","190464068","30/05/2018","Adult Education","Admin & Support","R1100"
"Wolverhampton City Council","http://opendatacommunities.org/id/metropolitan-district-council/wolverhampton","710928","Yoo Recruit LTD","CWC10197253","334.24","Agency Staff","190464023","30/05/2018","Environmental Maintenance","Graffiti Removal Team","R1100"
"Wolverhampton City Council","http://opendatacommunities.org/id/metropolitan-district-council/wolverhampton","710928","Yoo Recruit LTD","CWC10197316","1,003.89","Agency Staff","190464086","30/05/2018","Adult Education","Foundation Studies Delivery Area","R1100"
"Wolverhampton City Council","http://opendatacommunities.org/id/metropolitan-district-council/wolverhampton","710928","Yoo Recruit LTD","CWC10197353","50.44","Agency Staff","190464123","30/05/2018","Public Service Reform","Information Governance","R1100"
"Wolverhampton City Council","http://opendatacommunities.org/id/metropolitan-district-council/wolverhampton","710928","Yoo Recruit LTD","CWC10197384","1,998.00","Agency Staff","190464154","30/05/2018","Inclusion Support","Inclusion Support","R1100"
"Wolverhampton City Council","http://opendatacommunities.org/id/metropolitan-district-council/wolverhampton","710928","Yoo Recruit LTD","CWC10197393","51.20","Agency Staff","190464163","30/05/2018","Leisure Services","WV Active Business Support","R1100"
"Wolverhampton City Council","http://opendatacommunities.org/id/metropolitan-district-council/wolverhampton","710928","Yoo Recruit LTD","CWC10197380","762.02","Agency Staff","190464150","30/05/2018","Director of Governance","Director of Governance","R1100"
"Wolverhampton City Council","http://opendatacommunities.org/id/metropolitan-district-council/wolverhampton","710928","Yoo Recruit LTD","CWC10197400","153.72","Agency Staff","190464170","30/05/2018","Leisure Services","WV Active Business Support","R1100"
"Wolverhampton City Council","http://opendatacommunities.org/id/metropolitan-district-council/wolverhampton","710928","Yoo Recruit LTD","CWC10197401","161.82","Agency Staff","190464171","30/05/2018","Leisure Services","WV Active Business Support","R1100"
"Wolverhampton City Council","http://opendatacommunities.org/id/metropolitan-district-council/wolverhampton","710928","Yoo Recruit LTD","CWC10197442","1,534.39","Agency Staff","190464212","30/05/2018","Child Protection","CIN/CP Social Work Unit - Area 3","R1100"
"Wolverhampton City Council","http://opendatacommunities.org/id/metropolitan-district-council/wolverhampton","710928","Yoo Recruit LTD","CWC10197446","1,534.39","Agency Staff","190464216","30/05/2018","Child Protection","CIN/CP Social Work Unit - Area 3","R1100"
"Wolverhampton City Council","http://opendatacommunities.org/id/metropolitan-district-council/wolverhampton","710928","Yoo Recruit LTD","CWC10197470","1,549.19","Agency Staff","190464240","30/05/2018","Adults Assessment and Care Management MASH","Adult MASH","R1100"
"Wolverhampton City Council","http://opendatacommunities.org/id/metropolitan-district-council/wolverhampton","710928","Yoo Recruit LTD","CWC10197493","44.76","Agency Staff","190464263","30/05/2018","Visitor Economy","VEC - Casual & Agency Staff","R1100"
"Wolverhampton City Council","http://opendatacommunities.org/id/metropolitan-district-council/wolverhampton","710928","Yoo Recruit LTD","CWC10197490","2,473.04","Agency Staff","190464260","30/05/2018","Digital Transformation Programme","Digital Transformation Programme (Recharge to Capital)","R1100"
"Wolverhampton City Council","http://opendatacommunities.org/id/metropolitan-district-council/wolverhampton","710928","Yoo Recruit LTD","CWC10197507","228.42","Agency Staff","190464277","30/05/2018","Visitor Economy","VEC - Casual & Agency Staff","R1100"
"Wolverhampton City Council","http://opendatacommunities.org/id/metropolitan-district-council/wolverhampton","710928","Yoo Recruit LTD","CWC1019737","116.18","Agency Staff","190463807","30/05/2018","Learning Disability Provider","Duke Street Bungalows","R1100"
"Wolverhampton City Council","http://opendatacommunities.org/id/metropolitan-district-council/wolverhampton","710928","Yoo Recruit LTD","CWC1019757","1,063.98","Agency Staff","190463827","30/05/2018","Mental Health Assesment & Care Management","Mental Health Assessment & Care Management","R1100"
"Wolverhampton City Council","http://opendatacommunities.org/id/metropolitan-district-council/wolverhampton","710928","Yoo Recruit LTD","CWC1019790","789.25","Agency Staff","190463860","30/05/2018","Independent Living Service","Independent Living Service","R1100"
"Wolverhampton City Council","http://opendatacommunities.org/id/metropolitan-district-council/wolverhampton","710928","Yoo Recruit LTD","CWC10197113","5.40","Agency Staff","190463883","30/05/2018","Adults Assessment & Care Management West","Hospital Team","R1100"
"Wolverhampton City Council","http://opendatacommunities.org/id/metropolitan-district-council/wolverhampton","710928","Yoo Recruit LTD","CWC10197104","-1,096.46","Agency Staff","190463874","30/05/2018","Adults Assessment & Care Management West","Hospital Team","R1100"
"Wolverhampton City Council","http://opendatacommunities.org/id/metropolitan-district-council/wolverhampton","710928","Yoo Recruit LTD","CWC10197103","-1,211.01","Agency Staff","190463873","30/05/2018","Adults Assessment & Care Management West","Hospital Team","R1100"
"Wolverhampton City Council","http://opendatacommunities.org/id/metropolitan-district-council/wolverhampton","710928","Yoo Recruit LTD","CWC1019791","960.00","Agency Staff","190463861","30/05/2018","Independent Living Service","Independent Living Service","R1100"
"Wolverhampton City Council","http://opendatacommunities.org/id/metropolitan-district-council/wolverhampton","710928","Yoo Recruit LTD","CWC10197159","58.15","Agency Staff","190463929","30/05/2018","Leisure Services","Central Baths","R1100"
"Wolverhampton City Council","http://opendatacommunities.org/id/metropolitan-district-council/wolverhampton","710928","Yoo Recruit LTD","CWC10197274","2,324.78","Agency Staff","190464044","30/05/2018","Legal Services","Legal Services","R1100"
"Wolverhampton City Council","http://opendatacommunities.org/id/metropolitan-district-council/wolverhampton","710928","Yoo Recruit LTD","CWC10197263","46.35","Agency Staff","190464033","30/05/2018","Public Service Reform","Register Office","R1100"
"Wolverhampton City Council","http://opendatacommunities.org/id/metropolitan-district-council/wolverhampton","710928","Yoo Recruit LTD","CWC1019318","508.16","Agency Staff","190460385","23/05/2018","Looked After Children","LAC Education Team (LACE)","R1100"
"Wolverhampton City Council","http://opendatacommunities.org/id/metropolitan-district-council/wolverhampton","710928","Yoo Recruit LTD","CWC1019317","775.61","Agency Staff","190460384","23/05/2018","Specialist Support","Upper Pendeford Farm Short Breaks Centre","R1100"
"Wolverhampton City Council","http://opendatacommunities.org/id/metropolitan-district-council/wolverhampton","710928","Yoo Recruit LTD","CWC1019320","1.12","Agency Staff","190460387","23/05/2018","Looked After Children","LAC Transitions Team","R1100"
"Wolverhampton City Council","http://opendatacommunities.org/id/metropolitan-district-council/wolverhampton","710928","Yoo Recruit LTD","CWC10193184","91.20","Agency Staff","190460551","23/05/2018","Catering","Primary Schools Catering","R1100"
"Wolverhampton City Council","http://opendatacommunities.org/id/metropolitan-district-council/wolverhampton","710928","Yoo Recruit LTD","CWC10193188","97.68","Agency Staff","190460555","23/05/2018","Catering","Primary Schools Catering","R1100"
"Wolverhampton City Council","http://opendatacommunities.org/id/metropolitan-district-council/wolverhampton","710928","Yoo Recruit LTD","CWC10193191","91.20","Agency Staff","190460558","23/05/2018","Catering","Other Catering - General Overheads","R1100"
"Wolverhampton City Council","http://opendatacommunities.org/id/metropolitan-district-council/wolverhampton","710928","Yoo Recruit LTD","CWC10193190","90.72","Agency Staff","190460557","23/05/2018","Catering","Other Catering - General Overheads","R1100"
"Wolverhampton City Council","http://opendatacommunities.org/id/metropolitan-district-council/wolverhampton","710928","Yoo Recruit LTD","CWC10193192","91.44","Agency Staff","190460559","23/05/2018","Catering","Other Catering - General Overheads","R1100"
"Wolverhampton City Council","http://opendatacommunities.org/id/metropolitan-district-council/wolverhampton","710928","Yoo Recruit LTD","CWC10193196","91.44","Agency Staff","190460563","23/05/2018","Catering","Other Catering - General Overheads","R1100"
"Wolverhampton City Council","http://opendatacommunities.org/id/metropolitan-district-council/wolverhampton","710928","Yoo Recruit LTD","CWC10193206","332.75","Agency Staff","190460573","23/05/2018","Customer Services","City Direct","R1100"
"Wolverhampton City Council","http://opendatacommunities.org/id/metropolitan-district-council/wolverhampton","710928","Yoo Recruit LTD","CWC10193198","93.20","Agency Staff","190460565","23/05/2018","Catering","Other Catering - General Overheads","R1100"
"Wolverhampton City Council","http://opendatacommunities.org/id/metropolitan-district-council/wolverhampton","710928","Yoo Recruit LTD","CWC10193204","203.52","Agency Staff","190460571","23/05/2018","Customer Services","City Direct","R1100"
"Wolverhampton City Council","http://opendatacommunities.org/id/metropolitan-district-council/wolverhampton","710928","Yoo Recruit LTD","CWC10193222","113.30","Agency Staff","190460589","23/05/2018","Cleaning","Cleaning of Buildings - General","R1100"
"Wolverhampton City Council","http://opendatacommunities.org/id/metropolitan-district-council/wolverhampton","710928","Yoo Recruit LTD","CWC10193209","392.65","Agency Staff","190460576","23/05/2018","Customer Services","City Direct","R1100"
"Wolverhampton City Council","http://opendatacommunities.org/id/metropolitan-district-council/wolverhampton","710928","Yoo Recruit LTD","CWC10193255","91.92","Agency Staff","190460622","23/05/2018","Public Service Reform","Register Office","R1100"
"Wolverhampton City Council","http://opendatacommunities.org/id/metropolitan-district-council/wolverhampton","710928","Yoo Recruit LTD","CWC10193252","103.05","Agency Staff","190460619","23/05/2018","Parking Services","Shopmobility","R1100"
"Wolverhampton City Council","http://opendatacommunities.org/id/metropolitan-district-council/wolverhampton","710928","Yoo Recruit LTD","CWC10193242","2,983.15","Agency Staff","190460609","23/05/2018","ICTS","Application Management","R1100"
"Wolverhampton City Council","http://opendatacommunities.org/id/metropolitan-district-council/wolverhampton","710928","Yoo Recruit LTD","CWC10193274","135.18","Agency Staff","190460641","23/05/2018","Licensing","Licensing - Private Hire Vehicles","R1100"
"Wolverhampton City Council","http://opendatacommunities.org/id/metropolitan-district-council/wolverhampton","710928","Yoo Recruit LTD","CWC10193263","305.04","Agency Staff","190460630","23/05/2018","Legal Services","Legal Services","R1100"
"Wolverhampton City Council","http://opendatacommunities.org/id/metropolitan-district-council/wolverhampton","710928","Yoo Recruit LTD","CWC10193309","169.45","Agency Staff","190460676","23/05/2018","School Planning & Resources","Music Support Team","R1100"
"Wolverhampton City Council","http://opendatacommunities.org/id/metropolitan-district-council/wolverhampton","710928","Yoo Recruit LTD","CWC10193306","4.50","Agency Staff","190460673","23/05/2018","School Planning & Resources","Music Support Team","R1100"
"Wolverhampton City Council","http://opendatacommunities.org/id/metropolitan-district-council/wolverhampton","710928","Yoo Recruit LTD","CWC10193311","316.33","Agency Staff","190460678","23/05/2018","School Planning & Resources","Music Support Team","R1100"
"Wolverhampton City Council","http://opendatacommunities.org/id/metropolitan-district-council/wolverhampton","710928","Yoo Recruit LTD","CWC10193310","248.17","Agency Staff","190460677","23/05/2018","School Planning & Resources","Music Support Team","R1100"
"Wolverhampton City Council","http://opendatacommunities.org/id/metropolitan-district-council/wolverhampton","710928","Yoo Recruit LTD","CWC10193325","132.18","Agency Staff","190460692","23/05/2018","Public Protection","Regulatory Services - Works in Default","R1100"
"Wolverhampton City Council","http://opendatacommunities.org/id/metropolitan-district-council/wolverhampton","710928","Yoo Recruit LTD","CWC10193341","27.55","Agency Staff","190460708","23/05/2018","Leisure Services","WV Active Business Support","R1100"
"Wolverhampton City Council","http://opendatacommunities.org/id/metropolitan-district-council/wolverhampton","710928","Yoo Recruit LTD","CWC10193334","738.68","Agency Staff","190460701","23/05/2018","Looked After Children","Peripatetic Social Work Unit - LAC","R1100"
"Wolverhampton City Council","http://opendatacommunities.org/id/metropolitan-district-council/wolverhampton","710928","Yoo Recruit LTD","CWC10193360","389.32","Agency Staff","190460727","23/05/2018","The Hub","Payroll/HR","R1100"
"Wolverhampton City Council","http://opendatacommunities.org/id/metropolitan-district-council/wolverhampton","710928","Yoo Recruit LTD","CWC10193328","286.20","Agency Staff","190460695","23/05/2018","Safeguarding","Safeguarding & Quality Administration","R1100"
"Wolverhampton City Council","http://opendatacommunities.org/id/metropolitan-district-council/wolverhampton","710928","Yoo Recruit LTD","CWC10193331","1,998.00","Agency Staff","190460698","23/05/2018","Inclusion Support","Inclusion Support","R1100"
"Wolverhampton City Council","http://opendatacommunities.org/id/metropolitan-district-council/wolverhampton","710928","Yoo Recruit LTD","CWC10193378","1,587.30","Agency Staff","190460745","23/05/2018","Child Protection","CIN/CP Social Work Unit - Area 7","R1100"
"Wolverhampton City Council","http://opendatacommunities.org/id/metropolitan-district-council/wolverhampton","710928","Yoo Recruit LTD","CWC10193374","1,259.10","Agency Staff","190460741","23/05/2018","Child Protection","CIN/CP Social Work Unit - Area 7","R1100"
"Wolverhampton City Council","http://opendatacommunities.org/id/metropolitan-district-council/wolverhampton","710928","Yoo Recruit LTD","CWC10193370","968.49","Agency Staff","190460737","23/05/2018","Child Protection","CIN/CP Social Work Unit - Area 2","R1100"
"Wolverhampton City Council","http://opendatacommunities.org/id/metropolitan-district-council/wolverhampton","710928","Yoo Recruit LTD","CWC10193382","1,587.30","Agency Staff","190460749","23/05/2018","Child Protection","CIN/CP Social Work Unit - Area 7","R1100"
"Wolverhampton City Council","http://opendatacommunities.org/id/metropolitan-district-council/wolverhampton","710928","Yoo Recruit LTD","CWC10193386","94.05","Agency Staff","190460753","23/05/2018","Child Protection","MASH","R1100"
"Wolverhampton City Council","http://opendatacommunities.org/id/metropolitan-district-council/wolverhampton","710928","Yoo Recruit LTD","CWC10193396","33.48","Agency Staff","190460763","23/05/2018","Early Intervention","EIP Locality 3 - Graiseley","R1100"
"Wolverhampton City Council","http://opendatacommunities.org/id/metropolitan-district-council/wolverhampton","710928","Yoo Recruit LTD","CWC10193393","38.03","Agency Staff","190460760","23/05/2018","Early Intervention","EIP Locality 1 - Eastfields","R1100"
"Wolverhampton City Council","http://opendatacommunities.org/id/metropolitan-district-council/wolverhampton","710928","Yoo Recruit LTD","CWC10193437","1,368.00","Agency Staff","190460804","23/05/2018","Adults Assessment & Care Management SLC","Supporting Life Choices","R1100"
"Wolverhampton City Council","http://opendatacommunities.org/id/metropolitan-district-council/wolverhampton","710928","Yoo Recruit LTD","CWC10193418","1.35","Agency Staff","190460785","23/05/2018","Adults Assessment & Care Management SLC","Supporting Life Choices","R1100"
"Wolverhampton City Council","http://opendatacommunities.org/id/metropolitan-district-council/wolverhampton","710928","Yoo Recruit LTD","CWC10193448","67.68","Agency Staff","190460815","23/05/2018","Visitor Economy","VEC - Casual & Agency Staff","R1100"
"Wolverhampton City Council","http://opendatacommunities.org/id/metropolitan-district-council/wolverhampton","710928","Yoo Recruit LTD","CWC10193442","258.77","Agency Staff","190460809","23/05/2018","Leisure Services","WV Active Catering - Central","R1100"
"Wolverhampton City Council","http://opendatacommunities.org/id/metropolitan-district-council/wolverhampton","710928","Yoo Recruit LTD","CWC10193458","279.12","Agency Staff","190460825","23/05/2018","Visitor Economy","VEC - Casual & Agency Staff","R1100"
"Wolverhampton City Council","http://opendatacommunities.org/id/metropolitan-district-council/wolverhampton","710928","Yoo Recruit LTD","CWC10193427","4.72","Agency Staff","190460794","23/05/2018","Adults Assessment & Care Management SLC","Supporting Life Choices","R1100"
"Wolverhampton City Council","http://opendatacommunities.org/id/metropolitan-district-council/wolverhampton","710928","Yoo Recruit LTD","CWC10193435","1,118.05","Agency Staff","190460802","23/05/2018","Adults Assessment & Care Management SLC","Supporting Life Choices","R1100"
"Wolverhampton City Council","http://opendatacommunities.org/id/metropolitan-district-council/wolverhampton","710928","Yoo Recruit LTD","CWC10193431","6.30","Agency Staff","190460798","23/05/2018","Adults Assessment & Care Management SLC","Supporting Life Choices","R1100"
"Wolverhampton City Council","http://opendatacommunities.org/id/metropolitan-district-council/wolverhampton","710928","Yoo Recruit LTD","CWC10193290","483.84","Agency Staff","190460657","23/05/2018","Adult Education","Foundation Studies Delivery Area","R1100"
"Wolverhampton City Council","http://opendatacommunities.org/id/metropolitan-district-council/wolverhampton","710928","Yoo Recruit LTD","CWC10193294","108.86","Agency Staff","190460661","23/05/2018","Adult Education","Language Studies Delivery Area","R1100"
"Wolverhampton City Council","http://opendatacommunities.org/id/metropolitan-district-council/wolverhampton","710928","Yoo Recruit LTD","CWC10193288","241.90","Agency Staff","190460655","23/05/2018","Adult Education","Foundation Studies Delivery Area","R1100"
"Wolverhampton City Council","http://opendatacommunities.org/id/metropolitan-district-council/wolverhampton","710928","Yoo Recruit LTD","CWC10193292","74.78","Agency Staff","190460659","23/05/2018","Adult Education","Language Studies Delivery Area","R1100"
"Wolverhampton City Council","http://opendatacommunities.org/id/metropolitan-district-council/wolverhampton","710928","Yoo Recruit LTD","CWC1019314","1,307.58","Agency Staff","190460381","23/05/2018","Looked After Children","Adoption and Residence Team & Allowances","R1100"
"Wolverhampton City Council","http://opendatacommunities.org/id/metropolitan-district-council/wolverhampton","710928","Yoo Recruit LTD","CWC1019370","477.90","Agency Staff","190460437","23/05/2018","Learning Disability Provider","Duke Street Bungalows","R1100"
"Wolverhampton City Council","http://opendatacommunities.org/id/metropolitan-district-council/wolverhampton","710928","Yoo Recruit LTD","CWC1019375","291.00","Agency Staff","190460442","23/05/2018","Emergency Duty Team","Emergency Duty Team","R1100"
"Wolverhampton City Council","http://opendatacommunities.org/id/metropolitan-district-council/wolverhampton","710928","Yoo Recruit LTD","CWC1019371","111.51","Agency Staff","190460438","23/05/2018","Learning Disability Provider","Ernest Bold Court","R1100"
"Wolverhampton City Council","http://opendatacommunities.org/id/metropolitan-district-council/wolverhampton","710928","Yoo Recruit LTD","CWC1019378","1,288.18","Agency Staff","190460445","23/05/2018","Emergency Duty Team","Emergency Duty Team","R1100"
"Wolverhampton City Council","http://opendatacommunities.org/id/metropolitan-district-council/wolverhampton","710928","Yoo Recruit LTD","CWC10193348","107.88","Agency Staff","190460715","23/05/2018","Leisure Services","WV Active Business Support","R1100"
"Wolverhampton City Council","http://opendatacommunities.org/id/metropolitan-district-council/wolverhampton","710928","Yoo Recruit LTD","CWC1019364","47.25","Agency Staff","190460431","23/05/2018","Youth Offending","Youth Offending Team","R1100"
"Wolverhampton City Council","http://opendatacommunities.org/id/metropolitan-district-council/wolverhampton","710928","Yoo Recruit LTD","CWC10193214","486.38","Agency Staff","190460581","23/05/2018","Customer Services","City Direct","R1100"
"Wolverhampton City Council","http://opendatacommunities.org/id/metropolitan-district-council/wolverhampton","710928","Yoo Recruit LTD","CWC1019381","0.90","Agency Staff","190460448","23/05/2018","Mental Health Assesment & Care Management","Mental Health Assessment & Care Management","R1100"
"Wolverhampton City Council","http://opendatacommunities.org/id/metropolitan-district-council/wolverhampton","710928","Yoo Recruit LTD","CWC1019382","2.34","Agency Staff","190460449","23/05/2018","Mental Health Assesment & Care Management","Mental Health Assessment & Care Management","R1100"
"Wolverhampton City Council","http://opendatacommunities.org/id/metropolitan-district-council/wolverhampton","710928","Yoo Recruit LTD","CWC10193150","69.96","Agency Staff","190460517","23/05/2018","Leisure Services","Central Baths","R1100"
"Wolverhampton City Council","http://opendatacommunities.org/id/metropolitan-district-council/wolverhampton","710928","Yoo Recruit LTD","CWC10193151","92.22","Agency Staff","190460518","23/05/2018","Leisure Services","Central Baths","R1100"
"Wolverhampton City Council","http://opendatacommunities.org/id/metropolitan-district-council/wolverhampton","710928","Yoo Recruit LTD","CWC10193161","193.98","Agency Staff","190460528","23/05/2018","Leisure Services","Central Baths","R1100"
"Wolverhampton City Council","http://opendatacommunities.org/id/metropolitan-district-council/wolverhampton","710928","Yoo Recruit LTD","CWC10193104","106.92","Agency Staff","190460471","23/05/2018","Strategic Organisation Development","Adult Lending Library","R1100"
"Wolverhampton City Council","http://opendatacommunities.org/id/metropolitan-district-council/wolverhampton","710928","Yoo Recruit LTD","CWC10193122","30.80","Agency Staff","190460489","23/05/2018","Leisure Services","Aldersley Leisure Village","R1100"
"Wolverhampton City Council","http://opendatacommunities.org/id/metropolitan-district-council/wolverhampton","710928","Yoo Recruit LTD","CWC10193144","265.04","Agency Staff","190460511","23/05/2018","Leisure Services","Bert Williams Leisure Centre","R1100"
"Wolverhampton City Council","http://opendatacommunities.org/id/metropolitan-district-council/wolverhampton","710928","Yoo Recruit LTD","CWC10193121","17.45","Agency Staff","190460488","23/05/2018","Leisure Services","Aldersley Leisure Village","R1100"
"Wolverhampton City Council","http://opendatacommunities.org/id/metropolitan-district-council/wolverhampton","710928","Yoo Recruit LTD","CWC10193223","115.30","Agency Staff","190460590","23/05/2018","Cleaning","Cleaning of Buildings - General","R1100"
"Wolverhampton City Council","http://opendatacommunities.org/id/metropolitan-district-council/wolverhampton","710928","Yoo Recruit LTD","CWC10193226","136.80","Agency Staff","190460593","23/05/2018","Cleaning","Cleaning of Buildings - General","R1100"
"Wolverhampton City Council","http://opendatacommunities.org/id/metropolitan-district-council/wolverhampton","710928","Yoo Recruit LTD","CWC10193230","171.00","Agency Staff","190460597","23/05/2018","Cleaning","Cleaning of Buildings - General","R1100"
"Wolverhampton City Council","http://opendatacommunities.org/id/metropolitan-district-council/wolverhampton","710928","Yoo Recruit LTD","CWC10193231","228.00","Agency Staff","190460598","23/05/2018","Cleaning","Cleaning of Buildings - General","R1100"
"Wolverhampton City Council","http://opendatacommunities.org/id/metropolitan-district-council/wolverhampton","710928","Yoo Recruit LTD","CWC10193172","438.84","Agency Staff","190460539","23/05/2018","Leisure Services","Central Baths","R1100"
"Wolverhampton City Council","http://opendatacommunities.org/id/metropolitan-district-council/wolverhampton","710928","Yoo Recruit LTD","CWC10193175","1,100.06","Agency Staff","190460542","23/05/2018","Safeguarding","MCA General","R1100"
"Wolverhampton City Council","http://opendatacommunities.org/id/metropolitan-district-council/wolverhampton","710928","Yoo Recruit LTD","CWC10193411","592.90","Agency Staff","190460778","23/05/2018","Adults Assessment & Care Management East","Adult Services � East","R1100"
"Wolverhampton City Council","http://opendatacommunities.org/id/metropolitan-district-council/wolverhampton","710928","Yoo Recruit LTD","CWC10193403","139.92","Agency Staff","190460770","23/05/2018","Specialist Support","Vulnerable Young Persons Team","R1100"
"Wolverhampton City Council","http://opendatacommunities.org/id/metropolitan-district-council/wolverhampton","710928","Yoo Recruit LTD","CWC1019333","4.40","Agency Staff","190460400","23/05/2018","Looked After Children","LAC Transitions Team","R1100"
"Wolverhampton City Council","http://opendatacommunities.org/id/metropolitan-district-council/wolverhampton","710928","Yoo Recruit LTD","CWC1019330","4.05","Agency Staff","190460397","23/05/2018","Looked After Children","LAC Transitions Team","R1100"
"Wolverhampton City Council","http://opendatacommunities.org/id/metropolitan-district-council/wolverhampton","710928","Yoo Recruit LTD","CWC1019310","1,549.19","Agency Staff","190460377","23/05/2018","Looked After Children","Fostering Team & Allowances","R1100"
"Wolverhampton City Council","http://opendatacommunities.org/id/metropolitan-district-council/wolverhampton","710928","Yoo Recruit LTD","CWC1019352","2.25","Agency Staff","190460419","23/05/2018","Youth Offending","Youth Offending Team","R1100"
"Wolverhampton City Council","http://opendatacommunities.org/id/metropolitan-district-council/wolverhampton","710928","Yoo Recruit LTD","CWC10193139","127.20","Agency Staff","190460506","23/05/2018","Leisure Services","Bert Williams Leisure Centre","R1100"
"Wolverhampton City Council","http://opendatacommunities.org/id/metropolitan-district-council/wolverhampton","710928","Yoo Recruit LTD","CWC10193112","5.40","Agency Staff","190460479","23/05/2018","Adults Assessment & Care Management West","Hospital Team","R1100"
"Wolverhampton City Council","http://opendatacommunities.org/id/metropolitan-district-council/wolverhampton","710928","Yoo Recruit LTD","CWC10193108","3.60","Agency Staff","190460475","23/05/2018","Independent Living Service","Independent Living Service","R1100"
"Wolverhampton City Council","http://opendatacommunities.org/id/metropolitan-district-council/wolverhampton","710928","Yoo Recruit LTD","CWC10193111","1,184.00","Agency Staff","190460478","23/05/2018","Independent Living Service","Independent Living Service","R1100"
"Wolverhampton City Council","http://opendatacommunities.org/id/metropolitan-district-council/wolverhampton","710928","Yoo Recruit LTD","CWC10193115","1,211.01","Agency Staff","190460482","23/05/2018","Adults Assessment & Care Management West","Hospital Team","R1100"
"Wolverhampton City Council","http://opendatacommunities.org/id/metropolitan-district-council/wolverhampton","710928","Yoo Recruit LTD","CWC10193125","104.67","Agency Staff","190460492","23/05/2018","Leisure Services","Aldersley Leisure Village","R1100"
"Wolverhampton City Council","http://opendatacommunities.org/id/metropolitan-district-council/wolverhampton","710928","Yoo Recruit LTD","CWC10193116","1,249.12","Agency Staff","190460483","23/05/2018","Adults Assessment & Care Management West","Hospital Team","R1100"
"Wolverhampton City Council","http://opendatacommunities.org/id/metropolitan-district-council/wolverhampton","710928","Yoo Recruit LTD","CWC10193132","79.86","Agency Staff","190460499","23/05/2018","Leisure Services","Bert Williams Leisure Centre","R1100"
"Wolverhampton City Council","http://opendatacommunities.org/id/metropolitan-district-council/wolverhampton","710928","Yoo Recruit LTD","CWC10193134","93.04","Agency Staff","190460501","23/05/2018","Leisure Services","Bert Williams Leisure Centre","R1100"
"Wolverhampton City Council","http://opendatacommunities.org/id/metropolitan-district-council/wolverhampton","710928","Yoo Recruit LTD","CWC1019325","3.20","Agency Staff","190460392","23/05/2018","Looked After Children","LAC Transitions Team","R1100"
"Wolverhampton City Council","http://opendatacommunities.org/id/metropolitan-district-council/wolverhampton","710928","Yoo Recruit LTD","CWC1019327","3.42","Agency Staff","190460394","23/05/2018","Looked After Children","LAC Transitions Team","R1100"
"Wolverhampton City Council","http://opendatacommunities.org/id/metropolitan-district-council/wolverhampton","710928","Yoo Recruit LTD","CWC1018928","-984.00","Agency Staff","190458722","18/05/2018","Child Protection","Childrens with Disabilities Team","R1100"
"Wolverhampton City Council","http://opendatacommunities.org/id/metropolitan-district-council/wolverhampton","710928","Yoo Recruit LTD","CWC1018924","-984.00","Agency Staff","190458718","18/05/2018","Child Protection","Childrens with Disabilities Team","R1100"
"Wolverhampton City Council","http://opendatacommunities.org/id/metropolitan-district-council/wolverhampton","710928","Yoo Recruit LTD","CWC101897","984.00","Agency Staff","190458701","18/05/2018","Looked After Children","Adoption and Residence Team & Allowances","R1100"
"Wolverhampton City Council","http://opendatacommunities.org/id/metropolitan-district-council/wolverhampton","710928","Yoo Recruit LTD","CWC101894","4.50","Agency Staff","190458698","18/05/2018","Looked After Children","Adoption and Residence Team & Allowances","R1100"
"Wolverhampton City Council","http://opendatacommunities.org/id/metropolitan-district-council/wolverhampton","710928","Yoo Recruit LTD","CWC1018949","-13.05","Agency Staff","190458743","18/05/2018","Child Protection","Childrens with Disabilities Team","R1100"
"Wolverhampton City Council","http://opendatacommunities.org/id/metropolitan-district-council/wolverhampton","710928","Yoo Recruit LTD","CWC1018932","-984.00","Agency Staff","190458726","18/05/2018","Child Protection","Childrens with Disabilities Team","R1100"
"Wolverhampton City Council","http://opendatacommunities.org/id/metropolitan-district-council/wolverhampton","710928","Yoo Recruit LTD","CWC1018934","-984.00","Agency Staff","190458728","18/05/2018","Child Protection","Childrens with Disabilities Team","R1100"
"Wolverhampton City Council","http://opendatacommunities.org/id/metropolitan-district-council/wolverhampton","710928","Yoo Recruit LTD","CWC1018953","-4.05","Agency Staff","190458747","18/05/2018","Child Protection","Childrens with Disabilities Team","R1100"
"Wolverhampton City Council","http://opendatacommunities.org/id/metropolitan-district-council/wolverhampton","710928","Yoo Recruit LTD","CWC1018910","-965.54","Agency Staff","190458704","18/05/2018","Looked After Children","LAC Transitions Team","R1100"
"Wolverhampton City Council","http://opendatacommunities.org/id/metropolitan-district-council/wolverhampton","710928","Yoo Recruit LTD","CWC1018985","987.00","Agency Staff","190458779","18/05/2018","Child Protection","Childrens with Disabilities Team","R1100"
"Wolverhampton City Council","http://opendatacommunities.org/id/metropolitan-district-council/wolverhampton","710928","Yoo Recruit LTD","CWC1018989","987.00","Agency Staff","190458783","18/05/2018","Child Protection","Childrens with Disabilities Team","R1100"
"Wolverhampton City Council","http://opendatacommunities.org/id/metropolitan-district-council/wolverhampton","710928","Yoo Recruit LTD","CWC1018965","13.50","Agency Staff","190458759","18/05/2018","Child Protection","Childrens with Disabilities Team","R1100"
"Wolverhampton City Council","http://opendatacommunities.org/id/metropolitan-district-council/wolverhampton","710928","Yoo Recruit LTD","CWC10189101","155.32","Agency Staff","190458795","18/05/2018","Learning Disability Provider","Duke Street Bungalows","R1100"
"Wolverhampton City Council","http://opendatacommunities.org/id/metropolitan-district-council/wolverhampton","710928","Yoo Recruit LTD","CWC1018996","1,077.48","Agency Staff","190458790","18/05/2018","Child Protection","Childrens with Disabilities Team","R1100"
"Wolverhampton City Council","http://opendatacommunities.org/id/metropolitan-district-council/wolverhampton","710928","Yoo Recruit LTD","CWC1018993","987.00","Agency Staff","190458787","18/05/2018","Child Protection","Childrens with Disabilities Team","R1100"
"Wolverhampton City Council","http://opendatacommunities.org/id/metropolitan-district-council/wolverhampton","710928","Yoo Recruit LTD","CWC1018997","119.48","Agency Staff","190458791","18/05/2018","Learning Disability Provider","Duke Street Bungalows","R1100"
"Wolverhampton City Council","http://opendatacommunities.org/id/metropolitan-district-council/wolverhampton","710928","Yoo Recruit LTD","CWC10189103","310.64","Agency Staff","190458797","18/05/2018","Learning Disability Provider","Duke Street Bungalows","R1100"
"Wolverhampton City Council","http://opendatacommunities.org/id/metropolitan-district-council/wolverhampton","710928","Yoo Recruit LTD","CWC10189105","736.76","Agency Staff","190458799","18/05/2018","Learning Disability Provider","Ernest Bold Court","R1100"
"Wolverhampton City Council","http://opendatacommunities.org/id/metropolitan-district-council/wolverhampton","710928","Yoo Recruit LTD","CWC10189182","615.60","Agency Staff","190458876","18/05/2018","Safeguarding","MCA General","R1100"
"Wolverhampton City Council","http://opendatacommunities.org/id/metropolitan-district-council/wolverhampton","710928","Yoo Recruit LTD","CWC10189185","45.60","Agency Staff","190458879","18/05/2018","Catering","Primary Schools Catering","R1100"
"Wolverhampton City Council","http://opendatacommunities.org/id/metropolitan-district-council/wolverhampton","710928","Yoo Recruit LTD","CWC10189180","5.67","Agency Staff","190458874","18/05/2018","Safeguarding","MCA General","R1100"
"Wolverhampton City Council","http://opendatacommunities.org/id/metropolitan-district-council/wolverhampton","710928","Yoo Recruit LTD","CWC10189124","46.72","Agency Staff","190458818","18/05/2018","Strategic Organisation Development","Global Budgets","R1100"
"Wolverhampton City Council","http://opendatacommunities.org/id/metropolitan-district-council/wolverhampton","710928","Yoo Recruit LTD","CWC10189119","1,223.59","Agency Staff","190458813","18/05/2018","Mental Health Assesment & Care Management","Mental Health Assessment & Care Management","R1100"
"Wolverhampton City Council","http://opendatacommunities.org/id/metropolitan-district-council/wolverhampton","710928","Yoo Recruit LTD","CWC10189132","2.70","Agency Staff","190458826","18/05/2018","Independent Living Service","Independent Living Service","R1100"
"Wolverhampton City Council","http://opendatacommunities.org/id/metropolitan-district-council/wolverhampton","710928","Yoo Recruit LTD","CWC10189195","114.00","Agency Staff","190458889","18/05/2018","Catering","Primary Schools Catering","R1100"
"Wolverhampton City Council","http://opendatacommunities.org/id/metropolitan-district-council/wolverhampton","710928","Yoo Recruit LTD","CWC10189135","7.20","Agency Staff","190458829","18/05/2018","Independent Living Service","Independent Living Service","R1100"
"Wolverhampton City Council","http://opendatacommunities.org/id/metropolitan-district-council/wolverhampton","710928","Yoo Recruit LTD","CWC10189164","69.96","Agency Staff","190458858","18/05/2018","Leisure Services","Bert Williams Leisure Centre","R1100"
"Wolverhampton City Council","http://opendatacommunities.org/id/metropolitan-district-council/wolverhampton","710928","Yoo Recruit LTD","CWC10189144","1,211.01","Agency Staff","190458838","18/05/2018","Adults Assessment & Care Management West","Hospital Team","R1100"
"Wolverhampton City Council","http://opendatacommunities.org/id/metropolitan-district-council/wolverhampton","710928","Yoo Recruit LTD","CWC10189139","933.60","Agency Staff","190458833","18/05/2018","Independent Living Service","Independent Living Service","R1100"
"Wolverhampton City Council","http://opendatacommunities.org/id/metropolitan-district-council/wolverhampton","710928","Yoo Recruit LTD","CWC10189169","139.92","Agency Staff","190458863","18/05/2018","Leisure Services","Bert Williams Leisure Centre","R1100"
"Wolverhampton City Council","http://opendatacommunities.org/id/metropolitan-district-council/wolverhampton","710928","Yoo Recruit LTD","CWC10189242","137.16","Agency Staff","190458936","18/05/2018","Cleaning","Cleaning of Buildings - General","R1100"
"Wolverhampton City Council","http://opendatacommunities.org/id/metropolitan-district-council/wolverhampton","710928","Yoo Recruit LTD","CWC10189239","115.30","Agency Staff","190458933","18/05/2018","Cleaning","Cleaning of Buildings - General","R1100"
"Wolverhampton City Council","http://opendatacommunities.org/id/metropolitan-district-council/wolverhampton","710928","Yoo Recruit LTD","CWC10189237","114.30","Agency Staff","190458931","18/05/2018","Cleaning","Cleaning of Buildings - General","R1100"
"Wolverhampton City Council","http://opendatacommunities.org/id/metropolitan-district-council/wolverhampton","710928","Yoo Recruit LTD","CWC10189231","655.68","Agency Staff","190458925","18/05/2018","Customer Services","City Direct","R1100"
"Wolverhampton City Council","http://opendatacommunities.org/id/metropolitan-district-council/wolverhampton","710928","Yoo Recruit LTD","CWC10189270","1,258.83","Agency Staff","190458964","18/05/2018","Managing Director","Managing Director","R1100"
"Wolverhampton City Council","http://opendatacommunities.org/id/metropolitan-district-council/wolverhampton","710928","Yoo Recruit LTD","CWC10189293","1,138.16","Agency Staff","190458987","18/05/2018","Housing","Housing Regeneration - Strategy & Development","R1100"
"Wolverhampton City Council","http://opendatacommunities.org/id/metropolitan-district-council/wolverhampton","710928","Yoo Recruit LTD","CWC10189280","229.00","Agency Staff","190458974","18/05/2018","Parking Services","Shopmobility","R1100"
"Wolverhampton City Council","http://opendatacommunities.org/id/metropolitan-district-council/wolverhampton","710928","Yoo Recruit LTD","CWC10189252","34.20","Agency Staff","190458946","18/05/2018","Cleaning","External Cleaning","R1100"
"Wolverhampton City Council","http://opendatacommunities.org/id/metropolitan-district-council/wolverhampton","710928","Yoo Recruit LTD","CWC10189213","124.13","Agency Staff","190458907","18/05/2018","Customer Services","City Direct","R1100"
"Wolverhampton City Council","http://opendatacommunities.org/id/metropolitan-district-council/wolverhampton","710928","Yoo Recruit LTD","CWC10189214","152.64","Agency Staff","190458908","18/05/2018","Customer Services","City Direct","R1100"
"Wolverhampton City Council","http://opendatacommunities.org/id/metropolitan-district-council/wolverhampton","710928","Yoo Recruit LTD","CWC10189394","161.82","Agency Staff","190459088","18/05/2018","Leisure Services","WV Active Business Support","R1100"
"Wolverhampton City Council","http://opendatacommunities.org/id/metropolitan-district-council/wolverhampton","710928","Yoo Recruit LTD","CWC10189392","107.88","Agency Staff","190459086","18/05/2018","Leisure Services","WV Active Business Support","R1100"
"Wolverhampton City Council","http://opendatacommunities.org/id/metropolitan-district-council/wolverhampton","710928","Yoo Recruit LTD","CWC10189401","974.34","Agency Staff","190459095","18/05/2018","Human Resources","HR Investigations","R1100"
"Wolverhampton City Council","http://opendatacommunities.org/id/metropolitan-district-council/wolverhampton","710928","Yoo Recruit LTD","CWC10189384","106.20","Agency Staff","190459078","18/05/2018","Looked After Children","Peripatetic Social Work Unit - LAC","R1100"
"Wolverhampton City Council","http://opendatacommunities.org/id/metropolitan-district-council/wolverhampton","710928","Yoo Recruit LTD","CWC10189301","129.24","Agency Staff","190458995","18/05/2018","Licensing","Licensing - Private Hire Vehicles","R1100"
"Wolverhampton City Council","http://opendatacommunities.org/id/metropolitan-district-council/wolverhampton","710928","Yoo Recruit LTD","CWC10189272","11.40","Agency Staff","190458966","18/05/2018","Transportation","Passenger Transport - General","R1100"
"Wolverhampton City Council","http://opendatacommunities.org/id/metropolitan-district-council/wolverhampton","710928","Yoo Recruit LTD","CWC10189307","159.60","Agency Staff","190459001","18/05/2018","Adult Education","Creative Studies Delivery Area","R1100"
"Wolverhampton City Council","http://opendatacommunities.org/id/metropolitan-district-council/wolverhampton","710928","Yoo Recruit LTD","CWC10189271","345.57","Agency Staff","190458965","18/05/2018","Environmental Maintenance","Graffiti Removal Team","R1100"
"Wolverhampton City Council","http://opendatacommunities.org/id/metropolitan-district-council/wolverhampton","710928","Yoo Recruit LTD","CWC10189254","161.42","Agency Staff","190458948","18/05/2018","Cleaning","External Cleaning","R1100"
"Wolverhampton City Council","http://opendatacommunities.org/id/metropolitan-district-council/wolverhampton","710928","Yoo Recruit LTD","CWC10189253","136.80","Agency Staff","190458947","18/05/2018","Cleaning","External Cleaning","R1100"
"Wolverhampton City Council","http://opendatacommunities.org/id/metropolitan-district-council/wolverhampton","710928","Yoo Recruit LTD","CWC10189345","108.45","Agency Staff","190459039","18/05/2018","Special Educational Needs","Special - Transport","R1100"
"Wolverhampton City Council","http://opendatacommunities.org/id/metropolitan-district-council/wolverhampton","710928","Yoo Recruit LTD","CWC10189315","151.20","Agency Staff","190459009","18/05/2018","Adult Education","Foundation Studies Delivery Area","R1100"
"Wolverhampton City Council","http://opendatacommunities.org/id/metropolitan-district-council/wolverhampton","710928","Yoo Recruit LTD","CWC10189442","995.28","Agency Staff","190459136","18/05/2018","Child Protection","MASH","R1100"
"Wolverhampton City Council","http://opendatacommunities.org/id/metropolitan-district-council/wolverhampton","710928","Yoo Recruit LTD","CWC10189347","116.50","Agency Staff","190459041","18/05/2018","Special Educational Needs","Special - Transport","R1100"
